Workbook

Sheet 공임단가 (hidden)
B1: 2009년 상반기 노임단가 | E1: 2009년 상반기 노임단가
B2: 철공 | C2: 111574 | E2: 플랜트용접공 | F2: 143061
B3: 철판공 | C3: 98616 | E3: 플랜트배관공 | F3: 137627
B4: 비계공 | C4: 116264 | E4: 플랜트제관공 | F4: 121065
B5: 조적공 | C5: 89437 | E5: 내선전공 | F5: 94191
B6: 미장공 | C6: 93579 | E6: 계장공 | F6: 113833
B7: 방수공 | C7: 75703 | E7: 목도공 | F7: 90995
B8: 콘크리트공 | C8: 98735 | E8: 특별인부 | F8: 84686
B9: 보일러공 | C9: 90556 | E9: 보통인부 | F9: 66622
B10: 배관공 | C10: 87372 | E10: 중기운전공(운반차) | F10: 79737
B11: 위생공 | C11: 81777 | E11: 윈치원전공(기계) | F11: 69388
B12: 보온공 | C12: 85836 | E12: 기계설치공 | F12: 85723
B13: 도장공 | C13: 93734 | E13: 함석공 | F13: 98591
B14: 착암공 | C14: 77924 | E14: 용접공 | F14: 102522
B15: 시험관련기사(시험사1급) | C15: 72502 | E15: 닥트공 | F15: 85692
B16: 시험관련산업기사(2급) | C16: 62979 | E16: 할석공 | F16: 100194
B17: 시험보조수 | C17: 59227 | E17: 작업반장 | F17: 90786 | G17: 71번
B18: 플랜트기계설치공 | C18: 123613 | E18: 플랜트특수용접공 | F18: 163473
B20: 2008년 하반기 노임단가 | E20: 2008년 하반기 노임단가
B21: 철공 | C21: 107740 | E21: 플랜트용접공 | F21: 131501
B22: 철판공 | C22: 101619 | E22: 플랜트배관공 | F22: 125221
B23: 비계공 | C23: 114640 | E23: 플랜트제관공 | F23: 112215
B24: 조적공 | C24: 91518 | E24: 내선전공 | F24: 91062
B25: 미장공 | C25: 93122 | E25: 계장공 | F25: 107457
B26: 방수공 | C26: 76896 | E26: 목도공 | F26: 92895
B27: 콘크리트공 | C27: 99880 | E27: 특별인부 | F27: 81596
B28: 보일러공 | C28: 86214 | E28: 보통인부 | F28: 63530
B29: 배관공 | C29: 86717 | E29: 중기운전공(운반차) | F29: 73110
B30: 위생공 | C30: 82511 | E30: 윈치원전공(기계) | F30: 4444
B31: 보온공 | C31: 84692 | E31: 기계설치공 | F31: 85043
B32: 도장공 | C32: 90721 | E32: 함석공 | F32: 91429
B33: 착암공 | C33: 77435 | E33: 용접공 | F33: 101790
B34: 시험관련기사(시험사1급) | C34: 64129 | E34: 닥트공 | F34: 86792
B35: 시험관련산업기사(2급) | C35: 54730 | E35: 할석공 | F35: 93989
B36: 시험보조수 | C36: 54318 | E36: 작업반장 | F36: 85203 | G36: 71번
B37: 플랜트기계설치공 | C37: 115352 | E37: 플랜트특수용접공 | F37: 154662
B38: 2008년 상반기 노임단가 | E38: 2008년 상반기 노임단가
B39: 철공 | C39: 103303 | E39: 플랜트용접공 | F39: 121942
B40: 철판공 | C40: 95595 | E40: 플랜트배관공 | F40: 117001
B41: 비계공 | C41: 107592 | E41: 플랜트제관공 | F41: 102841
B42: 조적공 | C42: 86508 | E42: 내선전공 | F42: 88317
B43: 미장공 | C43: 89567 | E43: 계장공 | F43: 100234
B44: 방수공 | C44: 76130 | E44: 목도공 | F44: 86378
B45: 콘크리트공 | C45: 97531 | E45: 특별인부 | F45: 80531
B46: 보일러공 | C46: 81886 | E46: 보통인부 | F46: 60547
B47: 배관공 | C47: 83392 | E47: 중기운전공(운반차) | F47: 70950
B48: 위생공 | C48: 78195 | E48: 윈치원전공(기계) | F48: 65671
B49: 보온공 | C49: 81730 | E49: 기계설치공 | F49: 81846
B50: 도장공 | C50: 91764 | E50: 함석공 | F50: 87658
B51: 착암공 | C51: 71432 | E51: 용접공 | F51: 97714
B52: 시험관련기사(시험사1급) | C52: 64129 | E52: 닥트공 | F52: 82269
B53: 시험관련산업기사(2급) | C53: 54730 | E53: 할석공 | F53: 91324
B54: 시험보조수 | C54: 54318 | E54: 작업반장 | F54: 80830
B55: 플랜트기계설치공 | C55: 106830 | E55: 플랜트특수용접공 | F55: 140351
B57: 2007년 하반기 노임단가 | E57: 2007년 하반기 노임단가
B58: 철공 | C58: 93962 | E58: 플랜트용접공 | F58: 118206
B59: 철판공 | C59: 93464 | E59: 플랜트배관공 | F59: 109815
B60: 비계공 | C60: 104231 | E60: 플랜트제관공 | F60: 98678
B61: 조적공 | C61: 87829 | E61: 내선전공 | F61: 85734
B62: 미장공 | C62: 88702 | E62: 계장공 | F62: 101057
B63: 방수공 | C63: 69549 | E63: 목도공 | F63: 82424
B64: 콘크리트공 | C64: 94550 | E64: 특별인부 | F64: 77522
B65: 보일러공 | C65: 77939 | E65: 보통인부 | F65: 58883
B66: 배관공 | C66: 79781 | E66: 중기운전공(운반차) | F66: 68903
B67: 위생공 | C67: 74533 | E67: 윈치원전공(기계) | F67: 67088
B68: 보온공 | C68: 78823 | E68: 기계설치공 | F68: 79763
B69: 도장공 | C69: 88520 | E69: 함석공 | F69: 84839
B70: 착암공 | C70: 71788 | E70: 용접공 | F70: 96295
B71: 시험관련기사(시험사1급) | C71: 64499 | E71: 닥트공 | F71: 78099
B72: 시험관련산업기사(2급) | C72: 55000 | E72: 할석공 | F72: 90279
B73: 시험보조수 | C73: 52364
B74: 2007년 상반기 노임단가 | E74: 2007년 상반기 노임단가
B75: 철공 | C75: 97539 | E75: 플랜트용접공 | F75: 107520
B76: 철판공 | C76: 95084 | E76: 플랜트배관공 | F76: 104371
B77: 비계공 | C77: 103867 | E77: 플랜트제관공 | F77: 93412
B78: 조적공 | C78: 87613 | E78: 내선전공 | F78: 83961
B79: 미장공 | C79: 88300 | E79: 계장공 | F79: 95669
B80: 방수공 | C80: 72274 | E80: 목도공 | F80: 78738
B81: 콘크리트공 | C81: 93109 | E81: 특별인부 | F81: 74230
B82: 보일러공 | C82: 72717 | E82: 보통인부 | F82: 57820
B83: 배관공 | C83: 78893 | E83: 중기운전공(운반차) | F83: 67192
B84: 위생공 | C84: 73771 | E84: 윈치원전공(기계) | F84: 64667
B85: 보온공 | C85: 82684 | E85: 기계설치공 | F85: 81608
B86: 도장공 | C86: 88603 | E86: 함석공 | F86: 78814
B87: 착암공 | C87: 68984 | E87: 용접공 | F87: 92456
B88: 시험관련기사(시험사1급) | C88: 62273 | E88: 닥트공 | F88: 75664
B89: 시험관련산업기사(2급) | C89: 55319 | E89: 할석공 | F89: 88493
B90: 시험보조수 | C90: 48936
B92: 2006년 하반기 노임단가 | E92: 2006년 하반기 노임단가
B93: 철공 | C93: 92135 | E93: 플랜트용접공 | F93: 103978
B94: 철판공 | C94: 89096 | E94: 플랜트배관공 | F94: 104831
B95: 비계공 | C95: 101854 | E95: 플랜트제관공 | F95: 91288
B96: 조적공 | C96: 83561 | E96: 내선전공 | F96: 81852
B97: 미장공 | C97: 86273 | E97: 계장공 | F97: 95188
B98: 방수공 | C98: 69384 | E98: 목도공 | F98: 77108
B99: 콘크리트공 | C99: 91208 | E99: 특별인부 | F99: 72914
B100: 보일러공 | C100: 73557 | E100: 보통인부 | F100: 56822
B101: 배관공 | C101: 76816 | E101: 중기운전공(운반차) | F101: 68230
B102: 위생공 | C102: 75542 | E102: 윈치원전공(기계) | F102: 62728
B103: 보온공 | C103: 82701 | E103: 기계설치공 | F103: 79538
B104: 도장공 | C104: 83825 | E104: 함석공 | F104: 76455
B105: 착암공 | C105: 70899 | E105: 용접공 | F105: 90337
B106: 시험관련기사(시험사1급) | C106: 60962 | E106: 닥트공 | F106: 77596
B107: 시험관련산업기사(2급) | C107: 55319 | E107: 할석공 | F107: 91816
B108: 시험보조수 | C108: 43818
B110: 2005년 하반기 노임단가 | E110: 2005년 하반기 노임단가
B111: 철공 | C111: 93202 | E111: 플랜트용접공 | F111: 94966
B112: 철판공 | C112: 87581 | E112: 플랜트배관공 | F112: 95256
B113: 비계공 | C113: 97356 | E113: 플랜트제관공 | F113: 83153
B114: 조적공 | C114: 84806 | E114: 내선전공 | F114: 79955
B115: 미장공 | C115: 86978 | E115: 계장공 | F115: 89203
B116: 방수공 | C116: 69892 | E116: 목도공 | F116: 72756
B117: 콘크리트공 | C117: 88759 | E117: 특별인부 | F117: 67570
B118: 보일러공 | C118: 71069 | E118: 보통인부 | F118: 53090
B119: 배관공 | C119: 76209 | E119: 중기운전공(운반차) | F119: 65442
B120: 위생공 | C120: 73151 | E120: 윈치원전공(기계) | F120: 61373
B121: 보온공 | C121: 77097 | E121: 기계설치공 | F121: 72782
B122: 도장공 | C122: 82503 | E122: 함석공 | F122: 75000
B123: 착암공 | C123: 66437 | E123: 용접공 | F123: 89071
B124: 시험관련기사(시험사1급) | C124: 59551 | E124: 닥트공 | F124: 77757
B125: 시험관련산업기사(2급) | C125: 53040 | E125: 할석공 | F125: 90225
B126: 시험보조수 | C126: 43581
B127: 2005년 상반기 노임단가 | E127: 2005년 상반기 노임단가
B128: 철공 | C128: 94502 | E128: 플랜트용접공 | F128: 94448
B129: 철판공 | C129: 86533 | E129: 플랜트배관공 | F129: 94685
B130: 비계공 | C130: 95622 | E130: 플랜트제관공 | F130: 82689
B131: 조적공 | C131: 85554 | E131: 내선전공 | F131: 81196
B132: 미장공 | C132: 88863 | E132: 계장공 | F132: 88927
B133: 방수공 | C133: 70360 | E133: 목도공 | F133: 74772
B134: 콘크리트공 | C134: 90480 | E134: 특별인부 | F134: 66422
B135: 보일러공 | C135: 70093 | E135: 보통인부 | F135: 52585
B136: 배관공 | C136: 75046 | E136: 중기운전공(운반차) | F136: 65086
B137: 위생공 | C137: 73974 | E137: 윈치원전공(기계) | F137: 62252
B138: 보온공 | C138: 76656 | E138: 기계설치공 | F138: 71841
B139: 도장공 | C139: 81720 | E139: 함석공 | F139: 73732
B140: 착암공 | C140: 66491 | E140: 용접공 | F140: 87854
B141: 시험관련기사(시험사1급) | C141: 61181 | E141: 닥트공 | F141: 76871
B142: 시험관련산업기사(2급) | C142: 53040 | E142: 할석공 | F142: 89794
B143: 시험보조수 | C143: 43360
B145: 2004년 하반기 노임단가 | E145: 2004년 하반기 노임단가
B146: 철공 | C146: 94778 | E146: 플랜트용접공 | F146: 91065
B147: 철판공 | C147: 87376 | E147: 플랜트배관공 | F147: 93458
B148: 비계공 | C148: 95541 | E148: 플랜트제관공 | F148: 81260
B149: 조적공 | C149: 85568 | E149: 내선전공 | F149: 81127
B150: 미장공 | C150: 89016 | E150: 계장공 | F150: 86342
B151: 방수공 | C151: 70655 | E151: 목도공 | F151: 73434
B152: 콘크리트공 | C152: 90529 | E152: 특별인부 | F152: 66586
B153: 보일러공 | C153: 69773 | E153: 보통인부 | F153: 52565
B154: 배관공 | C154: 74921 | E154: 중기운전공(운반차) | F154: 65217
B155: 위생공 | C155: 74058 | E155: 윈치원전공(기계) | F155: 62251
B156: 보온공 | C156: 76164 | E156: 기계설치공 | F156: 72326
B157: 도장공 | C157: 81436 | E157: 함석공 | F157: 75930
B158: 착암공 | C158: 66640 | E158: 용접공 | F158: 87771
B159: 시험관련기사(시험사1급) | C159: 61469 | E159: 닥트공 | F159: 77834
B160: 시험관련산업기사(2급) | C160: 52027 | E160: 할석공 | F160: 91529
B161: 시험보조수 | C161: 42308
B162: 2004년 상반기 노임단가 | E162: 2004년 상반기 노임단가
B163: 철공 | C163: 90908 | E163: 플랜트용접공 | F163: 92780
B164: 철판공 | C164: 83753 | E164: 플랜트배관공 | F164: 94175
B165: 비계공 | C165: 97360 | E165: 플랜트제관공 | F165: 82426
B166: 조적공 | C166: 85904 | E166: 내선전공 | F166: 77372
B167: 미장공 | C167: 87223 | E167: 계장공 | F167: 83629
B168: 방수공 | C168: 70788 | E168: 목도공 | F168: 75609
B169: 콘크리트공 | C169: 88153 | E169: 특별인부 | F169: 66051
B170: 보일러공 | C170: 65972 | E170: 보통인부 | F170: 52374
B171: 배관공 | C171: 73508 | E171: 중기운전공(운반차) | F171: 63443
B172: 위생공 | C172: 73589 | E172: 윈치원전공(기계) | F172: 61525
B173: 보온공 | C173: 72946 | E173: 기계설치공 | F173: 69484
B174: 도장공 | C174: 82782 | E174: 함석공 | F174: 74277
B175: 착암공 | C175: 68402 | E175: 용접공 | F175: 82490
B176: 시험관련기사(시험사1급) | C176: 59796 | E176: 닥트공 | F176: 77551
B177: 시험관련산업기사(2급) | C177: 52266 | E177: 할석공 | F177: 87655
B178: 시험보조수 | C178: 40673
B180: 2003년 하반기 노임단가 | E180: 2003년 하반기 노임단가
B181: 철공 | C181: 85952 | E181: 플랜트용접공 | F181: 88116
B182: 철판공 | C182: 79446 | E182: 플랜트배관공 | F182: 90775
B183: 비계공 | C183: 97513 | E183: 플랜트제관공 | F183: 79159
B184: 조적공 | C184: 83302 | E184: 내선전공 | F184: 74199
B185: 미장공 | C185: 87975 | E185: 계장공 | F185: 82768
B186: 방수공 | C186: 66538 | E186: 목도공 | F186: 79926
B187: 콘크리트공 | C187: 87613 | E187: 특별인부 | F187: 67141
B188: 보일러공 | C188: 64560 | E188: 보통인부 | F188: 52483
B189: 배관공 | C189: 73514 | E189: 중기운전공(운반차) | F189: 64701
B190: 위생공 | C190: 69137 | E190: 윈치원전공(기계) | F190: 60879
B191: 보온공 | C191: 73286 | E191: 기계설치공 | F191: 68477
B192: 도장공 | C192: 77382 | E192: 함석공 | F192: 71725
B193: 착암공 | C193: 65785 | E193: 용접공 | F193: 81112
B194: 시험관련기사(시험사1급) | C194: 58923 | E194: 닥트공 | F194: 71982
B195: 시험관련산업기사(2급) | C195: 50133 | E195: 할석공 | F195: 89000
B196: 시험보조수 | C196: 37789
B197: 2003년 상반기 노임단가 | E197: 2003년 상반기 노임단가
B198: 철공 | C198: 85754 | E198: 플랜트용접공 | F198: 88312
B199: 철판공 | C199: 81995 | E199: 플랜트배관공 | F199: 89935
B200: 비계공 | C200: 93650 | E200: 플랜트제관공 | F200: 75035
B201: 조적공 | C201: 83651 | E201: 내선전공 | F201: 72268
B202: 미장공 | C202: 89051 | E202: 계장공 | F202: 79270
B203: 방수공 | C203: 69668 | E203: 목도공 | F203: 77076
B204: 콘크리트공 | C204: 90048 | E204: 특별인부 | F204: 65734
B205: 보일러공 | C205: 62087 | E205: 보통인부 | F205: 50683
B206: 배관공 | C206: 76823 | E206: 중기운전공(운반차) | F206: 61857
... 72 more rows

Sheet 표지 (hidden)
A6: 내 역 서
A8: [ 공사명 : 감포초등학교 급식소 증축기계설비공사 ]
C10: ( 기 계 설 비 )
A17: 2019. 11
A22: 발주처 : 경상북도 경주교육지원청
A31: 내 역 서
A33: =A8 -> [ 공사명 : 감포초등학교 급식소 증축기계설비공사 ]
C35: ( 관 급 자 재 )
A42: =A17 -> 2019. 11
A47: =A22 -> 발주처 : 경상북도 경주교육지원청
A62: 일 위 대 가
A64: =A33 -> [ 공사명 : 감포초등학교 급식소 증축기계설비공사 ]
C66: =C10 -> ( 기 계 설 비 )
A73: =A42 -> 2019. 11
A78: =A22 -> 발주처 : 경상북도 경주교육지원청
A90: 단 가 대 비 표
A92: =A8 -> [ 공사명 : 감포초등학교 급식소 증축기계설비공사 ]
C94: =C10 -> ( 기 계 설 비 )
A101: =A17 -> 2019. 11
A106: =A22 -> 발주처 : 경상북도 경주교육지원청
A118: 노 임 집 계 표
A120: =A8 -> [ 공사명 : 감포초등학교 급식소 증축기계설비공사 ]
C122: =C10 -> ( 기 계 설 비 )
A129: =A17 -> 2019. 11
A134: =A22 -> 발주처 : 경상북도 경주교육지원청
A146: 공 종 별 집 계 표
A148: =A186 -> [ 공사명 : 감포초등학교 급식소 증축기계설비공사 ]
C150: =C188 -> ( 기 계 설 비 )
A157: =A195 -> 2019. 11
A162: =A200 -> 발주처 : 경상북도 경주교육지원청
A184: 산 출 근 거
A186: =A8 -> [ 공사명 : 감포초등학교 급식소 증축기계설비공사 ]
C188: =C10 -> ( 기 계 설 비 )
A195: =A129 -> 2019. 11
A200: =A22 -> 발주처 : 경상북도 경주교육지원청
A211: 산 출 근 거
C215: ( 작 업 부 산 물)
A244: 견 적 서
A246: =A186 -> [ 공사명 : 감포초등학교 급식소 증축기계설비공사 ]
C248: =C10 -> ( 기 계 설 비 )
A255: =A195 -> 2019. 11
A260: =A200 -> 발주처 : 경상북도 경주교육지원청

Sheet 갑지 (hidden)
B1: 설 계 서 용 지 (갑 지)
B2: 과 장 | D2: 팀 장 | F2: 심사자 | H2: 설계자 | J2: 2021 년 12 월 일 설계
C4: 2 0 2 1 년 도
D6: ='원가계산서(당초)'!B6 -> ##공사명 : 부산맹학교 스프링클러설치 소화설비 공사
D8: 공 사 개 요 : | F8: 스프링클러 설치에 따른 기계소방 및 전기소방공사
D11: 총 공 사 비 : | F11: ￦ | G11: =I19 -> 1866461000 | I11: ="(일금"&NUMBERSTRING(G11,1)&"원정)" -> (일금일십팔억육천육백사십육만일천원정)
D13: 기 계 소 방 : | G13: 1 식 | H13: ￦ | I13: ='원가계산서(당초)'!E31 -> 1580865000
D15: 전 기 소 방 : | G15: 1 식 | H15: ￦ | I15: 285596000
D17: 관 급 자 재 : | G17: 1 식 | H17: ￦ | I17: ='원가계산서(당초)'!E32 -> 0
D19: 계 : | H19: ￦ | I19: =I13+I17+I15 -> 1866461000

Sheet 내역서
A1: 에너지경제연구원 냉난방시설(GHP) 실외기 구매 | L1: (금액단위 : 원, 부가가치세 포함)
A2: 품 명 | B2: 규 격 | C2: 단위 | D2: 수량 | E2: 재료비 | G2: 노무비 | I2: 경비 | K2: 합 계 | L2: 비 고
E3: 단가 | F3: 금액 | G3: 단가 | H3: 금액 | I3: 단가 | J3: 금액
A5: 실외기
A6: - GHP실외기(20HP) | B6: 가스엔진히트펌프, 냉방56/난방63kw | C6: 대 | D6: 4 | L6: 하차도
A7: - GHP실외기(25HP) | B7: 가스엔진히트펌프, 냉방71/난방80kw | C7: 대 | D7: 10 | L7: 하차도
A8: - 배기가스 저감장치 | C8: 대 | D8: 14 | L8: GHP 실외기와 1:1 Pair로 운영
A9: 합 계 | L9: vat포함

Sheet 원가계산서(당초) (hidden)
B3: 공 사 원 가 계 산 서
B6: ##공사명 : 부산맹학교 스프링클러설치 소화설비 공사
B7: 비 목 | D7: 구 분 | E7: 금 액 | F7: 구 성 비 | J7: 비 고
B8: 순 공 사 원 가 | C8: 재료비 | D8: 재 료 비 | E8: =#REF! -> 
D9: 부 산 물
D10: 소 계 | E10: 585329019
C11: 노무비 | D11: 직접노무비 | E11: =#REF! -> 
D12: 간접노무비 | E12: 56800151 | F12: =E11 ->  | G12: x | H12: 13 | I12: %
D13: 소 계 | E13: 493724396
C14: 경 비 | D14: 기 계 경 비 | E14: =#REF! -> 
D15: 산재보험료 | E15: 18267802 | F15: =$E$13 -> 493724396 | G15: x | H15: 3.7 | I15: % | J15: 노무비
D16: 안전관리비 | E16: 29952020 | F16: =$E$8+$E$11 ->  | G16: x | H16: 2.93 | I16: % | J16: 재+직노 | L16: 총공사금액 2천만원이상
D17: 기 타 경 비 | E17: 62585098 | F17: =$E$10+$E$13 -> 1079053415 | G17: x | H17: 5.8 | I17: % | J17: (전기,수도, 기타 광열비 포함)
D18: 고용보험료 | E18: 4986616 | F18: =$E$13 -> 493724396 | G18: x | H18: 1.01 | I18: % | J18: 노무비
D19: 환경보전비 | F19: =$E$10+$E$11+$E$14 ->  | G19: x | H19: 0.5 | I19: % | J19: 재+직노+기경 | L19: 소방시설공사는 제외
D20: 퇴직공제부금 | E20: 10049257 | F20: =$E$11 ->  | G20: x | H20: 2.3 | I20: % | J20: 직노 | L20: 1억이상시 해당☞
D21: 연금보험료 | E21: 19661591 | F21: =$E$11 ->  | G21: x | H21: 4.5 | I21: % | J21: 직노 | L21: 공사기간1개월이상 해당
D22: 건강보험료 | E22: 14986501 | F22: =$E$11 ->  | G22: x | H22: 3.495 | I22: % | J22: 직노 | L22: 공사기간1개월이상 해당
D23: 노인장기요양 보험료 | E23: 1726444 | F23: =$E$22 -> 14986501 | G23: x | H23: 12.27 | I23: % | J23: 건강보험료 | L23: 공사기간1개월이상 해당
D24: 소 계 | E24: 171932468
C25: 합 계 | E25: 1250985883
B26: 일 반 관 리 비 | E26: 75059152 | F26: =E25 -> 1250985883 | G26: x | H26: 6 | I26: % | J26: 재+직노+경비
B27: 누 계 | E27: 1326045035
B28: 이 윤 | E28: 111104965 | F28: =E13+E24+E26 -> 740716016 | G28: x | H28: 15 | I28: % | J28: 노무비+경비+일관
B29: 총 원 가 | E29: 1437150000
B30: 부 가 가 치 세 | E30: 143715000
B31: 합 계 | E31: 1580865000
B32: 물탱크 구매. 설치
B33: 시 설 분 담 금
B34: 총 합 계
D36: 당초금액 | E36: 1608336100

Sheet 4.부대공사 (hidden)
A2: =#REF! -> 
A3: =#REF! -> 
A4: 품 명 | B4: 규 격 | C4: 수량 | D4: 단위 | E4: 재 료 비 | G4: 노 무 비 | I4: 경 비 | K4: 합 계 | M4: 비 고
E5: 단 가 | F5: 금 액 | G5: 단 가 | H5: 금 액 | I5: 단 가 | J5: 금 액 | K5: 단 가 | L5: 금 액
F6: =TRUNC($C6*E6) -> 0 | H6: =TRUNC($C6*G6) -> 0 | J6: =TRUNC($C6*I6) -> 0 | K6: =I6+G6+E6 -> 0 | L6: =TRUNC($C6*K6) -> 0
F7: 0 | H7: 0 | J7: 0 | K7: 0 | L7: 0
F8: 0 | H8: 0 | J8: 0 | K8: 0 | L8: 0
F9: 0 | H9: 0 | J9: 0 | K9: =I9+G9+E9 -> 0 | L9: =TRUNC($C9*K9) -> 0
F10: 0 | H10: 0 | J10: 0 | K10: 0 | L10: 0
F11: 0 | H11: 0 | J11: 0 | K11: 0 | L11: 0
F12: 0 | H12: 0 | J12: 0 | K12: 0 | L12: 0
F13: 0 | H13: 0 | J13: 0 | K13: 0 | L13: 0
F14: =TRUNC($C14*E14) -> 0 | H14: =TRUNC($C14*G14) -> 0 | J14: =TRUNC($C14*I14) -> 0 | K14: =I14+G14+E14 -> 0 | L14: =TRUNC($C14*K14) -> 0
F15: 0 | H15: 0 | J15: 0 | K15: 0 | L15: 0
F16: 0 | H16: 0 | J16: 0 | K16: 0 | L16: 0
F17: 0 | H17: 0 | J17: 0 | K17: =I17+G17+E17 -> 0 | L17: =TRUNC($C17*K17) -> 0
F18: 0 | H18: 0 | J18: 0 | K18: 0 | L18: 0
F19: 0 | H19: 0 | J19: 0 | K19: 0 | L19: 0
F20: 0 | H20: 0 | J20: 0 | K20: 0 | L20: 0
F21: 0 | H21: 0 | J21: 0 | K21: 0 | L21: 0
F22: 0 | H22: 0 | J22: 0 | K22: =I22+G22+E22 -> 0 | L22: =TRUNC($C22*K22) -> 0
F23: =TRUNC($C23*E23) -> 0 | K23: 0 | L23: 0
A24: 소 계 | F24: =SUM(F6:F23) -> 0 | H24: =SUM(H6:H23) -> 0 | J24: =SUM(J6:J23) -> 0 | L24: =SUM(L6:L23) -> 0

Sheet 2.부대공사 (hidden)
A2: =#REF! -> 
A3: =#REF! -> 
A4: 품 명 | B4: 규 격 | C4: 수량 | D4: 단위 | E4: 재 료 비 | G4: 노 무 비 | I4: 경 비 | K4: 합 계 | M4: 비 고
E5: 단 가 | F5: 금 액 | G5: 단 가 | H5: 금 액 | I5: 단 가 | J5: 금 액 | K5: 단 가 | L5: 금 액
F6: =TRUNC($C6*E6) -> 0 | H6: =TRUNC($C6*G6) -> 0 | J6: =TRUNC($C6*I6) -> 0 | K6: =I6+G6+E6 -> 0 | L6: =TRUNC($C6*K6) -> 0
A7: 소 계 | F7: =SUM(F6:F6) -> 0 | H7: =SUM(H6:H6) -> 0 | J7: =SUM(J6:J6) -> 0 | L7: =SUM(L6:L6) -> 0

Sheet 1.소화설비공사 (3) (hidden)
A2: ='원가계산서(당초)'!B6 -> ##공사명 : 부산맹학교 스프링클러설치 소화설비 공사
A3: =#REF! -> 
A4: 품 명 | B4: 규 격 | C4: 수량 | D4: 단위 | E4: 재 료 비 | G4: 노 무 비 | I4: 경 비 | K4: 합 계 | M4: 비 고
E5: 단 가 | F5: 금 액 | G5: 단 가 | H5: 금 액 | I5: 단 가 | J5: 금 액 | K5: 단 가 | L5: 금 액
A6: 스프링클러 주펌프(전동,수직다단) | B6: 100A* 37KW,듀크 XRF95-3-1동등이상품 | C6: 1 | D6: 조 | E6: =#REF! ->  | F6: =TRUNC($C6*E6) ->  | H6: 0 | J6: 0 | K6: =I6+G6+E6 -> 
A7: 스프링클러 주펌프(엔진,수직다단) | B7: 100A* 37KW,듀크 XRF95-3-1동등이상품 | C7: 1 | D7: 조 | E7: =#REF! ->  | H7: 0 | J7: 0 | K7: =I7+G7+E7 -> 
A8: 스프링클러 충압펌프 | B8: 수직다단, 32A* 3.7KW | C8: 1 | D8: 조 | E8: =#REF! ->  | H8: 0 | J8: 0
A9: 전자식 압력스위치 | B9: 10KG | C9: 1 | D9: 대 | E9: =#REF! ->  | H9: 0 | J9: 0
A10: 스텐레스 관 | B10: 150A x 3.5t | C10: 138 | D10: M | E10: =#REF! ->  | H10: 0 | J10: 0
A11: 스텐레스 관 | B11: 125A x 3.5t | C11: 894 | D11: M | E11: =#REF! ->  | H11: 0 | J11: 0
A12: 스텐레스 관 | B12: 100A x 3.0t | C12: 468 | D12: M | E12: =#REF! ->  | H12: 0 | J12: 0
A13: 스텐레스 관 | B13: 80A x 3.0t | C13: 78 | D13: M | E13: =#REF! ->  | H13: 0 | J13: 0
A14: 스텐레스 관 | B14: 65A x 3.0t | C14: 42 | D14: M | E14: =#REF! ->  | H14: 0 | J14: 0
A15: 스텐레스 관 | B15: 50A x 2.5t | C15: 270 | D15: M | E15: =#REF! ->  | H15: 0 | J15: 0
A16: 스텐레스 관 | B16: 40A x 2.5t | C16: 918 | D16: M | E16: =#REF! ->  | H16: 0 | J16: 0
A17: 스텐레스 관 | B17: 32A x 2.5t | C17: 1266 | D17: M | E17: =#REF! ->  | H17: 0 | J17: 0
A18: 스텐레스 관 | B18: 25A x 2.5t | C18: 3648 | D18: M | E18: =#REF! ->  | H18: 0 | J18: 0
A19: 스텐렌스 엘보 | B19: 150A 용접식 S10S | C19: 30 | D19: EA | E19: =#REF! ->  | H19: 0 | J19: 0
A20: 스텐렌스 엘보 | B20: 100A 용접식 S10S | C20: 11 | D20: EA | E20: =#REF! ->  | H20: 0 | J20: 0
A21: 스텐렌스 엘보 | B21: 65A 용접식 S10S | C21: 8 | D21: EA | E21: =#REF! ->  | H21: 0 | J21: 0
A22: 스텐렌스 엘보 | B22: 50A 용접식 S10S | C22: 5 | D22: EA | E22: =#REF! ->  | H22: 0 | J22: 0
A23: 스텐렌스 엘보 | B23: 25A 용접식 S10S | C23: 2 | D23: EA | E23: =#REF! ->  | H23: 0 | J23: 0
A24: 스텐렌스 티이 | B24: 150A 용접식 S10S | C24: 20 | D24: EA | E24: =#REF! ->  | H24: 0 | J24: 0
A25: 스텐렌스 티이 | B25: 50A 용접식 S10S | C25: 3 | D25: EA | E25: =#REF! ->  | H25: 0 | J25: 0
A26: 스텐렌스 레듀셔 | B26: 100A x 40A 용접식 S10S | C26: 1 | D26: EA | E26: =#REF! ->  | H26: 0 | J26: 0
A27: 스텐렌스 레듀셔 | B27: 50A x 32A 용접식 S10S | C27: 1 | D27: EA | E27: =#REF! ->  | H27: 0 | J27: 0
A28: 스텐레스 캡 | B28: 150A 용접식 S10S | C28: 2 | D28: EA | E28: =#REF! ->  | H28: 0 | J28: 0
A29: 스텐렌스 엘보 | B29: 50A 나사식 | C29: 8 | D29: EA | E29: =#REF! ->  | H29: 0 | J29: 0
A30: 스텐렌스 엘보 | B30: 40A 나사식 | C30: 16 | D30: EA | E30: =#REF! ->  | H30: 0 | J30: 0
A31: 스텐렌스 엘보 | B31: 25A 나사식 | C31: 25 | D31: EA | E31: =#REF! ->  | H31: 0 | J31: 0
A32: 스텐레스 티이 | B32: 50A 나사식 | C32: 4 | D32: EA | E32: =#REF! ->  | H32: 0 | J32: 0
A33: 스텐레스 티이 | B33: 25A 나사식 | C33: 5 | D33: EA | E33: =#REF! ->  | H33: 0 | J33: 0
A34: 스텐레스 니플 | B34: 50A 나사식 | C34: 1 | D34: EA | E34: =#REF! ->  | H34: 0 | J34: 0
A35: 스텐레스 니플 | B35: 25A 나사식 | C35: 6 | D35: EA | E35: =#REF! ->  | H35: 0 | J35: 0
A36: 스텐레스 캡 | B36: 50A 나사식 | C36: 1 | D36: EA | E36: =#REF! ->  | H36: 0 | J36: 0
A37: 스텐레스 유니온 | B37: 25A 나사식 | C37: 6 | D37: EA | E37: =#REF! ->  | H37: 0 | J37: 0
A38: 스텐렌스 레듀셔 | B38: 25A 나사식 | C38: 95 | D38: EA | E38: =#REF! ->  | H38: 0 | J38: 0
A39: 스텐렌스 레듀셔 | B39: 50A 나사식 | C39: 1 | D39: EA | E39: =#REF! ->  | H39: 0 | J39: 0
A40: 스텐레스 후렌지 | B40: 150A (합)10KG | C40: 23 | D40: EA | E40: ='일위대가목록(21년 하반기)'!$F$155 -> 62278 | F40: 1432394 | G40: ='일위대가목록(21년 하반기)'!$G$155 -> 53293 | H40: 1225739 | I40: ='일위대가목록(21년 하반기)'!$H$155 -> 1065 | J40: 24495 | K40: 116636 | L40: 2682628 | M40: ='일위대가목록(21년 하반기)'!$B$155 -> 150호표
A41: 스텐레스 후렌지 | B41: 125A (합)10KG | C41: 8 | D41: EA | E41: ='일위대가목록(21년 하반기)'!$F$154 -> 50549 | F41: 404392 | G41: ='일위대가목록(21년 하반기)'!$G$154 -> 45910 | H41: 367280 | I41: ='일위대가목록(21년 하반기)'!$H$154 -> 918 | J41: 7344 | K41: 97377 | L41: 779016 | M41: ='일위대가목록(21년 하반기)'!$B$154 -> 149호표
A42: 스텐레스 후렌지 | B42: 100A (합)10KG | C42: 14 | D42: EA | E42: ='일위대가목록(21년 하반기)'!$F$153 -> 32558 | F42: 455812 | G42: ='일위대가목록(21년 하반기)'!$G$153 -> 38527 | H42: 539378 | I42: ='일위대가목록(21년 하반기)'!$H$153 -> 770 | J42: 10780 | K42: 71855 | L42: 1005970 | M42: ='일위대가목록(21년 하반기)'!$B$153 -> 148호표
A43: 스텐레스 후렌지 | B43: 65A (합)10KG | C43: 12 | D43: EA | E43: ='일위대가목록(21년 하반기)'!$F$151 -> 22217 | F43: 266604 | G43: ='일위대가목록(21년 하반기)'!$G$151 -> 27454 | H43: 329448 | I43: ='일위대가목록(21년 하반기)'!$H$151 -> 549 | J43: 6588 | K43: 50220 | L43: 602640 | M43: ='일위대가목록(21년 하반기)'!$B$151 -> 146호표
A44: 스텐레스 후렌지 | B44: 50A (합)10KG | C44: 7 | D44: EA | E44: ='일위대가목록(21년 하반기)'!$F$150 -> 16178 | F44: 113246 | G44: ='일위대가목록(21년 하반기)'!$G$150 -> 22839 | H44: 159873 | I44: ='일위대가목록(21년 하반기)'!$H$150 -> 456 | J44: 3192 | K44: 39473 | L44: 276311 | M44: ='일위대가목록(21년 하반기)'!$B$150 -> 145호표
A45: 스텐레스 후렌지 | B45: 65A (조)10KG | C45: 2 | D45: 조 | E45: ='일위대가목록(21년 하반기)'!$F$166 -> 42079 | F45: 84158 | G45: ='일위대가목록(21년 하반기)'!$G$166 -> 54908 | H45: 109816 | I45: ='일위대가목록(21년 하반기)'!$H$166 -> 1098 | J45: 2196 | K45: 98085 | L45: 196170 | M45: ='일위대가목록(21년 하반기)'!$B$166 -> 161호표
A46: 스 텐 레 스 알 곤 용 접 | B46: 150A | C46: 122 | D46: 개소 | E46: ='일위대가목록(21년 하반기)'!$F$70 -> 12008 | F46: 1464976 | G46: ='일위대가목록(21년 하반기)'!$G$70 -> 53293 | H46: 6501746 | I46: ='일위대가목록(21년 하반기)'!$H$70 -> 1065 | J46: 129930 | K46: 66366 | L46: 8096652 | M46: ='일위대가목록(21년 하반기)'!$B$70 -> 65호표
A47: 스 텐 레 스 알 곤 용 접 | B47: 100A | C47: 26 | D47: 개소 | E47: ='일위대가목록(21년 하반기)'!$F$68 -> 6381 | F47: 165906 | G47: ='일위대가목록(21년 하반기)'!$G$68 -> 38527 | H47: 1001702 | I47: ='일위대가목록(21년 하반기)'!$H$68 -> 770 | J47: 20020 | K47: 45678 | L47: 1187628 | M47: ='일위대가목록(21년 하반기)'!$B$68 -> 63호표
A48: 스 텐 레 스 알 곤 용 접 | B48: 65A | C48: 16 | D48: 개소 | E48: ='일위대가목록(21년 하반기)'!$F$66 -> 3287 | F48: 52592 | G48: ='일위대가목록(21년 하반기)'!$G$66 -> 27454 | H48: 439264 | I48: ='일위대가목록(21년 하반기)'!$H$66 -> 549 | J48: 8784 | K48: 31290 | L48: 500640 | M48: ='일위대가목록(21년 하반기)'!$B$66 -> 61호표
A49: 스 텐 레 스 알 곤 용 접 | B49: 50A | C49: 21 | D49: 개소 | E49: ='일위대가목록(21년 하반기)'!$F$65 -> 1692 | F49: 35532 | G49: ='일위대가목록(21년 하반기)'!$G$65 -> 22839 | H49: 479619 | I49: ='일위대가목록(21년 하반기)'!$H$65 -> 456 | J49: 9576 | K49: 24987 | L49: 524727 | M49: ='일위대가목록(21년 하반기)'!$B$65 -> 60호표
A50: 스 텐 레 스 알 곤 용 접 | B50: 32A | C50: 1 | D50: 개소 | E50: ='일위대가목록(21년 하반기)'!$F$63 -> 934 | F50: 934 | G50: ='일위대가목록(21년 하반기)'!$G$63 -> 17764 | H50: 17764 | I50: ='일위대가목록(21년 하반기)'!$H$63 -> 355 | J50: 355 | K50: 19053 | L50: 19053 | M50: ='일위대가목록(21년 하반기)'!$B$63 -> 58호표
A51: 스 텐 레 스 알 곤 용 접 | B51: 25A | C51: 7 | D51: 개소 | E51: ='일위대가목록(21년 하반기)'!$F$62 -> 769 | F51: 5383 | G51: ='일위대가목록(21년 하반기)'!$G$62 -> 15226 | H51: 106582 | I51: ='일위대가목록(21년 하반기)'!$H$62 -> 304 | J51: 2128 | K51: 16299 | L51: 114093 | M51: ='일위대가목록(21년 하반기)'!$B$62 -> 57호표
A52: 스 텐 레 스 알 곤 용 접 | B52: 20A | C52: 1 | D52: 개소 | E52: ='일위대가목록(21년 하반기)'!$F$61 -> 547 | F52: 547 | G52: ='일위대가목록(21년 하반기)'!$G$61 -> 13150 | H52: 13150 | I52: ='일위대가목록(21년 하반기)'!$H$61 -> 263 | J52: 263 | K52: 13960 | L52: 13960 | M52: ='일위대가목록(21년 하반기)'!$B$61 -> 56호표
A53: 스 텐 레 스 알 곤 용 접 | B53: 15A | C53: 3 | D53: 개소 | E53: ='일위대가목록(21년 하반기)'!$F$60 -> 349 | F53: 1047 | G53: ='일위대가목록(21년 하반기)'!$G$60 -> 11535 | H53: 34605 | I53: ='일위대가목록(21년 하반기)'!$H$60 -> 230 | J53: 690 | K53: 12114 | L53: 36342 | M53: ='일위대가목록(21년 하반기)'!$B$60 -> 55호표
A54: 스텐렌스 엘보 | B54: 150A 그루브 식 | C54: 30 | D54: EA | E54: =#REF! ->  | H54: 0 | J54: 0
A55: 스텐렌스 엘보 | B55: 125A 그루브 식 | C55: 17 | D55: EA | E55: =#REF! ->  | H55: 0 | J55: 0
A56: 스텐렌스 엘보 | B56: 100A 그루브 식 | C56: 9 | D56: EA | E56: =#REF! ->  | H56: 0 | J56: 0
A57: 스텐렌스 엘보 | B57: 80A 그루브 식 | C57: 4 | D57: EA | E57: =#REF! ->  | H57: 0 | J57: 0
A58: 스텐렌스 엘보 | B58: 65A 그루브 식 | C58: 1 | D58: EA | E58: =#REF! ->  | H58: 0 | J58: 0
A59: 스텐렌스 엘보 | B59: 50A 그루브 식 | C59: 6 | D59: EA | E59: =#REF! ->  | H59: 0 | J59: 0
A60: 스텐렌스 엘보 | B60: 40A 그루브 식 | C60: 2 | D60: EA | E60: =#REF! ->  | H60: 0 | J60: 0
A61: 스텐렌스 엘보 | B61: 25A 그루브 식 | C61: 2455 | D61: EA | E61: =#REF! ->  | H61: 0 | J61: 0
A62: 스텐렌스 티이 | B62: 150A 그루브 식 | C62: 15 | D62: EA | E62: =#REF! ->  | H62: 0 | J62: 0
A63: 스텐렌스 티이 | B63: 125A 그루브 식 | C63: 301 | D63: EA | E63: =#REF! ->  | H63: 0 | J63: 0
A64: 스텐렌스 티이 | B64: 100A 그루브 식 | C64: 94 | D64: EA | E64: =#REF! ->  | H64: 0 | J64: 0
A65: 스텐렌스 티이 | B65: 80A 그루브 식 | C65: 17 | D65: EA | E65: =#REF! ->  | H65: 0 | J65: 0
A66: 스텐렌스 티이 | B66: 65A 그루브 식 | C66: 5 | D66: EA | E66: =#REF! ->  | H66: 0 | J66: 0
A67: 스텐렌스 티이 | B67: 50A 그루브 식 | C67: 41 | D67: EA | E67: =#REF! ->  | H67: 0 | J67: 0
A68: 스텐렌스 티이 | B68: 40A 그루브 식 | C68: 184 | D68: EA | E68: =#REF! ->  | H68: 0 | J68: 0
A69: 스텐렌스 티이 | B69: 32A 그루브 식 | C69: 288 | D69: EA | E69: =#REF! ->  | H69: 0 | J69: 0 | L69: =TRUNC($C69*K69) -> 
A70: 스텐렌스 티이 | B70: 25A 그루브 식 | C70: 770 | D70: EA | E70: =#REF! ->  | F70: =TRUNC($C70*E70) ->  | H70: 0 | J70: 0
A71: 스텐렌스 레듀셔 | B71: 100A 그루브 식 | C71: 1 | D71: EA | E71: =#REF! ->  | H71: 0 | J71: 0 | K71: =I71+G71+E71 -> 
A72: 스텐렌스 레듀셔 | B72: 50A 그루브 식 | C72: 18 | D72: EA | E72: =#REF! ->  | H72: 0 | J72: 0
A73: 스텐렌스 레듀셔 | B73: 40A 그루브 식 | C73: 151 | D73: EA | E73: =#REF! ->  | H73: 0 | J73: 0
A74: 스텐렌스 레듀셔 | B74: 32A 그루브 식 | C74: 290 | D74: EA | E74: =#REF! ->  | H74: 0 | J74: 0
A75: 스텐레스 캡 | B75: 150A 그루브 식 | C75: 5 | D75: EA | E75: =#REF! ->  | H75: 0 | J75: 0
A76: 스텐레스 캡 | B76: 25A 그루브 식 | C76: 417 | D76: EA | E76: =#REF! ->  | H76: 0 | J76: 0
A77: 스텐레스 후렌지 | B77: 150A 그루브(합)10KG | C77: 20 | D77: 조 | E77: ='일위대가목록(21년 하반기)'!$F$516 ->  | G77: ='일위대가목록(21년 하반기)'!$G$516 -> 0 | H77: 0 | I77: ='일위대가목록(21년 하반기)'!$H$516 -> 0 | J77: 0 | M77: ='일위대가목록(21년 하반기)'!$B$516 -> 511호표
A78: 스텐레스 후렌지 | B78: 125A 그루브(합)10KG | C78: 14 | D78: 조 | E78: ='일위대가목록(21년 하반기)'!$F$517 ->  | G78: ='일위대가목록(21년 하반기)'!$G$517 -> 0 | H78: 0 | I78: ='일위대가목록(21년 하반기)'!$H$517 -> 0 | J78: 0 | M78: ='일위대가목록(21년 하반기)'!$B$517 -> 512호표
A79: 스텐레스 후렌지 | B79: 100A 그루브(합)10KG | C79: 3 | D79: 조 | E79: ='일위대가목록(21년 하반기)'!$F$518 ->  | G79: ='일위대가목록(21년 하반기)'!$G$518 -> 0 | H79: 0 | I79: ='일위대가목록(21년 하반기)'!$H$518 -> 0 | J79: 0 | M79: ='일위대가목록(21년 하반기)'!$B$518 -> 513호표
A80: 스텐레스 후렌지 | B80: 80A 그루브(합)10KG | C80: 2 | D80: 조 | E80: ='일위대가목록(21년 하반기)'!$F$519 ->  | G80: ='일위대가목록(21년 하반기)'!$G$519 -> 0 | H80: 0 | I80: ='일위대가목록(21년 하반기)'!$H$519 -> 0 | J80: 0 | M80: ='일위대가목록(21년 하반기)'!$B$519 -> 514호표
A81: 스텐레스 후렌지 | B81: 65A 그루브(합)10KG | C81: 1 | D81: 조 | E81: ='일위대가목록(21년 하반기)'!$F$520 ->  | G81: ='일위대가목록(21년 하반기)'!$G$520 -> 0 | H81: 0 | I81: ='일위대가목록(21년 하반기)'!$H$520 -> 0 | J81: 0 | M81: ='일위대가목록(21년 하반기)'!$B$520 -> 515호표
A82: 스텐레스 후렌지 | B82: 50A 그루브(합)10KG | C82: 1 | D82: 조 | E82: ='일위대가목록(21년 하반기)'!$F$521 ->  | G82: ='일위대가목록(21년 하반기)'!$G$521 -> 0 | H82: 0 | I82: ='일위대가목록(21년 하반기)'!$H$521 -> 0 | J82: 0 | M82: ='일위대가목록(21년 하반기)'!$B$521 -> 516호표
A83: 스텐레스 후렌지 | B83: 40A 그루브(합)10KG | C83: 1 | D83: 조 | E83: ='일위대가목록(21년 하반기)'!$F$522 ->  | G83: ='일위대가목록(21년 하반기)'!$G$522 -> 0 | H83: 0 | I83: ='일위대가목록(21년 하반기)'!$H$522 -> 0 | J83: 0 | M83: ='일위대가목록(21년 하반기)'!$B$522 -> 517호표
A84: 스텐레스 글루브 죠인트 | B84: 150A | C84: 95 | D84: EA | E84: =#REF! ->  | H84: 0 | J84: 0
A85: 스텐레스 글루브 죠인트 | B85: 125A | C85: 687 | D85: EA | E85: =#REF! ->  | H85: 0 | J85: 0
A86: 스텐레스 글루브 죠인트 | B86: 100A | C86: 251 | D86: EA | E86: =#REF! ->  | H86: 0 | J86: 0
A87: 스텐레스 글루브 죠인트 | B87: 80A | C87: 44 | D87: EA | E87: =#REF! ->  | H87: 0 | J87: 0
A88: 스텐레스 글루브 죠인트 | B88: 65A | C88: 13 | D88: EA | E88: =#REF! ->  | H88: 0 | J88: 0
A89: 스텐레스 글루브 죠인트 | B89: 50A | C89: 139 | D89: EA | E89: =#REF! ->  | H89: 0 | J89: 0
A90: 스텐레스 글루브 죠인트 | B90: 40A | C90: 687 | D90: EA | E90: =#REF! ->  | H90: 0 | J90: 0
A91: 스텐레스 글루브 죠인트 | B91: 32A | C91: 1157 | D91: EA | E91: =#REF! ->  | H91: 0 | J91: 0
A92: 스텐레스 글루브 죠인트 | B92: 25A | C92: 9384 | D92: EA | E92: =#REF! ->  | H92: 0 | J92: 0
A93: 백 강관(KSD-3507) | B93: 100A | C93: 18 | D93: M | E93: =#REF! ->  | H93: 0 | J93: 0 | N93: 연도
A94: 백 엘보 | B94: 100A 용접용 | C94: 2 | D94: EA | E94: =#REF! ->  | H94: 0 | J94: 0 | N94: 연도
A95: 강 후렌지 | B95: 100A (합) 10㎏ | C95: 1 | D95: 조 | E95: ='일위대가목록(21년 하반기)'!$F$97 -> 12056 | F95: 12056 | G95: ='일위대가목록(21년 하반기)'!$G$97 -> 35067 | H95: 35067 | I95: ='일위대가목록(21년 하반기)'!$H$97 -> 701 | J95: 701 | K95: 47824 | L95: 47824 | M95: ='일위대가목록(21년 하반기)'!$B$97 -> 92호표 | N95: 연도
A96: 강 관 용 접 | B96: 100A | C96: 4 | D96: 개소 | E96: ='일위대가목록(21년 하반기)'!$F$40 -> 833 | F96: 3332 | G96: ='일위대가목록(21년 하반기)'!$G$40 -> 35067 | H96: 140268 | I96: ='일위대가목록(21년 하반기)'!$H$40 -> 701 | J96: 2804 | K96: 36601 | L96: 146404 | M96: ='일위대가목록(21년 하반기)'!$B$40 -> 35호표
A97: 실내 배관보온 | B97: 150A x 40t 가교발포 | C97: 122 | D97: M | E97: ='일위대가목록(21년 하반기)'!$F$266 -> 16082 | F97: 1962004 | G97: ='일위대가목록(21년 하반기)'!$G$266 -> 28500 | H97: 3477000 | I97: ='일위대가목록(21년 하반기)'!$H$266 -> 570 | J97: 69540 | K97: 45152 | L97: 5508544 | M97: ='일위대가목록(21년 하반기)'!$B$266 -> 261호표
A98: 실내 배관보온 | B98: 125A x 40t 가교발포 | C98: 812 | D98: M | E98: ='일위대가목록(21년 하반기)'!$F$265 -> 13204 | F98: 10721648 | G98: ='일위대가목록(21년 하반기)'!$G$265 -> 24511 | H98: 19902932 | I98: ='일위대가목록(21년 하반기)'!$H$265 -> 490 | J98: 397880 | K98: 38205 | L98: 31022460 | M98: ='일위대가목록(21년 하반기)'!$B$265 -> 260호표
A99: 실내 배관보온 | B99: 100A x 40t 가교발포 | C99: 397 | D99: M | E99: ='일위대가목록(21년 하반기)'!$F$264 -> 10281 | F99: 4081557 | G99: ='일위대가목록(21년 하반기)'!$G$264 -> 20378 | H99: 8090066 | I99: ='일위대가목록(21년 하반기)'!$H$264 -> 407 | J99: 161579 | K99: 31066 | L99: 12333202 | M99: ='일위대가목록(21년 하반기)'!$B$264 -> 259호표
A100: 실내 배관보온 | B100: 80A x 25t 가교발포 | C100: 70 | D100: M | E100: ='일위대가목록(21년 하반기)'!$F$250 -> 5297 | F100: 370790 | G100: ='일위대가목록(21년 하반기)'!$G$250 -> 13537 | H100: 947590 | I100: ='일위대가목록(21년 하반기)'!$H$250 -> 270 | J100: 18900 | K100: 19104 | L100: 1337280 | M100: ='일위대가목록(21년 하반기)'!$B$250 -> 245호표
A101: 실내 배관보온 | B101: 65A x 25t 가교발포 | C101: 36 | D101: M | E101: ='일위대가목록(21년 하반기)'!$F$249 -> 4825 | F101: 173700 | G101: ='일위대가목록(21년 하반기)'!$G$249 -> 11523 | H101: 414828 | I101: ='일위대가목록(21년 하반기)'!$H$249 -> 230 | J101: 8280 | K101: 16578 | L101: 596808 | M101: ='일위대가목록(21년 하반기)'!$B$249 -> 244호표
A102: 실내 배관보온 | B102: 50A x 25t 가교발포 | C102: 221 | D102: M | E102: ='일위대가목록(21년 하반기)'!$F$248 -> 4041 | F102: 893061 | G102: ='일위대가목록(21년 하반기)'!$G$248 -> 9548 | H102: 2110108 | I102: ='일위대가목록(21년 하반기)'!$H$248 -> 190 | J102: 41990 | K102: 13779 | L102: 3045159 | M102: ='일위대가목록(21년 하반기)'!$B$248 -> 243호표
A103: 실내 배관보온 | B103: 40A x 25t 가교발포 | C103: 833 | D103: M | E103: ='일위대가목록(21년 하반기)'!$F$247 -> 3634 | F103: 3027122 | G103: ='일위대가목록(21년 하반기)'!$G$247 -> 8122 | H103: 6765626 | I103: ='일위대가목록(21년 하반기)'!$H$247 -> 162 | J103: 134946 | K103: 11918 | L103: 9927694 | M103: ='일위대가목록(21년 하반기)'!$B$247 -> 242호표
A104: 실내 배관보온 | B104: 32A x 25t 가교발포 | C104: 1149 | D104: M | E104: ='일위대가목록(21년 하반기)'!$F$246 -> 3351 | F104: 3850299 | G104: ='일위대가목록(21년 하반기)'!$G$246 -> 7023 | H104: 8069427 | I104: ='일위대가목록(21년 하반기)'!$H$246 -> 140 | J104: 160860 | K104: 10514 | L104: 12080586 | M104: ='일위대가목록(21년 하반기)'!$B$246 -> 241호표
A105: 실내 배관보온 | B105: 25A x 25t 가교발포 | C105: 3275 | D105: M | E105: ='일위대가목록(21년 하반기)'!$F$245 -> 3015 | F105: 9874125 | G105: ='일위대가목록(21년 하반기)'!$G$245 -> 5964 | H105: 19532100 | I105: ='일위대가목록(21년 하반기)'!$H$245 -> 119 | J105: 389725 | K105: 9098 | L105: 29795950 | M105: ='일위대가목록(21년 하반기)'!$B$245 -> 240호표
A106: 내 화 충 진 재 | B106: 실리콘RTV폼 | C106: 8 | D106: KG | E106: =#REF! ->  | H106: 0 | J106: 0
A107: 코 아 구 멍 뚫 기(바 닥) | B107: 150A | C107: 4 | D107: 개소 | E107: ='일위대가목록(21년 하반기)'!$F$411 -> 0 | F107: 0 | G107: ='일위대가목록(21년 하반기)'!$G$411 -> 66918 | H107: 267672 | I107: ='일위대가목록(21년 하반기)'!$H$411 -> 381 | J107: 1524 | K107: 67299 | L107: 269196 | M107: ='일위대가목록(21년 하반기)'!$B$411 -> 406호표
A108: 코 아 구 멍 뚫 기(바 닥) | B108: 50A | C108: 5 | D108: 개소 | E108: ='일위대가목록(21년 하반기)'!$F$408 -> 0 | F108: 0 | G108: ='일위대가목록(21년 하반기)'!$G$408 -> 37920 | H108: 189600 | I108: ='일위대가목록(21년 하반기)'!$H$408 -> 159 | J108: 795 | K108: 38079 | L108: 190395 | M108: ='일위대가목록(21년 하반기)'!$B$408 -> 403호표
A109: 코 아 구 멍 뚫 기(벽 체) | B109: 150A | C109: 12 | D109: 개소 | E109: ='일위대가목록(21년 하반기)'!$F$420 -> 0 | F109: 0 | G109: ='일위대가목록(21년 하반기)'!$G$420 -> 85400 | H109: 1024800 | I109: ='일위대가목록(21년 하반기)'!$H$420 -> 489 | J109: 5868 | K109: 85889 | L109: 1030668 | M109: ='일위대가목록(21년 하반기)'!$B$420 -> 415호표
A110: 코 아 구 멍 뚫 기(벽 체) | B110: 100A | C110: 13 | D110: 개소 | E110: ='일위대가목록(21년 하반기)'!$F$419 -> 0 | F110: 0 | G110: ='일위대가목록(21년 하반기)'!$G$419 -> 67236 | H110: 874068 | I110: ='일위대가목록(21년 하반기)'!$H$419 -> 344 | J110: 4472 | K110: 67580 | L110: 878540 | M110: ='일위대가목록(21년 하반기)'!$B$419 -> 414호표
A111: 코 아 구 멍 뚫 기(벽 체) | B111: 50A | C111: 194 | D111: 개소 | E111: ='일위대가목록(21년 하반기)'!$F$417 -> 0 | F111: 0 | G111: ='일위대가목록(21년 하반기)'!$G$417 -> 48436 | H111: 9396584 | I111: ='일위대가목록(21년 하반기)'!$H$417 -> 203 | J111: 39382 | K111: 48639 | L111: 9435966 | M111: ='일위대가목록(21년 하반기)'!$B$417 -> 412호표
A112: 코 아 구 멍 뚫 기(벽 체) | B112: 25A | C112: 94 | D112: 개소 | E112: ='일위대가목록(21년 하반기)'!$F$416 -> 0 | F112: 0 | G112: ='일위대가목록(21년 하반기)'!$G$416 -> 39194 | H112: 3684236 | I112: ='일위대가목록(21년 하반기)'!$H$416 -> 133 | J112: 12502 | K112: 39327 | L112: 3696738 | M112: ='일위대가목록(21년 하반기)'!$B$416 -> 411호표
A113: 배 관 행 가 | B113: 100(일 반) | C113: 5 | D113: 개소 | E113: ='일위대가목록(21년 하반기)'!$F$183 -> 2121 | F113: 10605 | G113: ='일위대가목록(21년 하반기)'!$G$183 -> 0 | H113: 0 | I113: ='일위대가목록(21년 하반기)'!$H$183 -> 0 | J113: 0 | L113: 0 | M113: ='일위대가목록(21년 하반기)'!$B$183 -> 178호표
A114: 배 관 행 가 | B114: 150(절 연) | C114: 27 | D114: 개소 | E114: ='일위대가목록(21년 하반기)'!$F$200 -> 5571 | F114: 150417 | G114: ='일위대가목록(21년 하반기)'!$G$200 -> 0 | H114: 0 | I114: ='일위대가목록(21년 하반기)'!$H$200 -> 0 | J114: 0 | K114: 5571 | L114: 150417 | M114: ='일위대가목록(21년 하반기)'!$B$200 -> 195호표
A115: 배 관 행 가 | B115: 125(절 연) | C115: 203 | D115: 개소 | E115: ='일위대가목록(21년 하반기)'!$F$199 -> 4071 | F115: 826413 | G115: ='일위대가목록(21년 하반기)'!$G$199 -> 0 | H115: 0 | I115: ='일위대가목록(21년 하반기)'!$H$199 -> 0 | J115: 0 | K115: 4071 | L115: 826413 | M115: ='일위대가목록(21년 하반기)'!$B$199 -> 194호표
A116: 배 관 행 가 | B116: 100(절 연) | C116: 105 | D116: 개소 | E116: ='일위대가목록(21년 하반기)'!$F$198 -> 3171 | F116: 332955 | G116: ='일위대가목록(21년 하반기)'!$G$198 -> 0 | H116: 0 | I116: ='일위대가목록(21년 하반기)'!$H$198 -> 0 | J116: 0 | K116: 3171 | L116: 332955 | M116: ='일위대가목록(21년 하반기)'!$B$198 -> 193호표
A117: 배 관 행 가 | B117: 80(절 연) | C117: 22 | D117: 개소 | E117: ='일위대가목록(21년 하반기)'!$F$197 -> 2821 | F117: 62062 | G117: ='일위대가목록(21년 하반기)'!$G$197 -> 0 | H117: 0 | I117: ='일위대가목록(21년 하반기)'!$H$197 -> 0 | J117: 0 | K117: 2821 | L117: 62062 | M117: ='일위대가목록(21년 하반기)'!$B$197 -> 192호표
A118: 배 관 행 가 | B118: 65(절 연) | C118: 12 | D118: 개소 | E118: ='일위대가목록(21년 하반기)'!$F$196 -> 2221 | F118: 26652 | G118: ='일위대가목록(21년 하반기)'!$G$196 -> 0 | H118: 0 | I118: ='일위대가목록(21년 하반기)'!$H$196 -> 0 | J118: 0 | K118: 2221 | L118: 26652 | M118: ='일위대가목록(21년 하반기)'!$B$196 -> 191호표
A119: 배 관 행 가 | B119: 50(절 연) | C119: 84 | D119: 개소 | E119: ='일위대가목록(21년 하반기)'!$F$195 -> 2021 | F119: 169764 | G119: ='일위대가목록(21년 하반기)'!$G$195 -> 0 | H119: 0 | I119: ='일위대가목록(21년 하반기)'!$H$195 -> 0 | J119: 0 | K119: 2021 | L119: 169764 | M119: ='일위대가목록(21년 하반기)'!$B$195 -> 190호표
A120: 배 관 행 가 | B120: 40(절 연) | C120: 490 | D120: 개소 | E120: ='일위대가목록(21년 하반기)'!$F$194 -> 1771 | F120: 867790 | G120: ='일위대가목록(21년 하반기)'!$G$194 -> 0 | H120: 0 | I120: ='일위대가목록(21년 하반기)'!$H$194 -> 0 | J120: 0 | K120: 1771 | L120: 867790 | M120: ='일위대가목록(21년 하반기)'!$B$194 -> 189호표
A121: 배 관 행 가 | B121: 32(절 연) | C121: 719 | D121: 개소 | E121: ='일위대가목록(21년 하반기)'!$F$193 -> 1721 | F121: 1237399 | G121: ='일위대가목록(21년 하반기)'!$G$193 -> 0 | H121: 0 | I121: ='일위대가목록(21년 하반기)'!$H$193 -> 0 | J121: 0 | K121: 1721 | L121: 1237399 | M121: ='일위대가목록(21년 하반기)'!$B$193 -> 188호표
A122: 배 관 행 가 | B122: 25(절 연) | C122: 1422 | D122: 개소 | E122: ='일위대가목록(21년 하반기)'!$F$192 -> 1621 | F122: 2305062 | G122: ='일위대가목록(21년 하반기)'!$G$192 -> 0 | H122: 0 | I122: ='일위대가목록(21년 하반기)'!$H$192 -> 0 | J122: 0 | K122: 1621 | L122: 2305062 | M122: ='일위대가목록(21년 하반기)'!$B$192 -> 187호표
A123: U 볼트 & 너 트(절 연) | B123: 150A | C123: 4 | D123: 개소 | E123: ='일위대가목록(21년 하반기)'!$F$402 -> 2904 | F123: 11616 | G123: ='일위대가목록(21년 하반기)'!$G$402 -> 0 | H123: 0 | I123: ='일위대가목록(21년 하반기)'!$H$402 -> 0 | J123: 0 | K123: 2904 | L123: 11616 | M123: ='일위대가목록(21년 하반기)'!$B$402 -> 397호표
A124: U 볼트 & 너 트(절 연) | B124: 50A | C124: 6 | D124: 개소 | E124: ='일위대가목록(21년 하반기)'!$F$397 -> 724 | F124: 4344 | G124: ='일위대가목록(21년 하반기)'!$G$397 -> 0 | H124: 0 | I124: ='일위대가목록(21년 하반기)'!$H$397 -> 0 | J124: 0 | K124: 724 | L124: 4344 | M124: ='일위대가목록(21년 하반기)'!$B$397 -> 392호표
A125: 가 대 설 치(STS) | B125: 300x300 | C125: 4 | D125: 조 | E125: ='일위대가목록(21년 하반기)'!$F$539 ->  | G125: ='일위대가목록(21년 하반기)'!$G$539 ->  | I125: ='일위대가목록(21년 하반기)'!$H$539 ->  | M125: ='일위대가목록(21년 하반기)'!$B$539 -> 534호표
A126: 앵 글(STS) | B126: 50x50x4t | C126: 800 | D126: KG | E126: =#REF! ->  | H126: 0 | J126: 0
A127: 잡 철 물 제 작 설 치 | B127: 간 단 (스텐) | C127: 800 | D127: KG | E127: ='일위대가목록(21년 하반기)'!$F$336/1000 -> 256.753 | F127: 205402 | G127: ='일위대가목록(21년 하반기)'!$G$336/1000 -> 6415.534 | H127: 5132427 | I127: ='일위대가목록(21년 하반기)'!$H$336/1000 -> 130.247 | J127: 104197 | K127: 6802.534 | L127: 5442027 | M127: ='일위대가목록(21년 하반기)'!$B$336 -> 331호표
A128: 버 터 플 라 이 밸 브 | B128: 150A STS 10KG(LEVER) | C128: 9 | D128: EA | E128: =#REF! ->  | H128: 0 | J128: 0
A129: 버 터 플 라 이 밸 브 | B129: 125A STS 10KG(LEVER) | C129: 1 | D129: EA | E129: =#REF! ->  | H129: 0 | J129: 0
A130: 버 터 플 라 이 밸 브 | B130: 50A STS 10KG(LEVER) | C130: 2 | D130: EA | E130: =#REF! ->  | H130: 0 | J130: 0
A131: 볼 밸 브 | B131: 25A STS 10KG(S) | C131: 6 | D131: EA | E131: =#REF! ->  | H131: 0 | J131: 0
A132: 글 로 브 밸 브 | B132: 100A STS 10KG | C132: 4 | D132: EA | E132: =#REF! ->  | H132: 0 | J132: 0
A133: 스 트 레 너 | B133: 150A STS 10KG(F) | C133: 2 | D133: EA | E133: =#REF! ->  | H133: 0 | J133: 0 | L133: =TRUNC($C133*K133) -> 
A134: 스 트 레 너 | B134: 50A STS 10KG(S) | C134: 1 | D134: EA | E134: =#REF! ->  | F134: =TRUNC($C134*E134) ->  | H134: 0 | J134: 0
A135: 스모렌스키 체크밸브 | B135: 150A STS 10KG(F) | C135: 2 | D135: EA | E135: =#REF! ->  | H135: 0 | J135: 0 | K135: =I135+G135+E135 -> 
A136: 스모렌스키 체크밸브 | B136: 100A STS 10KG(F) | C136: 1 | D136: EA | E136: =#REF! ->  | H136: 0 | J136: 0
A137: 스모렌스키 체크밸브 | B137: 65A STS 10KG(F) | C137: 2 | D137: EA | E137: =#REF! ->  | H137: 0 | J137: 0
A138: 스모렌스키 체크밸브 | B138: 50A STS 10KG(S) | C138: 1 | D138: EA | E138: =#REF! ->  | H138: 0 | J138: 0
A139: 후 렉 시 블 조 인 트 | B139: 150A STS 10KG(F) | C139: 5 | D139: EA | E139: =#REF! ->  | H139: 0 | J139: 0
A140: 후 렉 시 블 조 인 트 | B140: 65A STL 10KG(F) | C140: 2 | D140: EA | E140: =#REF! ->  | H140: 0 | J140: 0
A141: 후 렉 시 블 조 인 트 | B141: 50A STL 10KG(F) | C141: 2 | D141: EA | E141: =#REF! ->  | H141: 0 | J141: 0
A142: W. H. C | B142: 150A 10KG(F) | C142: 7 | D142: EA | E142: =#REF! ->  | H142: 0 | J142: 0
A143: W. H. C | B143: 125A 10KG(F) | C143: 10 | D143: EA | E143: =#REF! ->  | H143: 0 | J143: 0
A144: W. H. C | B144: 100A 10KG(F) | C144: 3 | D144: EA | E144: =#REF! ->  | H144: 0 | J144: 0
A145: W. H. C | B145: 80A 10KG(F) | C145: 2 | D145: EA | E145: =#REF! ->  | H145: 0 | J145: 0
A146: W. H. C | B146: 65A 10KG(F) | C146: 1 | D146: EA | E146: =#REF! ->  | H146: 0 | J146: 0
A147: W. H. C | B147: 50A 10KG(F) | C147: 2 | D147: EA | E147: =#REF! ->  | H147: 0 | J147: 0
A148: W. H. C | B148: 40A 10KG(F) | C148: 1 | D148: EA | E148: =#REF! ->  | H148: 0 | J148: 0
A149: 소 방 유 량 계 | B149: 100A | C149: 2 | D149: EA | E149: =#REF! ->  | H149: 0 | J149: 0
A150: 환 기 캡 | B150: 100A STS | C150: 1 | D150: EA | E150: =#REF! ->  | H150: 0 | J150: 0
A151: 옥 내 소 화 전 함 (노 출) | B151: 노출형, STS 1.2T | C151: 1 | D151: EA | E151: =#REF! ->  | H151: 0 | J151: 0
A152: 시 험 밸 브 함 | B152: 300x 500x 180 | C152: 5 | D152: EA | E152: =#REF! ->  | H152: 0 | J152: 0
A153: 소 방 앵 글 밸 브 | B153: 40A | C153: 17 | D153: EA | E153: =#REF! ->  | H153: 0 | J153: 0
A154: 소 방 호 스, 단 일 피 | B154: 40Ax 15M | C154: 2 | D154: EA | E154: =#REF! ->  | H154: 0 | J154: 0
A155: 소 방 노 즐 | B155: 40A | C155: 1 | D155: EA | E155: =#REF! ->  | H155: 0 | J155: 0
A156: 스프링클러 헤드 | B156: 폐쇄, 환형, 하향, 72℃ | C156: 5 | D156: EA | E156: =#REF! ->  | H156: 0 | J156: 0
A157: 스프링클러 헤드(조기반응형) | B157: 플러쉬 형, 하향,72℃ | C157: 1122 | D157: EA | E157: =#REF! ->  | H157: 0 | J157: 0
A158: 스프링클러 헤드(조기반응형) | B158: 플러쉬 형, 하향,105℃ | C158: 8 | D158: EA | E158: =#REF! ->  | H158: 0 | J158: 0
A159: 스프링클러 헤드(조기반응형) | B159: 플러쉬 형, 상향,72℃ | C159: 75 | D159: EA | E159: =#REF! ->  | H159: 0 | J159: 0
A160: 스프링클러 헤드(조기반응형) | B160: 플러쉬 형, 상향,105℃ | C160: 20 | D160: EA | E160: =E158 ->  | H160: 0 | J160: 0
A161: 드라이팬던트 헤드(조기반응형) | B161: 플러쉬 형, 하향,72℃ | C161: 47 | D161: EA | E161: =#REF! ->  | H161: 0 | J161: 0
A162: 알 람 밸 브 | B162: 150A | C162: 4 | D162: EA | E162: =#REF! ->  | H162: 0 | J162: 0
A163: 알 람 밸 브 | B163: 125A | C163: 1 | D163: EA | E163: =#REF! ->  | H163: 0 | J163: 0
A164: SP 조인트 | B164: 1,500L * 0.6T | C164: 1177 | D164: EA | E164: =#REF! ->  | H164: 0 | J164: 0
A165: 쌍 구 형 연 결 송 수 구 | B165: 100x 65x 65, 노 출 형 | C165: 1 | D165: EA | E165: =#REF! ->  | H165: 0 | J165: 0
A166: 연 결 송 수 구 명 판 | B166: 동 판(銅) | C166: 1 | D166: EA | E166: =#REF! ->  | H166: 0 | J166: 0
A167: 오 토 드 립 밸 브 | B167: 20A | C167: 1 | D167: EA | E167: =#REF! ->  | H167: 0 | J167: 0
A168: 안 전 밸 브 | B168: 25A | C168: 2 | D168: EA | E168: =#REF! ->  | H168: 0 | J168: 0
A169: 탬 프 스 위 치 | B169: 자석식 | C169: 10 | D169: EA | E169: =#REF! ->  | H169: 0 | J169: 0
A170: 은 분 페 인 트 칠 | B170: 2 회 | C170: 6 | D170: M2 | E170: ='일위대가목록(21년 하반기)'!$F$360 -> 1036 | F170: 6216 | G170: ='일위대가목록(21년 하반기)'!$G$360 -> 11724 | H170: 70344 | I170: ='일위대가목록(21년 하반기)'!$H$360 -> 234 | J170: 1404 | K170: 12994 | L170: 77964 | M170: ='일위대가목록(21년 하반기)'!$B$360 -> 355호표
A171: 압 력 계 설 치 | C171: 8 | D171: 개소 | E171: ='일위대가목록(21년 하반기)'!$F$363 -> 13110 | F171: 104880 | G171: ='일위대가목록(21년 하반기)'!$G$363 -> 10110 | H171: 80880 | I171: ='일위대가목록(21년 하반기)'!$H$363 -> 202 | J171: 1616 | K171: 23422 | L171: 187376 | M171: ='일위대가목록(21년 하반기)'!$B$363 -> 358호표
A172: 창문 패쇄 후 철판작업 | B172: 1,500*900 | C172: 1 | D172: 개소 | E172: =#REF! ->  | H172: 0 | J172: 0
A173: 작 업 부 산 물 | B173: 고 철 | C173: 6 | D173: KG | E173: =#REF! ->  | H173: 0 | J173: 0
B174: 고 스텐 | C174: 3060 | D174: KG | E174: =#REF! ->  | H174: 0 | J174: 0
A175: 잡자재비 | B175: 관의 2% | C175: 1 | D175: 식 | E175: =TRUNC(F10+F11+F12+F13+F14+F15+F16+F17+F18+F93)*2% ->  | H175: 0 | J175: 0
A176: 인 건 비 | B176: 기 계 설 비 공 | C176: 11 | D176: 인 | F176: 0 | G176: =#REF! ->  | J176: 0
B177: 배 관 공 | C177: 838 | D177: 인 | F177: 0 | G177: =#REF! ->  | J177: 0
B178: 덕 트 공 | C178: 1 | D178: 인 | F178: 0 | G178: =#REF! ->  | J178: 0
B179: 보 통 인 부 | C179: 355 | D179: 인 | F179: 0 | G179: =#REF! ->  | J179: 0
A180: 공구손료 | B180: 인건비의 2% | C180: 1 | D180: 식 | F180: 0 | H180: 0 | I180: =TRUNC(H179+H178+H177+H176)*2% -> 
A181: 소 계 | F181: =SUM(F6:F180) ->  | H181: =SUM(H6:H180) ->  | J181: =SUM(J6:J180) ->  | L181: =SUM(L6:L180) -> 

Sheet 3.위생배관 (hidden)
A2: =#REF! -> 
A3: 3.위생배관공사
A4: 품 명 | B4: 규 격 | C4: 수량 | D4: 단위 | E4: 재 료 비 | G4: 노 무 비 | I4: 경 비 | K4: 합 계 | M4: 비 고
E5: 단 가 | F5: 금 액 | G5: 단 가 | H5: 금 액 | I5: 단 가 | J5: 금 액 | K5: 단 가 | L5: 금 액
A6: 스텐레스 관(K-TYPE) | B6: 50A | C6: 162 | D6: M | E6: =#REF! ->  | F6: =TRUNC($C6*E6) ->  | H6: =TRUNC($C6*G6) -> 0 | J6: =TRUNC($C6*I6) -> 0 | K6: =I6+G6+E6 ->  | L6: =TRUNC($C6*K6) -> 
A7: 스텐레스 관(K-TYPE) | B7: 30A | C7: 60 | D7: M | E7: =#REF! ->  | F7: =TRUNC($C7*E7) ->  | H7: 0 | J7: 0 | K7: =I7+G7+E7 ->  | L7: =TRUNC($C7*K7) -> 
A8: 스텐레스 관(K-TYPE) | B8: 25A | C8: 144 | D8: M | E8: =#REF! ->  | H8: 0 | J8: 0
A9: 스텐레스 관(K-TYPE) | B9: 20A | C9: 612 | D9: M | E9: =#REF! ->  | H9: 0 | J9: 0
A10: 스텐레스 관(K-TYPE) | B10: 13A | C10: 6 | D10: M | E10: =#REF! ->  | H10: 0 | J10: 0
A11: 스텐렌스 엘보 | B11: 50A 프레스식 | C11: 22 | D11: EA | E11: =#REF! ->  | H11: 0 | J11: 0
A12: 스텐렌스 엘보 | B12: 32A 프레스식 | C12: 7 | D12: EA | E12: =#REF! ->  | H12: 0 | J12: 0
A13: 스텐렌스 엘보 | B13: 25A 프레스식 | C13: 39 | D13: EA | E13: =#REF! ->  | H13: 0 | J13: 0
A14: 스텐렌스 엘보 | B14: 20A 프레스식 | C14: 276 | D14: EA | E14: =#REF! ->  | H14: 0 | J14: 0
A15: 스텐렌스 엘보 | B15: 13A 프레스식 | C15: 24 | D15: EA | E15: =#REF! ->  | H15: 0 | J15: 0
A16: 스텐렌스 티이 | B16: 50A 프레스식 | C16: 67 | D16: EA | E16: =#REF! ->  | H16: 0 | J16: 0
A17: 스텐렌스 티이 | B17: 32A 프레스식 | C17: 6 | D17: EA | E17: =#REF! ->  | H17: 0 | J17: 0
A18: 스텐렌스 티이 | B18: 25A 프레스식 | C18: 40 | D18: EA | E18: =#REF! ->  | H18: 0 | J18: 0
A19: 스텐렌스 티이 | B19: 20A 프레스식 | C19: 12 | D19: EA | E19: =#REF! ->  | H19: 0 | J19: 0
A20: 스텐렌스 레듀셔 | B20: 50A x 30A 프레스식 | C20: 2 | D20: EA | E20: =#REF! ->  | H20: 0 | J20: 0
A21: 스텐렌스 레듀셔 | B21: 50A x 20A프레스식 | C21: 2 | D21: EA | E21: =#REF! ->  | H21: 0 | J21: 0
A22: 스텐렌스 레듀셔 | B22: 50A x 13A 프레스식 | C22: 2 | D22: EA | E22: =#REF! ->  | H22: 0 | J22: 0
A23: 스텐렌스 레듀셔 | B23: 30A x 20A 프레스식 | C23: 1 | D23: EA | E23: =#REF! ->  | H23: 0 | J23: 0
A24: 스텐렌스 레듀셔 | B24: 30A x 13A 프레스식 | C24: 1 | D24: EA | E24: =#REF! ->  | H24: 0 | J24: 0
A25: 스텐렌스 레듀셔 | B25: 25A x 20A 프레스식 | C25: 3 | D25: EA | E25: =#REF! ->  | H25: 0 | J25: 0
A26: 스텐레스 캡 | B26: 50A 프레스식 | C26: 3 | D26: EA | E26: =#REF! ->  | H26: 0 | J26: 0
A27: 스텐레스 캡 | B27: 32A 프레스식 | C27: 1 | D27: EA | E27: =#REF! ->  | H27: 0 | J27: 0
A28: 스텐레스 캡 | B28: 25A 프레스식 | C28: 2 | D28: EA | E28: =#REF! ->  | H28: 0 | J28: 0
A29: 스텐레스 캡 | B29: 20A 프레스식 | C29: 23 | D29: EA | E29: =#REF! ->  | H29: 0 | J29: 0
A30: 스텐레스 유니온 | B30: 50A 프레스식 | C30: 4 | D30: EA | E30: =#REF! ->  | H30: 0 | J30: 0
A31: 스텐레스 유니온 | B31: 32A 프레스식 | C31: 1 | D31: EA | E31: =#REF! ->  | H31: 0 | J31: 0
A32: 스텐레스 유니온 | B32: 25A 프레스식 | C32: 10 | D32: EA | E32: =#REF! ->  | H32: 0 | J32: 0
A33: 스텐레스 유니온 | B33: 20A 프레스식 | C33: 66 | D33: EA | E33: =#REF! ->  | H33: 0 | J33: 0
A34: 스텐레스 유니온 | B34: 13A 프레스식 | C34: 3 | D34: EA | E34: =#REF! ->  | H34: 0 | J34: 0
A35: 스텐레스 숫아답타소켓 | B35: 50A 프레스식 | C35: 4 | D35: EA | E35: =#REF! ->  | H35: 0 | J35: 0
A36: 스텐레스 숫아답타소켓 | B36: 32A 프레스식 | C36: 1 | D36: EA | E36: =#REF! ->  | H36: 0 | J36: 0
A37: 스텐레스 숫아답타소켓 | B37: 25A 프레스식 | C37: 10 | D37: EA | E37: =#REF! ->  | H37: 0 | J37: 0
A38: 스텐레스 숫아답타소켓 | B38: 20A 프레스식 | C38: 66 | D38: EA | E38: =#REF! ->  | H38: 0 | J38: 0
A39: 스텐레스 숫아답타소켓 | B39: 13A 프레스식 | C39: 5 | D39: EA | E39: =#REF! ->  | H39: 0 | J39: 0
A40: 스텐레스 수전티이 | B40: 20A 프레스식 | C40: 46 | D40: EA | E40: =#REF! ->  | H40: 0 | J40: 0
A41: 스텐레스 수전엘보 | B41: 20A 프레스식 | C41: 63 | D41: EA | E41: =#REF! ->  | H41: 0 | J41: 0
A42: 스텐레스 소켓 | B42: 50A 프레스식 | C42: 2 | D42: EA | E42: =#REF! ->  | H42: 0 | J42: 0
A43: 스텐레스 소켓 | B43: 32A 프레스식 | C43: 3 | D43: EA | E43: =#REF! ->  | H43: 0 | J43: 0
A44: 스텐레스 소켓 | B44: 25A 프레스식 | C44: 7 | D44: EA | E44: =#REF! ->  | H44: 0 | J44: 0
A45: 스텐레스 관 | B45: 150A x 3.5t | C45: 12 | D45: M | E45: =#REF! ->  | H45: 0 | J45: 0
A46: 스텐레스 관 | B46: 80A x 3.0t | C46: 30 | D46: M | E46: =#REF! ->  | H46: 0 | J46: 0
A47: 스텐레스 관 | B47: 50A x 2.5t | C47: 54 | D47: M | E47: =#REF! ->  | H47: 0 | J47: 0
A48: 스텐렌스 엘보 | B48: 150A 용접식 S10S | C48: 1 | D48: EA | E48: =#REF! ->  | H48: 0 | J48: 0
A49: 스텐렌스 엘보 | B49: 80A 용접식 S10S | C49: 10 | D49: EA | E49: =#REF! ->  | H49: 0 | J49: 0
A50: 스텐렌스 엘보 | B50: 50A 용접식 S10S | C50: 9 | D50: EA | E50: =#REF! ->  | H50: 0 | J50: 0
A51: 스 텐 레 스 알 곤 용 접 | B51: 150A | C51: 5 | D51: 개소 | E51: =#REF! ->  | G51: =#REF! ->  | I51: =#REF! ->  | M51: =#REF! -> 
A52: 스 텐 레 스 알 곤 용 접 | B52: 80A | C52: 30 | D52: 개소 | E52: =#REF! ->  | G52: =#REF! ->  | I52: =#REF! ->  | M52: =#REF! -> 
A53: 스 텐 레 스 알 곤 용 접 | B53: 50A | C53: 19 | D53: 개소 | E53: =#REF! ->  | G53: =#REF! ->  | I53: =#REF! ->  | M53: =#REF! -> 
A54: A.S PIPE | B54: 100A | C54: 20 | D54: M | E54: =#REF! ->  | H54: 0 | J54: 0
A55: A.S PIPE | B55: 75A | C55: 24 | D55: M | E55: =#REF! ->  | H55: 0 | J55: 0
A56: A.S PIPE | B56: 50A | C56: 8 | D56: M | E56: =#REF! ->  | H56: 0 | J56: 0
A57: A.S 양변기엘 보 | B57: 100A | C57: 2 | D57: EA | E57: =#REF! ->  | H57: 0 | J57: 0
A58: A.S 90'엘 보 | B58: 100A | C58: 2 | D58: EA | E58: =#REF! ->  | H58: 0 | J58: 0
A59: A.S 90'엘 보 | B59: 75A | C59: 5 | D59: EA | E59: =#REF! ->  | H59: 0 | J59: 0
A60: A.S 90'엘 보 | B60: 50A | C60: 4 | D60: EA | E60: =#REF! ->  | H60: 0 | J60: 0
A61: A.S 45'엘 보 | B61: 100A | C61: 4 | D61: EA | E61: =#REF! ->  | H61: 0 | J61: 0
A62: A.S 45'엘 보 | B62: 75A | C62: 5 | D62: EA | E62: =#REF! ->  | H62: 0 | J62: 0
A63: A.S Y 관 | B63: 100A x 100A | C63: 4 | D63: EA | E63: =#REF! ->  | H63: 0 | J63: 0
A64: A.S Y 관 | B64: 75A x 75A | C64: 4 | D64: EA | E64: =#REF! ->  | H64: 0 | J64: 0
A65: A.S Y 관 | B65: 75A x 50A | C65: 2 | D65: EA | E65: =#REF! ->  | H65: 0 | J65: 0
A66: A.S YT 관 | B66: 100A x 50A | C66: 2 | D66: EA | E66: =#REF! ->  | H66: 0 | J66: 0
A67: A.S YT 관 | B67: 75A x 50A | C67: 1 | D67: EA | E67: =#REF! ->  | H67: 0 | J67: 0
A68: A.S 소제구 | B68: 100A | C68: 4 | D68: EA | E68: =#REF! ->  | H68: 0 | J68: 0
A69: A.S 소제구 | B69: 75A | C69: 4 | D69: EA | E69: =#REF! ->  | H69: 0 | J69: 0
A70: A.S P트랩 | B70: 75A | C70: 3 | D70: EA | E70: =#REF! ->  | H70: 0 | J70: 0
A71: A.S P트랩 | B71: 50A | C71: 2 | D71: EA | E71: =#REF! ->  | F71: =TRUNC($C71*E71) ->  | H71: 0 | J71: 0 | K71: =I71+G71+E71 ->  | L71: =TRUNC($C71*K71) -> 
A72: P.V.C 관 | B72: 50A (VG2) | C72: 44 | D72: M | E72: =#REF! ->  | H72: 0 | J72: 0 | N72: 통기관
A73: P.V.C 관 | B73: 75A (VG1) | C73: 4 | D73: M | E73: =#REF! ->  | H73: 0 | J73: 0 | N73: 매설배수
A74: P.V.C 관 | B74: 50A (VG1) | C74: 4 | D74: M | E74: =#REF! ->  | H74: 0 | J74: 0 | N74: 매설배수
A75: P.V.C 90'엘 보 | B75: 50A, 나사조임식 | C75: 16 | D75: EA | E75: =#REF! ->  | H75: 0 | J75: 0
A76: P.V.C 90'엘 보 | B76: 75A, DTS | C76: 3 | D76: EA | E76: =#REF! ->  | H76: 0 | J76: 0
A77: P.V.C 45'엘 보 | B77: 75A, DTS | C77: 1 | D77: EA | E77: =#REF! ->  | H77: 0 | J77: 0
A78: P.V.C Y 관 | B78: 75A x 50A, DTS | C78: 3 | D78: EA | E78: =#REF! ->  | H78: 0 | J78: 0
A79: P.V.C 소제구 | B79: 75A, DTS | C79: 1 | D79: EA | E79: =#REF! ->  | H79: 0 | J79: 0
A80: 바 닥 배 수 구 | B80: 75A ,PVC(주철이중식) | C80: 8 | D80: EA | E80: =#REF! ->  | H80: 0 | J80: 0
A81: 바 닥 배 수 구 | B81: 50A ,PVC(세탁겸용) | C81: 2 | D81: EA | E81: =#REF! ->  | H81: 0 | J81: 0
A82: 실내 배관보온 | B82: 50A x 40t 가교발포 | C82: 61 | D82: M | E82: =#REF! ->  | G82: =#REF! ->  | I82: =#REF! ->  | M82: =#REF! -> 
A83: 실내 배관보온 | B83: 50A x 25t 가교발포 | C83: 85 | D83: M | E83: =#REF! ->  | G83: =#REF! ->  | I83: =#REF! ->  | M83: =#REF! -> 
A84: 실내 배관보온 | B84: 32A x 25t 가교발포 | C84: 10 | D84: M | E84: =#REF! ->  | G84: =#REF! ->  | I84: =#REF! ->  | M84: =#REF! -> 
A85: 실내 배관보온 | B85: 25A x 25t 가교발포 | C85: 99 | D85: M | E85: =#REF! ->  | G85: =#REF! ->  | I85: =#REF! ->  | M85: =#REF! -> 
A86: 실내 배관보온 | B86: 20A x 25t 가교발포 | C86: 389 | D86: M | E86: =#REF! ->  | G86: =#REF! ->  | I86: =#REF! ->  | M86: =#REF! -> 
A87: 매립 배관보온 | B87: 32A x 10t 가교발포 | C87: 41 | D87: M | E87: =#REF! ->  | H87: 0 | J87: 0
A88: 매립 배관보온 | B88: 25A x 10t 가교발포 | C88: 27 | D88: M | E88: =#REF! ->  | H88: 0 | J88: 0
A89: 매립 배관보온 | B89: 20A x 10t 가교발포 | C89: 52 | D89: M | E89: =#REF! ->  | H89: 0 | J89: 0
A90: 코 아 구 멍 뚫 기(바 닥) | B90: 150A | C90: 1 | D90: 개소 | F90: 0 | G90: =#REF! ->  | I90: =#REF! ->  | M90: =#REF! -> 
A91: 코 아 구 멍 뚫 기(바 닥) | B91: 100A | C91: 2 | D91: 개소 | F91: 0 | G91: =#REF! ->  | I91: =#REF! ->  | M91: =#REF! -> 
A92: 코 아 구 멍 뚫 기(바 닥) | B92: 75A | C92: 5 | D92: 개소 | F92: 0 | G92: =#REF! ->  | I92: =#REF! ->  | M92: =#REF! -> 
A93: 코 아 구 멍 뚫 기(바 닥) | B93: 50A | C93: 3 | D93: 개소 | F93: 0 | G93: =#REF! ->  | I93: =#REF! ->  | M93: =#REF! -> 
A94: 코 아 구 멍 뚫 기(바 닥) | B94: 25A | C94: 34 | D94: 개소 | F94: 0 | G94: =#REF! ->  | I94: =#REF! ->  | M94: =#REF! -> 
A95: 코 아 구 멍 뚫 기(벽 체) | B95: 100A | C95: 4 | D95: 개소 | F95: 0 | G95: =#REF! ->  | I95: =#REF! ->  | M95: =#REF! -> 
A96: 코 아 구 멍 뚫 기(벽 체) | B96: 75A | C96: 10 | D96: 개소 | F96: 0 | G96: =#REF! ->  | I96: =#REF! ->  | M96: =#REF! -> 
A97: 코 아 구 멍 뚫 기(벽 체) | B97: 25A | C97: 3 | D97: 개소 | F97: 0 | G97: =#REF! ->  | I97: =#REF! ->  | M97: =#REF! -> 
A98: 배 관 행 가 | B98: 100(일 반) | C98: 11 | D98: 개소 | E98: =#REF! ->  | H98: 0 | J98: 0 | M98: =#REF! -> 
A99: 배 관 행 가 | B99: 80(일 반) | C99: 16 | D99: 개소 | E99: =#REF! ->  | H99: 0 | J99: 0 | M99: =#REF! -> 
A100: 배 관 행 가 | B100: 50(일 반) | C100: 42 | D100: 개소 | E100: =#REF! ->  | H100: 0 | J100: 0 | M100: =#REF! -> 
A101: 배 관 행 가 | B101: 50(절 연) | C101: 42 | D101: 개소 | E101: =#REF! ->  | H101: 0 | J101: 0 | M101: =#REF! -> 
A102: 배 관 행 가 | B102: 25(절 연) | C102: 45 | D102: 개소 | E102: =#REF! ->  | H102: 0 | J102: 0 | M102: =#REF! -> 
A103: 배 관 행 가 | B103: 20(절 연) | C103: 210 | D103: 개소 | E103: =#REF! ->  | H103: 0 | J103: 0 | M103: =#REF! -> 
A104: U 볼트 & 너 트(절 연) | B104: 50A | C104: 2 | D104: 개소 | E104: =#REF! ->  | H104: 0 | J104: 0 | M104: =#REF! -> 
A105: 앵 글(STS) | B105: 50x50x5t | C105: 20 | D105: KG | E105: =#REF! ->  | H105: 0 | J105: 0
A106: 잡 철 물 제 작 설 치 | B106: 간 단 (스텐) | C106: 20 | D106: KG | E106: =#REF! ->  | G106: =#REF! ->  | I106: =#REF! ->  | M106: =#REF! -> 
A107: 게 이 트 밸 브 | B107: 50A STS 10KG(S) | C107: 1 | D107: EA | E107: =#REF! ->  | H107: 0 | J107: 0
A108: 게 이 트 밸 브 | B108: 25A STS 10KG(S) | C108: 1 | D108: EA | E108: =#REF! ->  | H108: 0 | J108: 0
A109: 볼 밸 브 | B109: 50A STS 10KG(S) | C109: 2 | D109: EA | E109: =#REF! ->  | H109: 0 | J109: 0
A110: 볼 밸 브 | B110: 32A STS 10KG(S) | C110: 1 | D110: EA | E110: =#REF! ->  | H110: 0 | J110: 0
A111: 볼 밸 브 | B111: 25A STS 10KG(S) | C111: 9 | D111: EA | E111: =#REF! ->  | H111: 0 | J111: 0
A112: 볼 밸 브 | B112: 20A STS 10KG(S) | C112: 66 | D112: EA | E112: =#REF! ->  | H112: 0 | J112: 0
A113: 볼 밸 브 | B113: 15A STS 10KG(S) | C113: 27 | D113: EA | E113: =#REF! ->  | H113: 0 | J113: 0
A114: 스 트 레 너 | B114: 15A STS 10KG(S) | C114: 2 | D114: EA | E114: =#REF! ->  | H114: 0 | J114: 0
A115: 체 크 밸 브 | B115: 50A STS 10KG(S) | C115: 1 | D115: EA | E115: =#REF! ->  | H115: 0 | J115: 0
A116: 체 크 밸 브 | B116: 20A STS 10KG(S) | C116: 12 | D116: EA | E116: =#REF! ->  | H116: 0 | J116: 0
A117: 밸 브 명 패 | C117: 5 | D117: EA | E117: =#REF! ->  | H117: 0 | J117: 0
A118: 자 동 공 기 변 | B118: 15A 물 용 | C118: 2 | D118: EA | E118: =#REF! ->  | H118: 0 | J118: 0
A119: 안 전 변 | B119: 25A 청 동 10KG(S) | C119: 1 | D119: EA | E119: =#REF! ->  | H119: 0 | J119: 0
A120: 밸 브 박 스(STS-304) | B120: 200x 200x 180 (1.2T) | C120: 1 | D120: EA | E120: =#REF! ->  | H120: 0 | J120: 0
A121: 환 기 캡 | B121: 50A STS | C121: 4 | D121: EA | E121: =#REF! ->  | H121: 0 | J121: 0
A122: 압 력 계 설 치 | C122: 1 | D122: 개소 | E122: =#REF! ->  | G122: =#REF! ->  | I122: =#REF! ->  | M122: =#REF! -> 
A123: 터 파 기 | B123: 기계30%, 인 력 70%, | C123: 53 | D123: M3 | E123: =#REF! ->  | G123: =#REF! ->  | I123: =#REF! ->  | M123: =#REF! -> 
A124: 되 메 우 기 | B124: 기계30%, 인 력 70%, | C124: 43 | D124: M3 | E124: =#REF! ->  | G124: =#REF! ->  | I124: =#REF! ->  | M124: =#REF! -> 
A125: 잔 토 처 리 | C125: 10 | D125: M3 | E125: =#REF! ->  | G125: =#REF! ->  | I125: =#REF! ->  | M125: =#REF! -> 
A126: 콘 크 리 트 포 장 깨 기 | B126: 기계30%, 인 력 70%, | C126: 10 | D126: M3 | E126: =#REF! ->  | G126: =#REF! ->  | I126: =#REF! ->  | M126: =#REF! -> 
A127: 보 도 블 럭 철 거 및 포 장 | B127: 재 사 용 | C127: 48 | D127: M2 | E127: =#REF! ->  | G127: =#REF! ->  | I127: =#REF! ->  | M127: =#REF! -> 
A128: 콘 트 리 트 타 설 | B128: 인 력 비 빔 | C128: 10 | D128: M3 | E128: =#REF! ->  | G128: =#REF! ->  | I128: =#REF! ->  | M128: =#REF! -> 
A129: 모 래 부 설 | C129: 10 | D129: M3 | E129: =#REF! ->  | G129: =#REF! ->  | I129: =#REF! ->  | M129: =#REF! -> 
A130: 폐기물 상차비 | B130: 30km | C130: 24 | D130: ton | F130: 0 | H130: 0 | I130: =#REF! -> 
A131: 잡자재비 | B131: 관의 2% | C131: 1 | D131: 식 | E131: =TRUNC(F6+F7+F8+F9+F10+F54+F55+F56+F72+F73+F74)*2% ->  | H131: 0 | J131: 0
A132: 인 건 비 | B132: 배 관 공 | C132: 81 | D132: 인 | F132: 0 | G132: =#REF! ->  | J132: 0
B133: 덕 트 공 | C133: 2 | D133: 인 | F133: 0 | G133: =#REF! ->  | J133: 0
B134: 보 통 인 부 | C134: 37 | D134: 인 | F134: 0 | G134: =#REF! ->  | J134: 0
A135: 공구손료 | B135: 인건비의 2% | C135: 1 | D135: 식 | F135: =TRUNC($C135*E135) -> 0 | H135: =TRUNC($C135*G135) -> 0 | I135: =TRUNC(H134+H133+H132)*2% ->  | J135: =TRUNC($C135*I135) ->  | K135: =I135+G135+E135 ->  | L135: =TRUNC($C135*K135) -> 
A136: 소 계 | F136: =SUM(F6:F135) ->  | H136: =SUM(H6:H135) ->  | J136: =SUM(J6:J135) ->  | L136: =SUM(L6:L135) -> 

Sheet 4.환기설비 (hidden)
A2: ='3.위생배관'!A2 -> 
A3: 4.환기설비공사
A4: 품 명 | B4: 규 격 | C4: 수량 | D4: 단위 | E4: 재 료 비 | G4: 노 무 비 | I4: 경 비 | K4: 합 계 | M4: 비 고
E5: 단 가 | F5: 금 액 | G5: 단 가 | H5: 금 액 | I5: 단 가 | J5: 금 액 | K5: 단 가 | L5: 금 액
A6: 각형덕트 제작.설치(스 텐) | B6: 1.0T | C6: 108 | D6: M2 | E6: =#REF! ->  | F6: =TRUNC($C6*E6) ->  | G6: =#REF! ->  | I6: =#REF! ->  | K6: =I6+G6+E6 ->  | L6: =TRUNC($C6*K6) ->  | M6: =#REF! -> 
A7: 각형덕트 제작.설치(스 텐) | B7: 0.8T | C7: 43 | D7: M2 | E7: =#REF! ->  | G7: =#REF! ->  | I7: =#REF! ->  | K7: =I7+G7+E7 ->  | L7: =TRUNC($C7*K7) ->  | M7: =#REF! -> 
A8: 각형덕트 제작.설치(스 텐) | B8: 0.6T | C8: 24 | D8: M2 | E8: =#REF! ->  | G8: =#REF! ->  | I8: =#REF! ->  | M8: =#REF! -> 
A9: 덕 트 보 온 | B9: 25T 가교발포 | C9: 145 | D9: M2 | E9: =#REF! ->  | G9: =#REF! ->  | I9: =#REF! ->  | M9: =#REF! -> 
A10: 캔 버 스 이 음 | C10: 5 | D10: M2 | E10: =#REF! ->  | G10: =#REF! ->  | I10: =#REF! ->  | M10: =#REF! -> 
A11: 스 텐 망 | C11: 2 | D11: M2 | E11: =#REF! ->  | H11: 0 | J11: 0
A12: 스텐레스 관(K-TYPE) | B12: 20A | C12: 12 | D12: M | E12: =#REF! ->  | H12: 0 | J12: 0
A13: 스텐렌스 엘보 | B13: 20A 프레스식 | C13: 1 | D13: EA | E13: =#REF! ->  | H13: 0 | J13: 0
A14: 스텐렌스 티이 | B14: 20A 프레스식 | C14: 1 | D14: EA | E14: =#REF! ->  | H14: 0 | J14: 0
A15: 스텐레스 유니온 | B15: 20A 프레스식 | C15: 2 | D15: EA | E15: =#REF! ->  | H15: 0 | J15: 0
A16: 스텐레스 숫아답타소켓 | B16: 20A 프레스식 | C16: 2 | D16: EA | E16: =#REF! ->  | H16: 0 | J16: 0
A17: P.V.C 관 | B17: 100A (VG2) | C17: 8 | D17: M | E17: =#REF! ->  | H17: 0 | J17: 0
A18: 코 아 구 멍 뚫 기(벽 체) | B18: 100A | C18: 2 | D18: 개소 | F18: 0 | G18: =#REF! ->  | I18: =#REF! ->  | M18: =#REF! -> 
A19: 배 관 행 가 | B19: 100(일 반) | C19: 5 | D19: 개소 | E19: =#REF! ->  | H19: 0 | J19: 0 | M19: =#REF! -> 
A20: 스 텐 브 라 켓 트 | B20: 20A | C20: 2 | D20: EA | E20: =#REF! ->  | H20: 0 | J20: 0
A21: U 볼트 & 너 트(절 연) | B21: 20A | C21: 2 | D21: 개소 | E21: =#REF! ->  | H21: 0 | J21: 0 | M21: =#REF! -> 
A22: 볼 밸 브 | B22: 20A STS 10KG(S) | C22: 2 | D22: EA | E22: =#REF! ->  | H22: 0 | J22: 0
A23: 밸 브 명 패 | C23: 2 | D23: EA | E23: 5000 | F23: 10000 | H23: 0 | J23: 0 | K23: 5000 | L23: 10000
A24: 레 지 스 터 (STS) | B24: 300x 250 | C24: 3 | D24: EA | E24: =#REF! ->  | H24: 0 | J24: 0
A25: 환 기 캡 | B25: 100A STS | C25: 2 | D25: EA | E25: =#REF! ->  | H25: 0 | J25: 0
A26: STS BAND | B26: 200A | C26: 24 | D26: EA | E26: =#REF! ->  | H26: 0 | J26: 0
A27: STS BAND | B27: 100A | C27: 4 | D27: EA | E27: =#REF! ->  | H27: 0 | J27: 0
A28: 후 렉 시 블 덕 트 호 스 | B28: 200A . AL. 비보온 | C28: 18 | D28: M | E28: =#REF! ->  | H28: 0 | J28: 0
A29: 후 렉 시 블 덕 트 호 스 | B29: 100A . AL. 비보온 | C29: 2 | D29: M | E29: =#REF! ->  | H29: 0 | J29: 0
A30: 프 리 필 터(박스포함) | B30: 750x300x10T | C30: 1 | D30: EA | E30: 100000 | F30: 100000 | H30: 0 | J30: 0 | K30: 100000 | L30: 100000
A31: V.D (핸들포함) | B31: 500 x 350 | C31: 1 | D31: EA | E31: =#REF! ->  | H31: 0 | J31: 0
A32: V.D (핸들포함) | B32: 450 x 300 | C32: 5 | D32: EA | E32: =#REF! ->  | H32: 0 | J32: 0
A33: V.D (핸들포함) | B33: 350 x 300 | C33: 1 | D33: EA | E33: =#REF! ->  | H33: 0 | J33: 0
A34: V.D (핸들포함) | B34: 200A | C34: 1 | D34: EA | E34: =#REF! ->  | H34: 0 | J34: 0
A35: 폐기물 상차비 | B35: 30km | C35: 0.082 | D35: ton | F35: 0 | H35: 0 | I35: =#REF! -> 
A36: 잡자재비 | B36: 관의 2% | C36: 1 | D36: 식 | E36: =TRUNC(F12)*2% ->  | H36: 0 | J36: 0
A37: 인 건 비 | B37: 배 관 공 | C37: 1 | D37: 인 | F37: 0 | G37: =#REF! ->  | J37: 0
B38: 덕 트 공 | C38: 27 | D38: 인 | F38: 0 | G38: =#REF! ->  | J38: 0
B39: 보 통 인 부 | C39: 4 | D39: 인 | F39: 0 | G39: =#REF! ->  | J39: 0
A40: 공구손료 | B40: 인건비의 2% | C40: 1 | D40: 식 | F40: 0 | H40: 0 | I40: =TRUNC(H39+H38+H37)*2% -> 
A41: 소 계 | F41: =SUM(F6:F40) ->  | H41: =SUM(H6:H40) ->  | J41: =SUM(J6:J40) ->  | L41: =SUM(L12:L40) -> 

Sheet 5.가스설비 (hidden)
A2: ='3.위생배관'!A2 -> 
A3: 5.가스설비공사
A4: 품 명 | B4: 규 격 | C4: 수량 | D4: 단위 | E4: 재 료 비 | G4: 노 무 비 | I4: 경 비 | K4: 합 계 | M4: 비 고
E5: 단 가 | F5: 금 액 | G5: 단 가 | H5: 금 액 | I5: 단 가 | J5: 금 액 | K5: 단 가 | L5: 금 액
A6: 가스용 백관 (KSD-3631) | B6: 80A | C6: 36 | D6: M | E6: =#REF! ->  | F6: =TRUNC($C6*E6) ->  | H6: =TRUNC($C6*G6) -> 0 | J6: =TRUNC($C6*I6) -> 0 | K6: =I6+G6+E6 ->  | L6: =TRUNC($C6*K6) -> 
A7: 가스용 백관 (KSD-3631) | B7: 65A | C7: 12 | D7: M | E7: =#REF! ->  | H7: 0 | J7: 0 | K7: =I7+G7+E7 ->  | L7: =TRUNC($C7*K7) -> 
A8: 가스용 백관 (KSD-3631) | B8: 50A | C8: 18 | D8: M | E8: =#REF! ->  | H8: 0 | J8: 0
A9: 가스용 백관 (KSD-3631) | B9: 32A | C9: 6 | D9: M | E9: =#REF! ->  | H9: 0 | J9: 0
A10: 가스용 백관 (KSD-3631) | B10: 20A | C10: 54 | D10: M | E10: =#REF! ->  | H10: 0 | J10: 0
A11: 백 엘보 | B11: 80A 용접용 | C11: 5 | D11: EA | E11: =#REF! ->  | H11: 0 | J11: 0
A12: 백 엘보 | B12: 65A 용접용 | C12: 1 | D12: EA | E12: =#REF! ->  | H12: 0 | J12: 0
A13: 백 엘보 | B13: 50A 나사용 | C13: 2 | D13: EA | E13: =#REF! ->  | H13: 0 | J13: 0
A14: 백 엘보 | B14: 32A 나사용 | C14: 1 | D14: EA | E14: =#REF! ->  | H14: 0 | J14: 0
A15: 백 티이 | B15: 80A 용접용 | C15: 7 | D15: EA | E15: =#REF! ->  | H15: 0 | J15: 0
A16: 백 티이 | B16: 65A 용접용 | C16: 3 | D16: EA | E16: =#REF! ->  | H16: 0 | J16: 0
A17: 백 티이 | B17: 50A 나사용 | C17: 3 | D17: EA | E17: =#REF! ->  | H17: 0 | J17: 0
A18: 백 티이 | B18: 32A 나사용 | C18: 2 | D18: EA | E18: =#REF! ->  | H18: 0 | J18: 0
A19: 백 레듀샤 | B19: 80A x 65A 용접용 | C19: 1 | D19: EA | E19: =#REF! ->  | H19: 0 | J19: 0
A20: 백 캡 | B20: 80A 용접용 | C20: 1 | D20: EA | E20: =#REF! ->  | H20: 0 | J20: 0
A21: 백 캡 | B21: 65A 용접용 | C21: 1 | D21: EA | E21: =#REF! ->  | H21: 0 | J21: 0
A22: 백 캡 | B22: 50A 나사용 | C22: 1 | D22: EA | E22: =#REF! ->  | H22: 0 | J22: =TRUNC($C22*I22) -> 0
A23: 백 캡 | B23: 32A 나사용 | C23: 1 | D23: EA | E23: =#REF! ->  | H23: 0 | J23: 0
A24: 강 후렌지 | B24: 80A (합) 10㎏ | C24: 2 | D24: 조 | E24: =#REF! ->  | G24: =#REF! ->  | I24: =#REF! ->  | M24: =#REF! -> 
A25: 강 관 용 접 | B25: 80A | C25: 34 | D25: 개소 | E25: =#REF! ->  | G25: =#REF! ->  | I25: =#REF! ->  | M25: =#REF! -> 
A26: 강 관 용 접 | B26: 65A | C26: 13 | D26: 개소 | E26: =#REF! ->  | G26: =#REF! ->  | I26: =#REF! ->  | M26: =#REF! -> 
A27: 주강 볼밸브 | B27: 80A 10KG(F) | C27: 1 | D27: EA | E27: =#REF! ->  | H27: 0 | J27: 0
A28: 주강 볼밸브 | B28: 50A 10KG(F) | C28: 1 | D28: EA | E28: =#REF! ->  | H28: 0 | J28: 0
A29: 황동 볼밸브 | B29: 20A 10KG(S) | C29: 12 | D29: EA | E29: =#REF! ->  | H29: 0 | J29: 0
A30: 가 스 누 설 차 단 기 | B30: SH-80 동등이상품 | C30: 1 | D30: EA | E30: =#REF! ->  | H30: 0 | J30: 0
A31: 가 스 누 설 경 보 기 | B31: 공 업 용 (다 회 로) | C31: 5 | D31: EA | E31: =#REF! ->  | H31: 0 | J31: 0
A32: 가 스 누 설 감 지 기 | B32: 공 업 용 (분 리 형) | C32: 4 | D32: EA | E32: 90000 | F32: 360000 | H32: 0 | J32: 0 | K32: 90000 | L32: 360000
A33: 감 지 기 카 바 | C33: 4 | D33: EA | E33: =#REF! ->  | H33: 0 | J33: 0
A34: 금 속 후 렉 시 블 호 스 | B34: 20Ax 1000L, 가스용 | C34: 12 | D34: EA | E34: =#REF! ->  | H34: 0 | J34: 0
A35: 금 속 밸 브 소 켓 | B35: 20A, 가스용 | C35: 12 | D35: EA | E35: =#REF! ->  | H35: 0 | J35: 0
A36: 일 반 브 라 켓 트 | B36: 80A | C36: 11 | D36: EA | E36: =#REF! ->  | H36: 0 | J36: 0
A37: 일 반 브 라 켓 트 | B37: 65A | C37: 3 | D37: EA | E37: =#REF! ->  | H37: 0 | J37: 0
A38: 일 반 브 라 켓 트 | B38: 50A | C38: 4 | D38: EA | E38: =#REF! ->  | H38: 0 | J38: 0
A39: 일 반 브 라 켓 트 | B39: 32A | C39: 3 | D39: EA | E39: =#REF! ->  | H39: 0 | J39: 0
A40: 일 반 브 라 켓 트 | B40: 20A | C40: 27 | D40: EA | E40: =#REF! ->  | H40: 0 | J40: 0
A41: U 볼트 & 너 트(일 반) | B41: 80A | C41: 11 | D41: 개소 | E41: =#REF! ->  | H41: 0 | J41: 0 | M41: =#REF! -> 
A42: U 볼트 & 너 트(일 반) | B42: 65A | C42: 3 | D42: 개소 | E42: =#REF! ->  | H42: 0 | J42: 0 | M42: =#REF! -> 
A43: U 볼트 & 너 트(일 반) | B43: 50A | C43: 4 | D43: 개소 | E43: =#REF! ->  | H43: 0 | J43: 0 | M43: =#REF! -> 
A44: U 볼트 & 너 트(일 반) | B44: 32A | C44: 3 | D44: 개소 | E44: =#REF! ->  | H44: 0 | J44: 0 | M44: =#REF! -> 
A45: U 볼트 & 너 트(일 반) | B45: 20A | C45: 27 | D45: 개소 | E45: =#REF! ->  | H45: 0 | J45: 0 | M45: =#REF! -> 
A46: 녹막이 페인트칠 | B46: 2 회 | C46: 19 | D46: M2 | E46: =#REF! ->  | G46: =#REF! ->  | I46: =#REF! ->  | M46: =#REF! -> 
A47: 유 성 페 인 트 칠 | B47: 2 회 | C47: 19 | D47: M2 | E47: =#REF! ->  | G47: =#REF! ->  | I47: =#REF! ->  | M47: =#REF! -> 
A48: 강 관 나 사 접 합 | B48: 50A | C48: 10 | D48: 개소 | E48: =#REF! ->  | G48: =#REF! ->  | I48: =#REF! ->  | M48: =#REF! -> 
A49: 강 관 나 사 접 합 | B49: 32A | C49: 7 | D49: 개소 | E49: =#REF! ->  | G49: =#REF! ->  | I49: =#REF! ->  | M49: =#REF! -> 
A50: 잡자재비 | B50: 관의 2% | C50: 1 | D50: 식 | E50: =TRUNC(F30+F37+F38)*2% ->  | H50: 0 | J50: 0
A51: 인 건 비 | B51: 배 관 공 | C51: 15 | D51: 인 | F51: 0 | G51: =#REF! ->  | J51: 0
B52: 보 통 인 부 | C52: 7 | D52: 인 | F52: 0 | G52: =#REF! ->  | J52: 0
A53: 공구손료 | B53: 인건비의 2% | C53: 1 | D53: 식 | F53: 0 | H53: 0 | I53: =TRUNC(H52+H51)*2% -> 
A54: 소 계 | F54: =SUM(F6:F53) ->  | H54: =SUM(H6:H53) ->  | J54: =SUM(J6:J53) ->  | L54: =SUM(L10:L53) -> 

Sheet 9.부산시교육청 폼 (hidden)
A2: ## 공 사 명 : 용암초등학교 서관개축 기계설비공사
A3: 9. 가스설비공사
A4: 품 명 | B4: 규 격 | C4: 수량 | D4: 단위 | E4: 재 료 비 | G4: 노 무 비 | I4: 경 비 | K4: 비 고
E5: 단 가 | F5: 금 액 | G5: 단 가 | H5: 금 액 | I5: 단 가 | J5: 금 액
A6: 백 강관(KSD-3507) | B6: 100A | C6: 6 | D6: M | E6: 16443 | F6: =TRUNC($C6*E6) -> 98658 | H6: 0 | J6: =TRUNC($C6*I6) -> 0
A7: 백 강관(KSD-3507) | B7: 50A | C7: 30 | D7: M | E7: 6905 | F7: 207150 | H7: 0 | J7: 0
A8: 백 강관(KSD-3507) | B8: 40A | C8: 18 | D8: M | E8: 4900 | F8: 88200 | H8: 0 | J8: 0
A9: 백 강관(KSD-3507) | B9: 25A | C9: 24 | D9: M | E9: 3320 | F9: 79680 | H9: 0 | J9: 0
A10: 백 강관(KSD-3507) | B10: 20A | C10: 12 | D10: M | E10: 2271 | F10: 27252 | H10: 0 | J10: 0
A11: 백 엘보 | B11: 100A 용접용 | C11: 2 | D11: EA | E11: 9850 | F11: 19700 | H11: 0 | J11: 0
A12: 백 엘보 | B12: 50A 나사용 | C12: 8 | D12: EA | E12: 3880 | F12: 31040 | H12: 0 | J12: 0
A13: 백 엘보 | B13: 25A 나사용 | C13: 17 | D13: EA | E13: 1390 | F13: 23630 | H13: 0 | J13: 0
A14: 백 엘보 | B14: 20A 나사용 | C14: 6 | D14: EA | E14: 870 | F14: 5220 | H14: 0 | J14: 0
A15: 백 티이 | B15: 100A 용접용 | C15: 1 | D15: EA | E15: 14190 | F15: 14190 | H15: 0 | J15: 0
A16: 백 티이 | B16: 50A 나사용 | C16: 12 | D16: EA | E16: 5050 | F16: 60600 | H16: 0 | J16: 0
A17: 백 티이 | B17: 25A 나사용 | C17: 1 | D17: EA | E17: 1920 | F17: 1920 | H17: 0 | J17: 0
A18: 백 캡 | B18: 100A 용접용 | C18: 1 | D18: EA | E18: 5170 | F18: 5170 | H18: 0 | J18: 0
A19: 백 캡 | B19: 50A 나사용 | C19: 1 | D19: EA | E19: 2880 | F19: 2880 | H19: 0 | J19: 0
A20: 백 캡 | B20: 25A 나사용 | C20: 1 | D20: EA | E20: 920 | F20: 920 | H20: 0 | J20: 0
A21: 강 후렌지 | B21: 100A (조) 10㎏ | C21: 2 | D21: EA | E21: 21023 | F21: 42046 | G21: 67820 | H21: 135640 | I21: 1356 | J21: 2712 | K21: 대가3호
A22: 강 관 용 접 | B22: 100A | C22: 7 | D22: 개소 | E22: 805 | F22: 5635 | G22: 33910 | H22: 237370 | I22: 678 | J22: 4746 | K22: 대가2호
A23: 강 관 용 접 | B23: 50A | C23: 1 | D23: 개소 | E23: 146 | F23: 146 | G23: 18962 | H23: 18962 | I23: 379 | J23: 379 | K23: 대가1호
A24: P.E 가스관 | B24: 90A | C24: 27 | D24: M | E24: 12010 | F24: 324270 | H24: 0 | J24: 0
A25: 가스용 P.E 90'엘 보 | B25: 90A | C25: 5 | D25: EA | E25: 46750 | F25: 233750 | H25: 0 | J25: 0
A26: P.E T/ F | B26: 90A | C26: 1 | D26: EA | E26: 62190 | F26: 62190 | H26: 0 | J26: 0
A27: P.E 전자소켓 | B27: 90A | C27: 7 | D27: EA | E27: 30400 | F27: 212800 | H27: 0 | J27: 0
A28: 가스계량기 | B28: G- 25(40㎥/HR) | C28: 1 | D28: EA | E28: 1376000 | F28: 1376000 | H28: 0 | J28: 0
A29: 도시가스온압보정기 | B29: G-25용 | C29: 1 | D29: EA | E29: 1300000 | F29: 1300000 | H29: 0 | J29: 0
A30: 미터기카바(STS 1.2T) | B30: 600*400*800(G-25용) | C30: 1 | D30: EA | E30: 300000 | F30: 300000 | H30: 0 | J30: 0
A31: 가 스 누 설 차 단 기 | B31: SH-50 동등이상품 | C31: 1 | D31: EA | E31: 450000 | F31: 450000 | H31: 0 | J31: 0
A32: 가 스 누 설 감 지 기 | B32: 공 업 용 (분 리 형) | C32: 5 | D32: EA | E32: 90000 | F32: 450000 | H32: 0 | J32: 0
A33: 감 지 기 카 바 | C33: 5 | D33: EA | E33: 30000 | F33: 150000 | H33: 0 | J33: 0
A34: 라 인 마 크 | C34: 4 | D34: EA | E34: 4000 | F34: 16000 | H34: 0 | J34: 0
A35: 가 스 관 보 호 대 | C35: 1 | D35: EA | E35: 125000 | F35: 125000 | H35: 0 | J35: 0
A36: 가 스 누 설 경 보 기 | B36: 공 업 용 (다 회 로) | C36: 6 | D36: 회로 | E36: 350000 | F36: 2100000 | H36: 0 | J36: 0
A37: 금 속 후 렉 시 블 호 스 | B37: 25Ax 1000L, 가스용 | C37: 6 | D37: EA | E37: 30000 | F37: 180000 | H37: 0 | J37: 0
A38: 금 속 후 렉 시 블 호 스 | B38: 20Ax 1000L, 가스용 | C38: 5 | D38: EA | E38: 20000 | F38: 100000 | H38: 0 | J38: 0
A39: P. E 가 스 융 착 | B39: 90A | C39: 25 | D39: 개소 | F39: 0 | G39: 53999 | H39: 1349975 | I39: 2699 | J39: 67475 | K39: 대가57호
A40: 스 텐 브 라 켓 트 | B40: 100A | C40: 1 | D40: EA | E40: 4000 | F40: 4000 | H40: 0 | J40: 0
A41: 스 텐 브 라 켓 트 | B41: 50A | C41: 8 | D41: EA | E41: 2500 | F41: 20000 | H41: 0 | J41: 0
A42: 스 텐 브 라 켓 트 | B42: 40A | C42: 6 | D42: EA | E42: 2300 | F42: 13800 | H42: 0 | J42: 0
A43: 스 텐 브 라 켓 트 | B43: 25A | C43: 9 | D43: EA | E43: 1500 | F43: 13500 | H43: 0 | J43: 0
A44: 스 텐 브 라 켓 트 | B44: 20A | C44: 3 | D44: EA | E44: 1300 | F44: 3900 | H44: 0 | J44: 0
A45: U 볼트 & 너 트(일 반) | B45: 100A | C45: 1 | D45: 개소 | E45: 939 | F45: 939 | H45: 0 | J45: 0
A46: U 볼트 & 너 트(일 반) | B46: 50A | C46: 8 | D46: 개소 | E46: 305 | F46: 2440 | H46: 0 | J46: 0
A47: U 볼트 & 너 트(일 반) | B47: 40A | C47: 6 | D47: 개소 | E47: 281 | F47: 1686 | H47: 0 | J47: 0
A48: U 볼트 & 너 트(일 반) | B48: 25A | C48: 9 | D48: 개소 | E48: 255 | F48: 2295 | H48: 0 | J48: 0
A49: U 볼트 & 너 트(일 반) | B49: 20A | C49: 3 | D49: 개소 | E49: 244 | F49: 732 | H49: 0 | J49: 0
A50: 주강 볼밸브 | B50: 100A 10KG(F) | C50: 1 | D50: EA | E50: 332690 | F50: 332690 | H50: 0 | J50: 0
A51: 황동 볼밸브 | B51: 50A 10KG(S) | C51: 3 | D51: EA | E51: 30660 | F51: 91980 | H51: 0 | J51: 0
A52: 황동 볼밸브 | B52: 25A 10KG(S) | C52: 6 | D52: EA | E52: 9250 | F52: 55500 | H52: 0 | J52: 0
A53: 황동 볼밸브 | B53: 20A 10KG(S) | C53: 5 | D53: EA | E53: 5150 | F53: 25750 | H53: 0 | J53: 0
A54: 녹막이 페인트칠 | B54: 2 회 | C54: 10 | D54: M2 | E54: 1648 | F54: 16480 | G54: 6788 | H54: 67880 | I54: 135 | J54: 1350 | K54: 대가39호
A55: 유 성 페 인 트 칠 | B55: 2 회 | C55: 10 | D55: M2 | E55: 962 | F55: 9620 | G55: 9050 | H55: 90500 | I55: 181 | J55: 1810 | K55: 대가40호
A56: 터 파 기 | B56: 인 력 | C56: 7 | D56: M3 | F56: 0 | G56: 27658 | H56: 193606 | J56: 0 | K56: 대가58호
A57: 되 메 우 기 | B57: 인 력 | C57: 3 | D57: M3 | F57: 0 | G57: 13829 | H57: 41487 | J57: 0 | K57: 대가59호
A58: 터 파 기 | B58: 기 계 | C58: 15 | D58: M3 | E58: 422 | F58: 6330 | G58: 2257 | H58: 33855 | I58: 657 | J58: 9855 | K58: 대가60호
A59: 되 메 우 기 | B59: 기 계 | C59: 8 | D59: M3 | E59: 475 | F59: 3800 | G59: 4698 | H59: 37584 | I59: 490 | J59: 3920 | K59: 대가61호
A60: 잔 토 처 리 | C60: 7 | D60: M3 | E60: 5334 | F60: 37338 | G60: 11684 | H60: 81788 | I60: 2989 | J60: 20923 | K60: 대가62호
A61: 콘 크 리 트 컷 팅 | C61: 26 | D61: M | E61: 510 | F61: 13260 | G61: 4876 | H61: 126776 | I61: 257 | J61: 6682 | K61: 대가63호
A62: 아 스 팔 트 포 장 컷 팅 | C62: 28 | D62: M | E62: 416 | F62: 11648 | G62: 1206 | H62: 33768 | I62: 73 | J62: 2044 | K62: 대가64호
A63: 콘 트 리 트 타 설 | B63: 인 력 비 빔 | C63: 5 | D63: M3 | E63: 77560 | F63: 387800 | G63: 271355 | H63: 1356775 | I63: 0 | J63: 0 | K63: 대가66호
A64: 아 스 콘 포 장( 인 력) | B64: T= 50 | C64: 12 | D64: M2 | E64: 8574 | F64: 102888 | G64: 6044 | H64: 72528 | I64: 499 | J64: 5988 | K64: 대가67호
A65: 탄 성 제 포 장 | C65: 11 | D65: M2 | E65: 100000 | F65: 1100000 | H65: 0 | J65: 0
A66: 모 래 부 설 | C66: 7 | D66: M3 | E66: 45600 | F66: 319200 | G66: 55316 | H66: 387212 | I66: 1106 | J66: 7742 | K66: 대가69호
A67: 기 밀 시 험 | C67: 1 | D67: 회 | F67: 0 | G67: 34159 | H67: 34159 | J67: 0
A68: 시 험 점 화 | C68: 1 | D68: 회 | F68: 0 | G68: 17422 | H68: 17422 | J68: 0
A69: 작 업 부 산 물 | B69: 고 철 | C69: 100 | D69: KG | E69: -350 | F69: -35000 | H69: 0 | J69: 0
A70: 잡자재비 | B70: 관의 3% | C70: 1 | D70: 식 | E70: =TRUNC(F6+F7+F8+F9+F10)*3% -> 15028.2 | F70: =TRUNC($C70*E70) -> 15028 | H70: 0 | J70: 0
A71: 인 건 비 | B71: 배 관 공 | C71: 6 | D71: 인 | F71: 0 | G71: 189003 | H71: 1134018 | J71: 0
B72: 보 통 인 부 | C72: 3 | D72: 인 | F72: 0 | G72: 138290 | H72: 414870 | J72: 0
B73: 계 장 공 | C73: 2 | D73: 인 | F73: 0 | G73: 223793 | H73: 447586 | J73: 0
A74: 공구손료 | B74: 인건비의 2% | C74: 1 | D74: 식 | F74: 0 | H74: 0 | I74: =TRUNC(H71+H72+H73)*2% -> 39929.48 | J74: 39929
A75: 소 계 | F75: =SUM(F6:F74) -> 10651651 | H75: =SUM(H6:H74) -> 6313761 | J75: =SUM(J6:J74) -> 175555

Sheet 6.관급자재설치에 따른기타공사 (hidden)
A2: ='3.위생배관'!A2 -> 
A3: 6.관급자재 설치에 따른 기타공사
A4: 품 명 | B4: 규 격 | C4: 수량 | D4: 단위 | E4: 재 료 비 | G4: 노 무 비 | I4: 경 비 | K4: 합 계 | M4: 비 고
E5: 단 가 | F5: 금 액 | G5: 단 가 | H5: 금 액 | I5: 단 가 | J5: 금 액 | K5: 단 가 | L5: 금 액
A6: 6-1 히터펌프 구매설치 | F6: =TRUNC($C6*E6) -> 0 | H6: 0 | J6: 0 | K6: =I6+G6+E6 -> 0 | L6: =TRUNC($C6*K6) -> 0
A7: 윈드바이져 설치 | B7: 4-WAY용 | C7: 6 | D7: SET | E7: 100000 | F7: 4500000 | G7: 25436 | H7: 1144620 | I7: 0 | J7: 0 | K7: 125436 | L7: 5644620
A8: 천정형 냉,난방기 실외기 철거 | B8: 10HP~12HP | C8: 1 | D8: 대 | F8: 0 | G8: =#REF! ->  | J8: 0 | K8: =I8+G8+E8 ->  | L8: =TRUNC($C8*K8) ->  | M8: =#REF! -> 
A9: 천정형 냉,난방기 실외기 철거 | B9: 24HP~30HP | C9: 1 | D9: 대 | F9: 0 | G9: =#REF! ->  | J9: 0 | M9: =#REF! -> 
A10: 냉,난방기 실내기 철거 | B10: 천정형 | C10: 8 | D10: 대 | F10: 0 | G10: =#REF! ->  | J10: 0 | M10: =#REF! -> 
A11: 냉,난방기 실내기 철거 | B11: 스텐드형 | C11: 1 | D11: 대 | F11: 0 | G11: =#REF! ->  | J11: 0 | M11: =#REF! -> 
A12: 스텐드형 냉난방기 이설 | B12: 10HP | C12: 1 | D12: 대 | F12: 0 | H12: 0 | J12: 0 | K12: 0 | L12: 0 | N12: 견적받아야 됨
A13: 코 아 구 멍 뚫 기(벽 체) | B13: 75A | C13: 4 | D13: 개소 | F13: 0 | G13: =#REF! ->  | I13: =#REF! ->  | M13: =#REF! -> 
A14: 코 아 구 멍 뚫 기(벽 체) | B14: 250A | C14: 12 | D14: 개소 | F14: 0 | G14: =#REF! ->  | I14: =#REF! ->  | M14: =#REF! -> 
A15: 반달형 캡 설치 | B15: 32A | C15: 1 | D15: 개소 | E15: =#REF! ->  | G15: =#REF! ->  | J15: 0 | M15: =#REF! -> 
A16: 유선리모컨 철거 | C16: 8 | D16: 개소 | F16: 0 | G16: =#REF! ->  | J16: 0 | M16: =#REF! -> 
A17: 동관철거 | B17: 8A(9.52￠) | C17: 71 | D17: M | F17: 0 | G17: =#REF! ->  | J17: 0 | M17: =#REF! -> 
A18: 동관철거 | B18: 10A(12.7￠) | C18: 108 | D18: M | F18: 0 | G18: =#REF! ->  | J18: 0 | M18: =#REF! -> 
A19: 동관철거 | B19: 20A(19.05￠) | C19: 4 | D19: M | F19: 0 | G19: =#REF! ->  | J19: 0 | M19: =#REF! -> 
A20: 동관철거 | B20: 25A(28.58￠) | C20: 37 | D20: M | F20: 0 | G20: =#REF! ->  | J20: 0 | M20: =#REF! -> 
A21: 동관철거 | B21: 32A(34.9￠) | C21: 4 | D21: M | F21: 0 | G21: =#REF! ->  | J21: 0 | M21: =#REF! -> 
A22: 보온재 철거 | B22: D15x10T | C22: 172 | D22: M | F22: 0 | G22: =#REF! ->  | J22: 0 | M22: =#REF! -> 
A23: 보온재 철거 | B23: D20x10T | C23: 11 | D23: M | F23: 0 | G23: =#REF! ->  | J23: 0 | M23: =#REF! -> 
A24: 보온재 철거 | B24: D25x10T | C24: 37 | D24: M | F24: 0 | G24: =#REF! ->  | J24: 0 | M24: =#REF! -> 
A25: 보온재 철거 | B25: D32x10T | C25: 4 | D25: M | F25: 0 | G25: =#REF! ->  | J25: 0 | M25: =#REF! -> 
A26: 건축물 현장정리 | B26: 보수공사시 청소 및 뒷정리 | C26: 8 | D26: M2 | F26: 0 | G26: =#REF! ->  | J26: 0 | M26: =#REF! -> 
A27: 트레이철거 | B27: 300MM 이하 | C27: 5 | D27: M | F27: 0 | G27: =#REF! ->  | J27: 0 | M27: =#REF! -> 
A28: 함석냉매배관 커버철거 | C28: 2 | D28: M2 | F28: 0 | G28: =#REF! ->  | J28: 0 | M28: =#REF! -> 
A29: 그릴설치 | B29: AL. 300x200 | C29: 12 | D29: 개소 | E29: =#REF! ->  | G29: =#REF! ->  | J29: 0 | M29: =#REF! -> 
A30: 크레인 | B30: 10ton | C30: 4 | D30: 시간 | E30: =#REF! ->  | G30: =#REF! ->  | I30: =#REF! ->  | M30: =#REF! -> 
A31: 폐기물 상차비 | B31: 30km | C31: 78 | D31: ton | F31: 0 | H31: 0 | I31: =#REF! -> 
A32: 6-2 공기순환기 | F32: 0 | H32: 0 | J32: 0 | K32: 0 | L32: 0
A33: 코 아 구 멍 뚫 기(벽 체) | B33: 150A | C33: 4 | D33: 개소 | F33: 0 | G33: =#REF! ->  | I33: =#REF! ->  | M33: =#REF! -> 
A34: 폐기물 상차비 | B34: 30km | C34: 0.032 | D34: ton | F34: =TRUNC($C34*E34) -> 0 | H34: =TRUNC($C34*G34) -> 0 | I34: =#REF! ->  | J34: =TRUNC($C34*I34) ->  | K34: =I34+G34+E34 ->  | L34: =TRUNC($C34*K34) -> 
A35: 소 계 | F35: =SUM(F6:F34) ->  | H35: =SUM(H6:H34) ->  | J35: =SUM(J6:J34) ->  | L35: =SUM(L12:L33) -> 

Sheet 양치시설견적서 (hidden)
A1: 見 積 書
F3: 2021-01-11
A4: ㈜기술사사무소제일기술단 | C4: 귀하 | F4: 라 온 스 톤
A5: 윤 인구대표 | F5: ㅂ
A6: 下記와 如히 見積 하나이다.
A7: 공 사 명: 일체형 세면대 인조대리석 공사
A8: 견적금액: 칠백이십만칠천구백이십원정 | F8: yongdeok7117@hanmail.net
A9: 견 적 내 역 | B9: 규 격 | C9: 단위 | D9: 수 량 | F9: 단 가 | G9: 금 액
A10: *적용칼라:LG하이막스/롯데 스타론
A11: 양치시설 | B11: D550*L2000 | C11: M | D11: 1 | F11: =639000*2 -> 1278000 | G11: =D11*F11 -> 1278000
B12: D550*L1900 | C12: M | D12: 1 | F12: =639000*1.9 -> 1214100 | G12: 1214100
B13: D550*L1800 | C13: M | D13: 1 | F13: =639000*1.8 -> 1150200 | G13: 1150200
B14: D550*L1700 | C14: M | D14: 1 | F14: =639000*1.7 -> 1086300 | G14: 1086300
B15: D550*L1600 | C15: M | D15: 1 | F15: =639000*1.6 -> 1022400 | G15: 1022400
B16: D550*L1500 | C16: M | D16: 1 | F16: =639000*1.5 -> 958500 | G16: 958500
B17: D550*L1400 | C17: M | D17: 1 | F17: =639000*1.4 -> 894600 | G17: 894600
B18: D550*L1300 | C18: M | D18: 1 | F18: =639000*1.3 -> 830700 | G18: 830700
B19: D550*L1200 | C19: M | D19: 1 | F19: =639000*1.2 -> 766800 | G19: 766800
B20: D550*L1100 | C20: M | D20: 1 | F20: =639000*1.1 -> 702900 | G20: 702900
B21: D550*L1000 | C21: M | D21: 1 | F21: =639000*1 -> 639000 | G21: 639000
B22: D550*L900 | C22: M | D22: 1 | F22: =639000*0.9 -> 575100 | G22: 575100
B23: D550*L600 | C23: M | D23: 1 | F23: =639000*0.6 -> 383400 | G23: 383400
A24: 합 계 | G24: =SUM(G11:G23) -> 11502000
A33: 備 考 : | B33: 1. V.A.T 별도 금액.
B34: 2. 상기 견적은 인조대리석 가,시공 포함견적이며 하부 각파이프 포함
B35: 3. 양치세면대 416,000/M당+ 트러스 32,500/M당 수량= 길이x4
A41: 규격 | B41: 양치세면대 | G41: 트러스
B42: 길이 | C42: 단가 | F42: 금액 | G42: 길이 | H42: 단가 | I42: 금액 | J42: 합계
A43: L= 3700 | B43: 3700 | C43: 416000 | F43: =C43*(B43/1000) -> 1539200 | G43: =4*(B43/1000) -> 14.8 | H43: 32500 | I43: =H43*G43 -> 481000 | J43: =I43+F43 -> 2020200
A44: L= 3600 | B44: 3600 | C44: 416000 | F44: =C44*(B44/1000) -> 1497600 | G44: =4*(B44/1000) -> 14.4 | H44: 32500 | I44: =H44*G44 -> 468000 | J44: =I44+F44 -> 1965600
A45: L= 3500 | B45: 3500 | C45: 416000 | F45: 1456000 | G45: 14 | H45: 32500 | I45: 455000 | J45: 1911000
A46: L= 3400 | B46: 3400 | C46: 416000 | F46: 1414400 | G46: 13.6 | H46: 32500 | I46: 442000 | J46: 1856400
A47: L= 3300 | B47: 3300 | C47: 416000 | F47: 1372800 | G47: 13.2 | H47: 32500 | I47: 429000 | J47: 1801800
A48: L= 3200 | B48: 3200 | C48: 416000 | F48: 1331200 | G48: 12.8 | H48: 32500 | I48: 416000 | J48: 1747200
A49: L= 3100 | B49: 3100 | C49: 416000 | F49: 1289600 | G49: 12.4 | H49: 32500 | I49: 403000 | J49: 1692600
A50: L= 3000 | B50: 3000 | C50: 416000 | F50: 1248000 | G50: 12 | H50: 32500 | I50: 390000 | J50: 1638000
A51: L= 2900 | B51: 2900 | C51: 416000 | F51: 1206400 | G51: 11.6 | H51: 32500 | I51: 377000 | J51: 1583400
A52: L= 2800 | B52: 2800 | C52: 416000 | F52: 1164800 | G52: 11.2 | H52: 32500 | I52: 364000 | J52: 1528800
A53: L= 2700 | B53: 2700 | C53: 416000 | F53: 1123200 | G53: 10.8 | H53: 32500 | I53: 351000 | J53: 1474200
A54: L= 2600 | B54: 2600 | C54: 416000 | F54: 1081600 | G54: 10.4 | H54: 32500 | I54: 338000 | J54: 1419600
A55: L= 2500 | B55: 2500 | C55: 416000 | F55: 1040000 | G55: 10 | H55: 32500 | I55: 325000 | J55: 1365000
A56: L= 2400 | B56: 2400 | C56: 416000 | F56: 998400 | G56: 9.6 | H56: 32500 | I56: 312000 | J56: 1310400
A57: L= 2300 | B57: 2300 | C57: 416000 | F57: 956800 | G57: 9.2 | H57: 32500 | I57: 299000 | J57: 1255800
A58: L= 2200 | B58: 2200 | C58: 416000 | F58: 915200 | G58: 8.8 | H58: 32500 | I58: 286000 | J58: 1201200
A59: L= 2100 | B59: 2100 | C59: 416000 | F59: 873600 | G59: 8.4 | H59: 32500 | I59: 273000 | J59: 1146600
A60: L= 2000 | B60: 2000 | C60: 416000 | F60: 832000 | G60: 8 | H60: 32500 | I60: 260000 | J60: 1092000
A61: L= 1900 | B61: 1900 | C61: 416000 | F61: 790400 | G61: 7.6 | H61: 32500 | I61: 247000 | J61: 1037400
A62: L= 1800 | B62: 1800 | C62: 416000 | F62: 748800 | G62: 7.2 | H62: 32500 | I62: 234000 | J62: 982800
A63: L= 1700 | B63: 1700 | C63: 416000 | F63: 707200 | G63: 6.8 | H63: 32500 | I63: 221000 | J63: 928200
A64: L= 1600 | B64: 1600 | C64: 416000 | F64: 665600 | G64: 6.4 | H64: 32500 | I64: 208000 | J64: 873600
A65: L= 1500 | B65: 1500 | C65: 416000 | F65: 624000 | G65: 6 | H65: 32500 | I65: 195000 | J65: 819000
A66: L= 1400 | B66: 1400 | C66: 416000 | F66: 582400 | G66: 5.6 | H66: 32500 | I66: 182000 | J66: 764400
A67: L= 1300 | B67: 1300 | C67: 416000 | F67: 540800 | G67: 5.2 | H67: 32500 | I67: 169000 | J67: 709800
A68: L= 1200 | B68: 1200 | C68: 416000 | F68: 499200 | G68: 4.8 | H68: 32500 | I68: 156000 | J68: 655200
A69: L= 1100 | B69: 1100 | C69: 416000 | F69: 457600 | G69: 4.4 | H69: 32500 | I69: 143000 | J69: 600600
A70: L= 1000 | B70: 1000 | C70: 416000 | F70: 416000 | G70: 4 | H70: 32500 | I70: 130000 | J70: 546000
A71: L= 900 | B71: 900 | C71: 416000 | F71: 374400 | G71: 3.6 | H71: 32500 | I71: 117000 | J71: 491400
A72: L= 800 | B72: 800 | C72: 416000 | F72: 332800 | G72: 3.2 | H72: 32500 | I72: 104000 | J72: 436800
A73: L= 900 | B73: 700 | C73: 416000 | F73: 291200 | G73: 2.8 | H73: 32500 | I73: 91000 | J73: 382200
A74: L= 900 | B74: 600 | C74: 416000 | F74: 249600 | G74: 2.4 | H74: 32500 | I74: 78000 | J74: 327600

Sheet 작업부산물 (hidden)
A2: ='6.관급자재설치에 따른기타공사'!A2 -> 
A3: ■ 작업부산물
A4: 품 명 | B4: 규 격 | C4: 수량 | D4: 단위 | E4: 재 료 비 | G4: 노 무 비 | I4: 경 비 | K4: 합 계 | M4: 비 고
E5: 단 가 | F5: 금 액 | G5: 단 가 | H5: 금 액 | I5: 단 가 | J5: 금 액 | K5: 단 가 | L5: 금 액
A6: 1. 위생배관 | F6: =TRUNC($C6*E6) -> 0
A7: 작 업 부 산 물 | B7: 고 스텐 | C7: 427 | D7: KG | E7: =#REF! -> 
A8: 2. 환기설비 | F8: 0
A9: 작 업 부 산 물 | B9: 고 스텐 | C9: 494 | D9: KG | E9: =#REF! -> 
A10: 3. 가스설비 | F10: 0
A11: 작 업 부 산 물 | B11: 고 철 | C11: 259 | D11: KG | E11: =#REF! -> 
A12: 4.기타공사(히터펌프) | F12: 0
A13: 작 업 부 산 물 | B13: 고 동 | C13: 102 | D13: KG | E13: =#REF! -> 
B14: 고 철 | C14: 662 | D14: KG | E14: =#REF! -> 
A15: 소 계 | F15: =SUM(F6:F14) ->  | H15: =SUM(H6:H14) -> 0 | J15: =SUM(J6:J14) -> 0 | L15: =SUM(L6:L14) -> 0

Sheet 폐기물처리 (hidden)
A2: =작업부산물!A2 -> 
A3: ■ 폐기물처리
A4: 품 명 | B4: 규 격 | C4: 수량 | D4: 단위 | E4: 재 료 비 | G4: 노 무 비 | I4: 경 비 | K4: 합 계 | M4: 비 고
E5: 단 가 | F5: 금 액 | G5: 단 가 | H5: 금 액 | I5: 단 가 | J5: 금 액 | K5: 단 가 | L5: 금 액
A6: 1. 위생배관
A7: 폐기물처리비 | B7: 혼합폐기물 | C7: 0.27 | D7: ton | F7: =TRUNC($C7*E7) -> 0 | H7: =TRUNC($C7*G7) -> 0 | I7: =#REF! ->  | J7: =TRUNC($C7*I7) ->  | K7: =I7+G7+E7 -> 
A8: 폐기물처리비 | B8: 건설폐기물 | C8: 23.4 | D8: ton | F8: =TRUNC($C8*E8) -> 0 | H8: =TRUNC($C8*G8) -> 0 | I8: =#REF! ->  | J8: =TRUNC($C8*I8) -> 
A9: 폐기물운반비 | B9: 30km | C9: 23.708 | D9: ton | F9: =TRUNC($C9*E9) -> 0 | H9: =TRUNC($C9*G9) -> 0 | I9: 11562 | J9: =TRUNC($C9*I9) -> 274111 | K9: 11562 | L9: 274111
A10: 2. 환기설비
A11: 폐기물처리비 | B11: 폐콘크리트 | C11: 0.082 | D11: ton | F11: =TRUNC($C11*E11) -> 0 | H11: =TRUNC($C11*G11) -> 0 | I11: =#REF! ->  | J11: =TRUNC($C11*I11) ->  | K11: =I11+G11+E11 ->  | L11: =J11+H11+F11 -> 
A12: 폐기물운반비 | B12: 30km | C12: 0.082 | D12: ton | F12: =TRUNC($C12*E12) -> 0 | H12: =TRUNC($C12*G12) -> 0 | I12: 11562 | J12: =TRUNC($C12*I12) -> 948 | K12: =I12+G12+E12 -> 11562 | L12: =J12+H12+F12 -> 948
A13: 3.기타공사(히터펌프)
A14: 폐기물처리비 | B14: 혼합폐기물 | C14: 77.149 | D14: ton | F14: =TRUNC($C14*E14) -> 0 | H14: =TRUNC($C14*G14) -> 0 | I14: =#REF! ->  | J14: =TRUNC($C14*I14) ->  | K14: =I14+G14+E14 -> 
A15: 폐기물처리비 | B15: 건설폐기물 | C15: 0.296 | D15: ton | F15: =TRUNC($C15*E15) -> 0 | H15: =TRUNC($C15*G15) -> 0 | I15: =#REF! ->  | J15: =TRUNC($C15*I15) -> 
A16: 폐기물운반비 | B16: 30km | C16: 77.445 | D16: ton | F16: =TRUNC($C16*E16) -> 0 | H16: =TRUNC($C16*G16) -> 0 | I16: 11562 | J16: =TRUNC($C16*I16) -> 895419 | K16: 11562 | L16: 895419
A17: 4.기타공사(공기순환기)
A18: 폐기물처리비 | B18: 건설폐기물 | C18: 0.032 | D18: ton | F18: =TRUNC($C18*E18) -> 0 | H18: =TRUNC($C18*G18) -> 0 | I18: =#REF! ->  | J18: =TRUNC($C18*I18) ->  | K18: =I18+G18+E18 ->  | L18: =J18+H18+F18 -> 
A19: 폐기물운반비 | B19: 30km | C19: 0.032 | D19: ton | F19: =TRUNC($C19*E19) -> 0 | H19: =TRUNC($C19*G19) -> 0 | I19: 11562 | J19: =TRUNC($C19*I19) -> 369 | K19: =I19+G19+E19 -> 11562 | L19: =J19+H19+F19 -> 369
A20: 소 계 | F20: =SUM(F6:F19) -> 0 | H20: =SUM(H6:H19) -> 0 | J20: =SUM(J6:J19) ->  | L20: =SUM(L6:L19) -> 

Sheet 관급자재집계 (hidden)
A1: 공 종 별 집 계 표
A2: =#REF! -> 
A3: 품 명 | B3: 규 격 | C3: 단위 | D3: 수량 | E3: 재 료 비 | G3: 노 무 비 | I3: 경 비 | K3: 합 계 | M3: 비 고 | N3: 공종코드 | O3: 변수 | P3: 상위공종 | Q3: 공종구분 | R3: 공종레벨 | S3: 공종소계 | T3: 원가계산서 연결금액
E4: 단 가 | F4: 금 액 | G4: 단 가 | H4: 금 액 | I4: 단 가 | J4: 금 액 | K4: 단 가 | L4: 금 액
A5: 물탱크 구매. 설치공사 | C5: 식 | D5: 1 | F5: =물탱크구매!I10 -> 27471100 | L5: =F5+H5+J5 -> 27471100
A6: [ 합 계 ] | F6: =SUM(F5:F5) -> 27471100 | H6: =SUM(H5:H5) -> 0 | J6: =SUM(J5:J5) -> 0 | L6: =SUM(L5:L5) -> 27471100 | N6: 0101 | P6: 01 | R6: 2

Sheet 물탱크구매 (hidden)
A2: =#REF! -> 
A3: 물탱크 구매. 설치공사
A4: 품 명 | B4: 규 격 | C4: 톤수 | D4: 구분 | E4: 물품번호 | F4: 수량 | G4: 단가 | H4: 옵션금액 | I4: 전체금액 | J4: 비 고
A6: 저수탱크 | B6: 기본품목 SI-120T-5 | C6: 120 | D6: 단판 | E6: 22557684 | F6: 1 | G6: 25134000 | H6: =G6*F6 -> 25134000 | I6: 25134100 | J6: 120톤/단판/칸막이
B7: 옵션② 120톤/칸막이 | D7: 칸막이 | E7: 23918716 | F7: 2 | G7: 100 | H7: 200
A8: 방파패널 | B8: SIDS1010S | E8: 23307015 | F8: 10 | G8: 189000 | I8: 1890000
A9: 방파패널 | B9: SIDS0510S | E9: 23307016 | F9: 3 | G9: 149000 | I9: 447000
A10: 소 계 | I10: =SUM(I6:I9) -> 27471100
E19: `

Sheet 1.전기히터펌프구매설치 (hidden)
A1: 관 급 자 재 내 역 서
A2: 공사명 : 계림중학교 급식시설현대화 기계설비공사 중 냉난방기 구매.설치
A3: 품명 | B3: 삼성전자(주) | H3: 엘지전자(주) | N3: 비고
B4: 규격 | C4: 단위 | D4: 수량 | E4: 단가 | F4: 금액 | G4: 물품식별번호 | H4: 규격 | I4: 단위 | J4: 수량 | K4: 단가 | L4: 금액 | M4: 물품식별번호
A5: 전기히트펌프 | B5: AM180NXVUHH1, 냉방52.2난방59.1KW | C5: 대 | D5: 1 | E5: 9031000 | F5: =ROUNDDOWN(D5*E5,0) -> 9031000 | G5: 23477280 | H5: RPUW18FX9V냉방52.2/난방56.7KW | I5: 대 | J5: 1 | K5: 9031000 | L5: =ROUNDDOWN(J5*K5,0) -> 9031000 | M5: 23461988 | O5: 18HP
A6: 전기히트펌프 | B6: AM300NXVUHH1SY, 냉방87.0난방98.3KW | C6: 대 | D6: 1 | E6: 14980900 | F6: =ROUNDDOWN(D6*E6,0) -> 14980900 | G6: 23477286 | H6: RP-W30FX9V냉방87.0/난방97.9KW | I6: 대 | J6: 1 | K6: 14980900 | L6: =ROUNDDOWN(J6*K6,0) -> 14980900 | M6: 23470064 | O6: 30HP
A7: 전기히트펌프 실내기 | B7: AM032MN1FBH1PP, 냉방3.2난방3.6KW ,1방향천장형 | C7: 대 | D7: 2 | E7: 403000 | F7: =ROUNDDOWN(D7*E7,0) -> 806000 | G7: 23478167 | H7: R-W032PC25, 냉방3.2/난방3.6KW | I7: 대 | J7: 2 | K7: 415000 | L7: =ROUNDDOWN(J7*K7,0) -> 830000 | M7: 23238036
A8: 전기히트펌프 실내기 | B8: AM145NN4DBH1PP, 냉방14.5난방16.3KW ,4방향천장형 | C8: 대 | D8: 6 | E8: 800000 | F8: =ROUNDDOWN(D8*E8,0) -> 4800000 | G8: 23478377 | H8: R-W145PT2S, 냉방14.5KW/난방16.3KW | I8: 대 | J8: 6 | K8: 781000 | L8: =ROUNDDOWN(J8*K8,0) -> 4686000 | M8: 23240110
A9: 전기히트펌프 실내기 | B9: AM145KNHDBH1PP, 냉방14.5난방16.3KW ,매립덕트형 | C9: 대 | D9: 3 | E9: 750000 | F9: =ROUNDDOWN(D9*E9,0) -> 2250000 | G9: 23031174 | H9: RNW145PB2S, 냉방14.5KW/난방16.3KW | I9: 대 | J9: 3 | K9: 716000 | L9: =ROUNDDOWN(J9*K9,0) -> 2148000 | M9: 23238080
A14: 소계 | F14: =SUM(F5:F13) -> 31867900 | L14: =SUM(L5:L13) -> 31675900
A15: 냉난방공조공사 | B15: 가변형히트펌프냉난방기설치, 기본(냉매배관제외) | C15: 식 | D15: 11 | E15: 588700 | F15: =ROUNDDOWN(D15*E15,0) -> 6475700 | G15: 21567236 | H15: 가변형히트펌프냉난방기설치, 기본(냉매배관제외) | I15: 식 | J15: 11 | K15: 588700 | L15: =ROUNDDOWN(J15*K15,0) -> 6475700 | M15: 21567236
A16: 냉난방공조공사 | B16: 냉매관및설치,평균Φ12.7mm, 커버없음, 1m당 | C16: M | D16: 132 | E16: 6000 | F16: 792000 | G16: 10061680 | H16: 냉매관및설치,평균Φ12.7mm, 커버없음, 1m당 | I16: M | J16: 132 | K16: 6000 | L16: 792000 | M16: 10061680
A17: 냉난방공조공사 | B17: 냉매관및설치,평균Φ15.88mm, 커버없음, 1m당 | C17: M | D17: 25 | E17: 7080 | F17: 177000 | G17: 10061682 | H17: 냉매관및설치,평균Φ15.88mm, 커버없음, 1m당 | I17: M | J17: 25 | K17: 7080 | L17: 177000 | M17: 10061682
A18: 냉난방공조공사 | B18: 냉매관및설치,평균Φ20mm, 커버없음, 1m당 | C18: M | D18: 31 | E18: 8600 | F18: 266600 | G18: 10061684 | H18: 냉매관및설치,평균Φ20mm, 커버없음, 1m당 | I18: M | J18: 31 | K18: 8600 | L18: 266600 | M18: 10061684
A19: 냉난방공조공사 | B19: 냉매관및설치,평균Φ25mm, 커버없음, 1m당 | C19: M | D19: 25 | E19: 10470 | F19: 261750 | G19: 20373317 | H19: 냉매관및설치,평균Φ25mm, 커버없음, 1m당 | I19: M | J19: 25 | K19: 10470 | L19: 261750 | M19: 20373317
A20: 냉난방공조공사 | B20: 냉매관및설치,평균Φ28.58mm, 커버없음, 1m당 | C20: M | D20: 36 | E20: 11300 | F20: 406800 | G20: 20910814 | H20: 냉매관및설치,평균Φ28.58mm, 커버없음, 1m당 | I20: M | J20: 36 | K20: 11300 | L20: 406800 | M20: 20910814
A21: 냉난방공조공사 | B21: 냉난방기용,PVC 드레인관설치,Φ32 | C21: M | D21: 58 | E21: 6000 | F21: 348000 | G21: 20373322 | H21: 냉난방기용,PVC 드레인관설치,Φ32 | I21: M | J21: 58 | K21: 6000 | L21: 348000 | M21: 20373322
A22: 냉난방공조공사 | B22: 냉난방기용Y분기관(대)설치 | C22: EA | D22: 2 | E22: 98800 | F22: =ROUNDDOWN(D22*E22,0) -> 197600 | G22: 21590439 | H22: 냉난방기용Y분기관(대)설치 | I22: EA | J22: 2 | K22: 98800 | L22: =ROUNDDOWN(J22*K22,0) -> 197600 | M22: 21590439
A23: 냉난방공조공사 | B23: 냉난방기용Y분기관설치 | C23: EA | D23: 7 | E23: 52100 | F23: =ROUNDDOWN(D23*E23,0) -> 364700 | G23: 20469354 | H23: 냉난방기용Y분기관설치 | I23: EA | J23: 7 | K23: 52100 | L23: =ROUNDDOWN(J23*K23,0) -> 364700 | M23: 20469354
A24: 히트펌프용실내기 | B24: (부품)삼성전자, AWR-WGOONPP,룸컨트롤러 | C24: EA | D24: 11 | E24: 80000 | F24: 880000 | G24: 23587189 | H24: PREMTB01P0, 룸컨트롤러 | I24: EA | J24: 11 | K24: 70000 | L24: 770000 | M24: 23183812
A25: 냉난방공조공사 | B25: 룸컨트롤러세트용, 전선및전선관설치(커버없음) | C25: M | D25: 77 | E25: 6400 | F25: 492800 | G25: 10061686 | H25: 룸컨트롤러세트용, 전선및전선관설치(커버없음) | I25: M | J25: 77 | K25: 6400 | L25: 492800 | M25: 10061686
A26: 냉난방공조공사 | B26: 실내기실외기간 통신용케이블및CD관설치 | C26: M | D26: 151 | E26: 6400 | F26: 966400 | G26: 22723642 | H26: 실내기실외기간 통신용케이블및CD관설치 | I26: M | J26: 151 | K26: 6400 | L26: 966400 | M26: 22723642
A27: 전기히트펌프 | B27: 받침대,평균990×830×130mm | C27: 조 | D27: 2 | E27: 116400 | F27: 232800 | G27: 20912098 | H27: 받침대,평균990×830×130mm | I27: 조 | J27: 2 | K27: 116400 | L27: 232800 | M27: 20912098
A28: 냉난방공조공사 | B28: 실외기노출배관커버트레이 | C28: 조 | D28: 5 | E28: 43600 | F28: =ROUNDDOWN(D28*E28,0) -> 218000 | G28: 20912089 | H28: 실외기노출배관커버트레이 | I28: 조 | J28: 5 | K28: 43600 | L28: =ROUNDDOWN(J28*K28,0) -> 218000 | M28: 20912089
A29: 냉난방공조공사 | B29: 냉난방기용,함석 냉매배관커버설치 | C29: ㎡ | D29: 2 | E29: 22100 | F29: 44200 | G29: 20373320 | H29: 냉난방기용,함석 냉매배관커버설치 | I29: ㎡ | J29: 2 | K29: 22100 | L29: 44200 | M29: 20373320
A30: 냉난방공조공사 | B30: 냉난방기용덕트설치, 평균￠250mm | C30: 식 | D30: 3 | E30: 1411300 | F30: 4233900 | G30: 21191695 | H30: 냉난방기용덕트설치, 평균￠250mm | I30: 식 | J30: 3 | K30: 1411300 | L30: 4233900 | M30: 21191695
A31: 냉난방공조공사 | B31: 가변형히터펌프냉난방기용덕트설치, 플렉시블평균￠200mm | C31: M | D31: 45 | E31: 6300 | F31: 283500 | G31: 20912088 | H31: 가변형히터펌프냉난방기용덕트설치, 플렉시블평균￠200mm | I31: M | J31: 45 | K31: 6300 | L31: 283500 | M31: 20912088
A32: 냉난방공조공사 | B32: 가변형히터펌프냉난방기용덕트설치, 토출용챔버평균￠200mm | C32: 개 | D32: 3 | E32: 86300 | F32: 258900 | G32: 20912091 | H32: 가변형히터펌프냉난방기용덕트설치, 토출용챔버평균￠200mm | I32: 개 | J32: 3 | K32: 86300 | L32: 258900 | M32: 20912091
A33: 냉난방공조공사 | B33: 가변형히터펌프냉난방기용덕트설치, 흡입용챔버평균￠200mm | C33: 개 | D33: 3 | E33: 122700 | F33: 368100 | G33: 20912092 | H33: 가변형히터펌프냉난방기용덕트설치, 흡입용챔버평균￠200mm | I33: 개 | J33: 3 | K33: 122700 | L33: 368100 | M33: 20912092
A34: 냉난방공조공사 | B34: 가변형히터펌프냉난방기용덕트설치, 디퓨져평균￠200mm | C34: 개 | D34: 12 | E34: 14500 | F34: 174000 | G34: 20912096 | H34: 가변형히터펌프냉난방기용덕트설치, 디퓨져평균￠200mm | I34: 개 | J34: 12 | K34: 14500 | L34: 174000 | M34: 20912096
A35: 히트펌프용실내기 | B35: (부품)삼성전자,ACM-A202DN | C35: EA | D35: 1 | E35: 112900 | F35: 112900 | G35: 22724063 | H35: 기능성중앙제어기 | I35: EA | J35: 1 | K35: 237500 | L35: 237500 | M35: 22180321
A36: 냉난방공조공사 | B36: 중앙컨트롤러세트용, 전선및전선관설치(커버없음) | C36: M | D36: 53 | E36: 6400 | F36: 339200 | G36: 10061688 | H36: 중앙컨트롤러세트용, 전선및전선관설치(커버없음) | I36: M | J36: 53 | K36: 6400 | L36: 339200 | M36: 10061688
A37: 냉난방공조공사 | B37: 공기조절장치설치용 크레인. 50톤 | C37: 대 | D37: 1 | E37: 752700 | F37: 752700 | G37: 21624130 | H37: 공기조절장치설치용 크레인. 50톤 | I37: 대 | J37: 1 | K37: 752700 | L37: 752700 | M37: 21624130
A38: 소계 | F38: =SUM(F15:F37) -> 18647550 | L38: =SUM(L15:L37) -> 18662150
A39: 히트펌프용실내기 | B39: PC4NUCK4NPP, 공기청정키트 | C39: EA | D39: 8 | E39: 550000 | F39: 4400000 | G39: 23587191 | H39: PAH-TMPOM, 공기청정키트 | I39: 대 | J39: 8 | K39: 500000 | L39: =ROUNDDOWN(J39*K39,0) -> 4000000 | M39: 23392708
A40: 소계 | F40: =SUM(F39) -> 4400000 | L40: =SUM(L39) -> 4000000
A41: 조달수수료 | B41: 0.54% | C41: 식 | D41: 1 | E41: =INT(SUM(F14+F38+F40)*0.54%) -> 296543 | F41: =ROUNDDOWN(D41*E41,0) -> 296543 | H41: 0.54% | I41: 식 | J41: 1 | K41: =INT(SUM(L14+L38+L40)*0.54%) -> 293425 | L41: =ROUNDDOWN(J41*K41,0) -> 293425
A42: 합계 | F42: =ROUNDDOWN(($F$41+$F$40+$F$38+$F$14),-3) -> 55211000 | L42: =ROUNDDOWN(($L$41+$L$40+$L$38+$L$14),-3) -> 54631000

Sheet 공기순환기 구매설치 (hidden)
A1: [공사명] | B1: 계림중학교 급식시설 현대화 기계설비공사 중 공기순환기 납품설치
A2: No. | B2: Description | C2: 나라장터물품 식별번호 | D2: Unit | E2: Q'ty | F2: Unit Price | G2: Amount | H2: Remarks
A3: 1. 공기순환기 설치공사
A4: 1) | B4: 공기순환장치 150㎥/h (장비)폐열회수형 | C4: 23646331 | D4: 대 | E4: 2 | F4: 450000 | G4: =SUM(E4*F4) -> 900000
A5: 2) | B5: 덕트설치기본, 평균Φ150mm | C5: 20770454 | D5: 식 | E5: 2 | F5: 1024000 | G5: =SUM(E5*F5) -> 2048000
A6: 3) | B6: 스파이럴덕트설치, 평균Φ200mm | C6: 20770457 | D6: M | E6: 5 | F6: 17190 | G6: =SUM(E6*F6) -> 85950
A7: 4) | B7: 플렉시블덕트설치, 평균Φ200mm | C7: 20770458 | D7: M | E7: 4 | F7: 6170 | G7: =SUM(E7*F7) -> 24680
A8: 5) | B8: 덕트보온, 평균Φ200mm | C8: 20770459 | D8: M2 | E8: 8 | F8: 8070 | G8: 64560
A9: 6) | B9: 덕트부자재(엘보), 평균Φ200mm | C9: 20770461 | D9: EA | E9: 10 | F9: 6700 | G9: =SUM(E9*F9) -> 67000
A10: 7) | B10: 덕트부자재(분기관), 평균Φ200mm | C10: 20770462 | D10: EA | E10: 4 | F10: 5700 | G10: 22800
A11: 8) | B11: 룸콘트롤러세트및 설치 | C11: 20770464 | D11: EA | E11: 2 | F11: 28500 | G11: 57000
A12: 9) | B12: 룸콘트롤러설치용 전선 및 전선관 | C12: 20770467 | D12: M | E12: 9 | F12: 4080 | G12: 36720
B13: 소 계 | G13: =SUM(G4:G12) -> 3306710
B14: 조달수수료 | C14: 소계의 0.53% | D14: 식 | E14: 1 | G14: =G13*0.53% -> 17525.563
B19: 합 계 | G19: =SUM(G13:G17) -> 3324235.563

Sheet 일위대가목록(21년 하반기) (hidden)
A1: 일 위 대 가 목 록
A2: 2021년 하반기 기계설비 일위대가
A3: 코 드 | B3: 대가번호 | C3: 품 명 | D3: 규 격 | E3: 단위 | F3: 재 료 비 | G3: 노 무 비 | H3: 경 비 | I3: 합 계
A4: 69 | C4: 설비공사단위가격표
A5: 6901 | C5: 강판절단
A6: 6901001 | B6: 1호표 | C6: 강판절단 | D6: 3.2MM | E6: m | F6: 174 | G6: 1478 | H6: 29 | I6: 1681
A7: 6901002 | B7: 2호표 | C7: 강판절단 | D7: 4.5MM | E7: m | F7: 383 | G7: 1606 | H7: 32 | I7: 2021
A8: 6901003 | B8: 3호표 | C8: 강판절단 | D8: 6MM | E8: m | F8: 593 | G8: 1735 | H8: 34 | I8: 2362
A9: 6901004 | B9: 4호표 | C9: 강판절단 | D9: 9MM | E9: m | F9: 831 | G9: 1909 | H9: 38 | I9: 2778
A10: 6901005 | B10: 5호표 | C10: 강판절단 | D10: 12MM | E10: m | F10: 1249 | G10: 2249 | H10: 44 | I10: 3542
A11: 6902 | B11: 6호표 | C11: 강판용접(수평)
A12: 6902001 | B12: 7호표 | C12: 강판용접 | D12: 3.2MM | E12: m | F12: 632 | G12: 10299 | H12: 205 | I12: 11136
A13: 6902002 | B13: 8호표 | C13: 강판용접 | D13: 4.5MM | E13: m | F13: 1127 | G13: 12277 | H13: 245 | I13: 13649
A14: 6902003 | B14: 9호표 | C14: 강판용접 | D14: 6MM | E14: m | F14: 1933 | G14: 14897 | H14: 297 | I14: 17127
A15: 6902004 | B15: 10호표 | C15: 강판용접 | D15: 9MM | E15: m | F15: 3960 | G15: 25856 | H15: 517 | I15: 30333
A16: 6902005 | B16: 11호표 | C16: 강판용접 | D16: 12MM | E16: m | F16: 6033 | G16: 36715 | H16: 734 | I16: 43482
A17: 6903 | B17: 12호표 | C17: 강관절단
A18: 6903001 | B18: 13호표 | C18: 강관절단 | D18: D25이하 | E18: 개소 | F18: 19 | G18: 642 | H18: 12 | I18: 673
A19: 6903002 | B19: 14호표 | C19: 강관절단 | D19: D32 | E19: 개소 | F19: 22 | G19: 642 | H19: 12 | I19: 676
A20: 6903003 | B20: 15호표 | C20: 강관절단 | D20: D40 | E20: 개소 | F20: 26 | G20: 873 | H20: 17 | I20: 916
A21: 6903004 | B21: 16호표 | C21: 강관절단 | D21: D50 | E21: 개소 | F21: 31 | G21: 873 | H21: 17 | I21: 921
A22: 6903005 | B22: 17호표 | C22: 강관절단 | D22: D65 | E22: 개소 | F22: 39 | G22: 1285 | H22: 25 | I22: 1349
A23: 6903006 | B23: 18호표 | C23: 강관절단 | D23: D80 | E23: 개소 | F23: 51 | G23: 1516 | H23: 30 | I23: 1597
A24: 6903007 | B24: 19호표 | C24: 강관절단 | D24: D100 | E24: 개소 | F24: 99 | G24: 2801 | H24: 56 | I24: 2956
A25: 6903008 | B25: 20호표 | C25: 강관절단 | D25: D125 | E25: 개소 | F25: 182 | G25: 3213 | H25: 64 | I25: 3459
A26: 6903009 | B26: 21호표 | C26: 강관절단 | D26: D150 | E26: 개소 | F26: 281 | G26: 4317 | H26: 86 | I26: 4684
A27: 6903010 | B27: 22호표 | C27: 강관절단 | D27: D200 | E27: 개소 | F27: 463 | G27: 5191 | H27: 103 | I27: 5757
A28: 6903011 | B28: 23호표 | C28: 강관절단 | D28: D250 | E28: 개소 | F28: 813 | G28: 6476 | H28: 129 | I28: 7418
A29: 6903012 | B29: 24호표 | C29: 강관절단 | D29: D300 | E29: 개소 | F29: 1068 | G29: 8635 | H29: 172 | I29: 9875
A30: 6903013 | B30: 25호표 | C30: 강관절단 | D30: D350 | E30: 개소 | F30: 1258 | G30: 11667 | H30: 233 | I30: 13158
A31: 6904 | B31: 26호표 | C31: 강관용접
A32: 6904001 | B32: 27호표 | C32: 강관용접 | D32: D15 | E32: 개소 | F32: 21 | G32: 8305 | H32: 166 | I32: 8492
A33: 6904002 | B33: 28호표 | C33: 강관용접 | D33: D20 | E33: 개소 | F33: 39 | G33: 9920 | H33: 198 | I33: 10157
A34: 6904003 | B34: 29호표 | C34: 강관용접 | D34: D25 | E34: 개소 | F34: 57 | G34: 11996 | H34: 239 | I34: 12292
A35: 6904004 | B35: 30호표 | C35: 강관용접 | D35: D32 | E35: 개소 | F35: 85 | G35: 14303 | H35: 286 | I35: 14674
A36: 6904005 | B36: 31호표 | C36: 강관용접 | D36: D40 | E36: 개소 | F36: 111 | G36: 16149 | H36: 322 | I36: 16582
A37: 6904006 | B37: 32호표 | C37: 강관용접 | D37: D50 | E37: 개소 | F37: 151 | G37: 19610 | H37: 392 | I37: 20153
A38: 6904007 | B38: 33호표 | C38: 강관용접 | D38: D65 | E38: 개소 | F38: 440 | G38: 24224 | H38: 484 | I38: 25148
A39: 6904008 | B39: 34호표 | C39: 강관용접 | D39: D80 | E39: 개소 | F39: 569 | G39: 27915 | H39: 558 | I39: 29042
A40: 6904009 | B40: 35호표 | C40: 강관용접 | D40: D100 | E40: 개소 | F40: 833 | G40: 35067 | H40: 701 | I40: 36601
A41: 6904010 | B41: 36호표 | C41: 강관용접 | D41: D125 | E41: 개소 | F41: 1183 | G41: 42449 | H41: 848 | I41: 44480
A42: 6904011 | B42: 37호표 | C42: 강관용접 | D42: D150 | E42: 개소 | F42: 1589 | G42: 49832 | H42: 996 | I42: 52417
A43: 6904012 | B43: 38호표 | C43: 강관용접 | D43: D200 | E43: 개소 | F43: 1808 | G43: 64828 | H43: 1296 | I43: 67932
A44: 6904013 | B44: 39호표 | C44: 강관용접 | D44: D250 | E44: 개소 | F44: 2321 | G44: 79593 | H44: 1591 | I44: 83505
A45: 6904014 | B45: 40호표 | C45: 강관용접 | D45: D300 | E45: 개소 | F45: 2792 | G45: 94358 | H45: 1887 | I45: 99037
A46: 6905 | B46: 41호표 | C46: 동관용접
A47: 6905001 | B47: 42호표 | C47: 동관용접 | D47: D15 | E47: 개소 | F47: 193 | G47: 5075 | H47: 101 | I47: 5369
A48: 6905002 | B48: 43호표 | C48: 동관용접 | D48: D20 | E48: 개소 | F48: 401 | G48: 6921 | H48: 138 | I48: 7460
A49: 6905003 | B49: 44호표 | C49: 동관용접 | D49: D25 | E49: 개소 | F49: 562 | G49: 8766 | H49: 175 | I49: 9503
A50: 6905004 | B50: 45호표 | C50: 동관용접 | D50: D32 | E50: 개소 | F50: 761 | G50: 10381 | H50: 207 | I50: 11349
A51: 6905005 | B51: 46호표 | C51: 동관용접 | D51: D40 | E51: 개소 | F51: 998 | G51: 12227 | H51: 244 | I51: 13469
A52: 6905006 | B52: 47호표 | C52: 동관용접 | D52: D50 | E52: 개소 | F52: 1474 | G52: 15457 | H52: 309 | I52: 17240
A53: 6905007 | B53: 48호표 | C53: 동관용접 | D53: D65 | E53: 개소 | F53: 1956 | G53: 20532 | H53: 410 | I53: 22898
A54: 6905008 | B54: 49호표 | C54: 동관용접 | D54: D80 | E54: 개소 | F54: 2691 | G54: 24224 | H54: 484 | I54: 27399
A55: 6905009 | B55: 50호표 | C55: 동관용접 | D55: D100 | E55: 개소 | F55: 4515 | G55: 31606 | H55: 632 | I55: 36753
A56: 6905010 | B56: 51호표 | C56: 동관용접 | D56: D125 | E56: 개소 | F56: 6436 | G56: 38989 | H56: 779 | I56: 46204
A57: 6905011 | B57: 52호표 | C57: 동관용접 | D57: D150 | E57: 개소 | F57: 9445 | G57: 46371 | H57: 927 | I57: 56743
A58: 6905012 | B58: 53호표 | C58: 동관용접 | D58: D200 | E58: 개소 | F58: 21370 | G58: 61137 | H58: 1222 | I58: 83729
A59: 6906 | B59: 54호표 | C59: 스텐관용접
A60: 6906001 | B60: 55호표 | C60: 스텐관용접 | D60: D15 | E60: 개소 | F60: 349 | G60: 11535 | H60: 230 | I60: 12114
A61: 6906002 | B61: 56호표 | C61: 스텐관용접 | D61: D20 | E61: 개소 | F61: 547 | G61: 13150 | H61: 263 | I61: 13960
A62: 6906003 | B62: 57호표 | C62: 스텐관용접 | D62: D25 | E62: 개소 | F62: 769 | G62: 15226 | H62: 304 | I62: 16299
A63: 6906004 | B63: 58호표 | C63: 스텐관용접 | D63: D32 | E63: 개소 | F63: 934 | G63: 17764 | H63: 355 | I63: 19053
A64: 6906005 | B64: 59호표 | C64: 스텐관용접 | D64: D40 | E64: 개소 | F64: 1251 | G64: 19379 | H64: 387 | I64: 21017
A65: 6906006 | B65: 60호표 | C65: 스텐관용접 | D65: D50 | E65: 개소 | F65: 1692 | G65: 22839 | H65: 456 | I65: 24987
A66: 6906007 | B66: 61호표 | C66: 스텐관용접 | D66: D65 | E66: 개소 | F66: 3287 | G66: 27454 | H66: 549 | I66: 31290
A67: 6906008 | B67: 62호표 | C67: 스텐관용접 | D67: D80 | E67: 개소 | F67: 4146 | G67: 31145 | H67: 622 | I67: 35913
A68: 6906009 | B68: 63호표 | C68: 스텐관용접 | D68: D100 | E68: 개소 | F68: 6381 | G68: 38527 | H68: 770 | I68: 45678
A69: 6906010 | B69: 64호표 | C69: 스텐관용접 | D69: D125 | E69: 개소 | F69: 9497 | G69: 45910 | H69: 918 | I69: 56325
A70: 6906011 | B70: 65호표 | C70: 스텐관용접 | D70: D150 | E70: 개소 | F70: 12008 | G70: 53293 | H70: 1065 | I70: 66366
A71: 6906012 | B71: 66호표 | C71: 스텐관용접 | D71: D200 | E71: 개소 | F71: 20192 | G71: 68058 | H71: 1361 | I71: 89611
A72: 6906013 | B72: 67호표 | C72: 스텐관용접 | D72: D250 | E72: 개소 | F72: 28852 | G72: 82823 | H72: 1656 | I72: 113331
A73: 6906014 | B73: 68호표 | C73: 스텐관용접 | D73: D300 | E73: 개소 | F73: 39298 | G73: 97588 | H73: 1951 | I73: 138837
A74: 6908 | B74: 69호표 | C74: 주철관접합 NO-HUB
A75: 6908001 | B75: 70호표 | C75: 주철관접합 NO-HUB | D75: D50 | E75: 접합개소 | F75: 3360 | G75: 38452 | H75: 769 | I75: 42581
A76: 6908002 | B76: 71호표 | C76: 주철관접합 NO-HUB | D76: D75 | E76: 접합개소 | F76: 3840 | G76: 53214 | H76: 1064 | I76: 58118
A77: 6908003 | B77: 72호표 | C77: 주철관접합 NO-HUB | D77: D100 | E77: 접합개소 | F77: 4560 | G77: 67775 | H77: 1355 | I77: 73690
A78: 6908004 | B78: 73호표 | C78: 주철관접합 NO-HUB | D78: D125 | E78: 접합개소 | F78: 10160 | G78: 82335 | H78: 1646 | I78: 94141
A79: 6908005 | B79: 74호표 | C79: 주철관접합 NO-HUB | D79: D150 | E79: 접합개소 | F79: 10720 | G79: 97098 | H79: 1941 | I79: 109759
A80: 6908006 | B80: 75호표 | C80: 주철관접합 NO-HUB | D80: D200 | E80: 접합개소 | F80: 19200 | G80: 119545 | H80: 2390 | I80: 141135
A81: 69071 | B81: 76호표 | C81: 주철관접합 (후렌지)
A82: 6907101 | B82: 77호표 | C82: 주철관접합 (후렌지) | D82: D50 | E82: 접합개소 | F82: 2485 | G82: 42439 | H82: 848 | I82: 45772
A83: 6907102 | B83: 78호표 | C83: 주철관접합 (후렌지) | D83: D75 | E83: 접합개소 | F83: 3150 | G83: 57865 | H83: 1157 | I83: 62172
A84: 6907103 | B84: 79호표 | C84: 주철관접합 (후렌지) | D84: D100 | E84: 접합개소 | F84: 3570 | G84: 73494 | H84: 1469 | I84: 78533
A85: 6907104 | B85: 80호표 | C85: 주철관접합 (후렌지) | D85: D125 | E85: 접합개소 | F85: 4620 | G85: 88516 | H85: 1770 | I85: 94906
A86: 6907105 | B86: 81호표 | C86: 주철관접합 (후렌지) | D86: D150 | E86: 접합개소 | F86: 6440 | G86: 99465 | H86: 1989 | I86: 107894
A87: 6907106 | B87: 82호표 | C87: 주철관접합 (후렌지) | D87: D200 | E87: 접합개소 | F87: 9350 | G87: 128006 | H87: 2560 | I87: 139916
A88: 6909 | B88: 83호표 | C88: 용접합후렌지
A89: 6909001 | B89: 84호표 | C89: 용접합후렌지 | D89: D15 | E89: 개소 | F89: 2399 | G89: 8305 | H89: 166 | I89: 10870
A90: 6909002 | B90: 85호표 | C90: 용접합후렌지 | D90: D20 | E90: 개소 | F90: 2932 | G90: 9920 | H90: 198 | I90: 13050
A91: 6909003 | B91: 86호표 | C91: 용접합후렌지 | D91: D25 | E91: 개소 | F91: 4506 | G91: 11996 | H91: 239 | I91: 16741
A92: 6909004 | B92: 87호표 | C92: 용접합후렌지 | D92: D32 | E92: 개소 | F92: 5446 | G92: 14303 | H92: 286 | I92: 20035
A93: 6909005 | B93: 88호표 | C93: 용접합후렌지 | D93: D40 | E93: 개소 | F93: 5946 | G93: 16149 | H93: 322 | I93: 22417
A94: 6909006 | B94: 89호표 | C94: 용접합후렌지 | D94: D50 | E94: 개소 | F94: 6499 | G94: 19610 | H94: 392 | I94: 26501
A95: 6909007 | B95: 90호표 | C95: 용접합후렌지 | D95: D65 | E95: 개소 | F95: 8857 | G95: 24224 | H95: 484 | I95: 33565
A96: 6909008 | B96: 91호표 | C96: 용접합후렌지 | D96: D80 | E96: 개소 | F96: 10393 | G96: 27915 | H96: 558 | I96: 38866
A97: 6909009 | B97: 92호표 | C97: 용접합후렌지 | D97: D100 | E97: 개소 | F97: 12056 | G97: 35067 | H97: 701 | I97: 47824
A98: 6909010 | B98: 93호표 | C98: 용접합후렌지 | D98: D125 | E98: 개소 | F98: 18574 | G98: 42449 | H98: 848 | I98: 61871
A99: 6909011 | B99: 94호표 | C99: 용접합후렌지 | D99: D150 | E99: 개소 | F99: 23458 | G99: 49832 | H99: 996 | I99: 74286
A100: 6909012 | B100: 95호표 | C100: 용접합후렌지 | D100: D200 | E100: 개소 | F100: 28855 | G100: 64828 | H100: 1296 | I100: 94979
A101: 6909013 | B101: 96호표 | C101: 용접합후렌지 | D101: D250 | E101: 개소 | F101: 45330 | G101: 79593 | H101: 1591 | I101: 126514
A102: 6909014 | B102: 97호표 | C102: 용접합후렌지 | D102: D300 | E102: 개소 | F102: 51344 | G102: 94358 | H102: 1887 | I102: 147589
A103: 6910 | B103: 98호표 | C103: 용접조후렌지
A104: 6910001 | B104: 99호표 | C104: 용접조후렌지 | D104: D15 | E104: 개소 | F104: 4170 | G104: 16610 | H104: 332 | I104: 21112
A105: 6910002 | B105: 100호표 | C105: 용접조후렌지 | D105: D20 | E105: 개소 | F105: 5221 | G105: 19840 | H105: 396 | I105: 25457
A106: 6910003 | B106: 101호표 | C106: 용접조후렌지 | D106: D25 | E106: 개소 | F106: 8013 | G106: 23992 | H106: 478 | I106: 32483
A107: 6910004 | B107: 102호표 | C107: 용접조후렌지 | D107: D32 | E107: 개소 | F107: 9831 | G107: 28606 | H107: 572 | I107: 39009
A108: 6910005 | B108: 103호표 | C108: 용접조후렌지 | D108: D40 | E108: 개소 | F108: 10787 | G108: 32298 | H108: 644 | I108: 43729
A109: 6910006 | B109: 104호표 | C109: 용접조후렌지 | D109: D50 | E109: 개소 | F109: 11780 | G109: 39220 | H109: 784 | I109: 51784
A110: 6910007 | B110: 105호표 | C110: 용접조후렌지 | D110: D65 | E110: 개소 | F110: 16407 | G110: 48448 | H110: 968 | I110: 65823
A111: 6910008 | B111: 106호표 | C111: 용접조후렌지 | D111: D80 | E111: 개소 | F111: 18282 | G111: 55830 | H111: 1116 | I111: 75228
A112: 6910009 | B112: 107호표 | C112: 용접조후렌지 | D112: D100 | E112: 개소 | F112: 21079 | G112: 70134 | H112: 1402 | I112: 92615
A113: 6910010 | B113: 108호표 | C113: 용접조후렌지 | D113: D125 | E113: 개소 | F113: 32097 | G113: 84898 | H113: 1696 | I113: 118691
A114: 6910011 | B114: 109호표 | C114: 용접조후렌지 | D114: D150 | E114: 개소 | F114: 41487 | G114: 99664 | H114: 1992 | I114: 143143
A115: 6910012 | B115: 110호표 | C115: 용접조후렌지 | D115: D200 | E115: 개소 | F115: 50123 | G115: 129656 | H115: 2592 | I115: 182371
A116: 6910013 | B116: 111호표 | C116: 용접조후렌지 | D116: D250 | E116: 개소 | F116: 77741 | G116: 159186 | H116: 3182 | I116: 240109
A117: 6910014 | B117: 112호표 | C117: 용접조후렌지 | D117: D300 | E117: 개소 | F117: 86256 | G117: 188716 | H117: 3774 | I117: 278746
A118: 6911 | B118: 113호표 | C118: 동절연합후렌지접합
A119: 6911001 | B119: 114호표 | C119: 동절연합후렌지접합 | D119: D15 | E119: 개소 | F119: 7350 | G119: 5075 | H119: 101 | I119: 12526
A120: 6911002 | B120: 115호표 | C120: 동절연합후렌지접합 | D120: D20 | E120: 개소 | F120: 8338 | G120: 6921 | H120: 138 | I120: 15397
A121: 6911003 | B121: 116호표 | C121: 동절연합후렌지접합 | D121: D25 | E121: 개소 | F121: 10183 | G121: 8766 | H121: 175 | I121: 19124
A122: 6911004 | B122: 117호표 | C122: 동절연합후렌지접합 | D122: D32 | E122: 개소 | F122: 14737 | G122: 10381 | H122: 207 | I122: 25325
A123: 6911005 | B123: 118호표 | C123: 동절연합후렌지접합 | D123: D40 | E123: 개소 | F123: 17076 | G123: 12227 | H123: 244 | I123: 29547
A124: 6911006 | B124: 119호표 | C124: 동절연합후렌지접합 | D124: D50 | E124: 개소 | F124: 21976 | G124: 15457 | H124: 309 | I124: 37742
A125: 6911007 | B125: 120호표 | C125: 동절연합후렌지접합 | D125: D65 | E125: 개소 | F125: 29561 | G125: 20532 | H125: 410 | I125: 50503
A126: 6911008 | B126: 121호표 | C126: 동절연합후렌지접합 | D126: D80 | E126: 개소 | F126: 36177 | G126: 24224 | H126: 484 | I126: 60885
A127: 6911009 | B127: 122호표 | C127: 동절연합후렌지접합 | D127: D100 | E127: 개소 | F127: 52871 | G127: 31606 | H127: 632 | I127: 85109
A128: 6911010 | B128: 123호표 | C128: 동절연합후렌지접합 | D128: D125 | E128: 개소 | F128: 68151 | G128: 38989 | H128: 779 | I128: 107919
A129: 6911011 | B129: 124호표 | C129: 동절연합후렌지접합 | D129: D150 | E129: 개소 | F129: 94192 | G129: 46371 | H129: 927 | I129: 141490
A130: 6911012 | B130: 125호표 | C130: 동절연합후렌지접합 | D130: D200 | E130: 개소 | F130: 149027 | G130: 61137 | H130: 1222 | I130: 211386
A131: 6912 | B131: 126호표 | C131: 동절연조후렌지접합
A132: 6912001 | B132: 127호표 | C132: 동절연조후렌지접합 | D132: D15 | E132: 개소 | F132: 14072 | G132: 10150 | H132: 202 | I132: 24424
A133: 6912002 | B133: 128호표 | C133: 동절연조후렌지접합 | D133: D20 | E133: 개소 | F133: 16033 | G133: 13842 | H133: 276 | I133: 30151
A134: 6912003 | B134: 129호표 | C134: 동절연조후렌지접합 | D134: D25 | E134: 개소 | F134: 19367 | G134: 17532 | H134: 350 | I134: 37249
A135: 6912004 | B135: 130호표 | C135: 동절연조후렌지접합 | D135: D32 | E135: 개소 | F135: 28413 | G135: 20762 | H135: 414 | I135: 49589
A136: 6912005 | B136: 131호표 | C136: 동절연조후렌지접합 | D136: D40 | E136: 개소 | F136: 33047 | G136: 24454 | H136: 488 | I136: 57989
A137: 6912006 | B137: 132호표 | C137: 동절연조후렌지접합 | D137: D50 | E137: 개소 | F137: 42734 | G137: 30914 | H137: 618 | I137: 74266
A138: 6912007 | B138: 133호표 | C138: 동절연조후렌지접합 | D138: D65 | E138: 개소 | F138: 59597 | G138: 41064 | H138: 820 | I138: 101481
A139: 6912008 | B139: 134호표 | C139: 동절연조후렌지접합 | D139: D80 | E139: 개소 | F139: 69850 | G139: 48448 | H139: 968 | I139: 119266
A140: 6912009 | B140: 135호표 | C140: 동절연조후렌지접합 | D140: D100 | E140: 개소 | F140: 102709 | G140: 63212 | H140: 1264 | I140: 167185
A141: 6912010 | B141: 136호표 | C141: 동절연조후렌지접합 | D141: D125 | E141: 개소 | F141: 131251 | G141: 77978 | H141: 1558 | I141: 210787
A142: 6912011 | B142: 137호표 | C142: 동절연조후렌지접합 | D142: D150 | E142: 개소 | F142: 182955 | G142: 92742 | H142: 1854 | I142: 277551
A143: 6912012 | B143: 138호표 | C143: 동절연조후렌지접합 | D143: D200 | E143: 개소 | F143: 290467 | G143: 122274 | H143: 2444 | I143: 415185
A144: 6913 | B144: 139호표 | C144: 스텐용접합후렌지
A145: 6913001 | B145: 140호표 | C145: 스텐용접합후렌지 | D145: D15 | E145: 개소 | F145: 9092 | G145: 11535 | H145: 230 | I145: 20857
A146: 6913002 | B146: 141호표 | C146: 스텐용접합후렌지 | D146: D20 | E146: 개소 | F146: 9695 | G146: 13150 | H146: 263 | I146: 23108
A147: 6913003 | B147: 142호표 | C147: 스텐용접합후렌지 | D147: D25 | E147: 개소 | F147: 11526 | G147: 15226 | H147: 304 | I147: 27056
A148: 6913004 | B148: 143호표 | C148: 스텐용접합후렌지 | D148: D32 | E148: 개소 | F148: 12468 | G148: 17764 | H148: 355 | I148: 30587
A149: 6913005 | B149: 144호표 | C149: 스텐용접합후렌지 | D149: D40 | E149: 개소 | F149: 13414 | G149: 19379 | H149: 387 | I149: 33180
A150: 6913006 | B150: 145호표 | C150: 스텐용접합후렌지 | D150: D50 | E150: 개소 | F150: 16178 | G150: 22839 | H150: 456 | I150: 39473
A151: 6913007 | B151: 146호표 | C151: 스텐용접합후렌지 | D151: D65 | E151: 개소 | F151: 22217 | G151: 27454 | H151: 549 | I151: 50220
A152: 6913008 | B152: 147호표 | C152: 스텐용접합후렌지 | D152: D80 | E152: 개소 | F152: 26804 | G152: 31145 | H152: 622 | I152: 58571
A153: 6913009 | B153: 148호표 | C153: 스텐용접합후렌지 | D153: D100 | E153: 개소 | F153: 32558 | G153: 38527 | H153: 770 | I153: 71855
A154: 6913010 | B154: 149호표 | C154: 스텐용접합후렌지 | D154: D125 | E154: 개소 | F154: 50549 | G154: 45910 | H154: 918 | I154: 97377
A155: 6913011 | B155: 150호표 | C155: 스텐용접합후렌지 | D155: D150 | E155: 개소 | F155: 62278 | G155: 53293 | H155: 1065 | I155: 116636
A156: 6913012 | B156: 151호표 | C156: 스텐용접합후렌지 | D156: D200 | E156: 개소 | F156: 88345 | G156: 68058 | H156: 1361 | I156: 157764
A157: 6913013 | B157: 152호표 | C157: 스텐용접합후렌지 | D157: D250 | E157: 개소 | F157: 142290 | G157: 82823 | H157: 1656 | I157: 226769
A158: 6913014 | B158: 153호표 | C158: 스텐용접합후렌지 | D158: D300 | E158: 개소 | F158: 171316 | G158: 97588 | H158: 1951 | I158: 270855
A159: 6914 | B159: 154호표 | C159: 스텐용접조후렌지
A160: 6914001 | B160: 155호표 | C160: 스텐용접조후렌지 | D160: D15 | E160: 개소 | F160: 16916 | G160: 23070 | H160: 460 | I160: 40446
A161: 6914002 | B161: 156호표 | C161: 스텐용접조후렌지 | D161: D20 | E161: 개소 | F161: 18107 | G161: 26300 | H161: 526 | I161: 44933
A162: 6914003 | B162: 157호표 | C162: 스텐용접조후렌지 | D162: D25 | E162: 개소 | F162: 21005 | G162: 30452 | H162: 608 | I162: 52065
A163: 6914004 | B163: 158호표 | C163: 스텐용접조후렌지 | D163: D32 | E163: 개소 | F163: 22827 | G163: 35528 | H163: 710 | I163: 59065
A164: 6914005 | B164: 159호표 | C164: 스텐용접조후렌지 | D164: D40 | E164: 개소 | F164: 24675 | G164: 38758 | H164: 774 | I164: 64207
A165: 6914006 | B165: 160호표 | C165: 스텐용접조후렌지 | D165: D50 | E165: 개소 | F165: 30090 | G165: 45678 | H165: 912 | I165: 76680
A166: 6914007 | B166: 161호표 | C166: 스텐용접조후렌지 | D166: D65 | E166: 개소 | F166: 42079 | G166: 54908 | H166: 1098 | I166: 98085
A167: 6914008 | B167: 162호표 | C167: 스텐용접조후렌지 | D167: D80 | E167: 개소 | F167: 48760 | G167: 62290 | H167: 1244 | I167: 112294
A168: 6914009 | B168: 163호표 | C168: 스텐용접조후렌지 | D168: D100 | E168: 개소 | F168: 59739 | G168: 77054 | H168: 1540 | I168: 138333
A169: 6914010 | B169: 164호표 | C169: 스텐용접조후렌지 | D169: D125 | E169: 개소 | F169: 90726 | G169: 91820 | H169: 1836 | I169: 184382
A170: 6914011 | B170: 165호표 | C170: 스텐용접조후렌지 | D170: D150 | E170: 개소 | F170: 113806 | G170: 106586 | H170: 2130 | I170: 222522
A171: 6914012 | B171: 166호표 | C171: 스텐용접조후렌지 | D171: D200 | E171: 개소 | F171: 161122 | G171: 136116 | H171: 2722 | I171: 299960
A172: 6914013 | B172: 167호표 | C172: 스텐용접조후렌지 | D172: D250 | E172: 개소 | F172: 256292 | G172: 165646 | H172: 3312 | I172: 425250
A173: 6914014 | B173: 168호표 | C173: 스텐용접조후렌지 | D173: D300 | E173: 개소 | F173: 305709 | G173: 195176 | H173: 3902 | I173: 504787
A174: 6915 | B174: 169호표 | C174: 일반행가(달대볼트)
A175: 6915001 | B175: 170호표 | C175: 일반행거(달대볼트) | D175: D15 | E175: 개소 | F175: 1341 | G175: 0 | H175: 0 | I175: 1341
A176: 6915002 | B176: 171호표 | C176: 일반행거(달대볼트) | D176: D20 | E176: 개소 | F176: 1351 | G176: 0 | H176: 0 | I176: 1351
A177: 6915003 | B177: 172호표 | C177: 일반행거(달대볼트) | D177: D25 | E177: 개소 | F177: 1371 | G177: 0 | H177: 0 | I177: 1371
A178: 6915004 | B178: 173호표 | C178: 일반행거(달대볼트) | D178: D32 | E178: 개소 | F178: 1391 | G178: 0 | H178: 0 | I178: 1391
A179: 6915005 | B179: 174호표 | C179: 일반행거(달대볼트) | D179: D40 | E179: 개소 | F179: 1421 | G179: 0 | H179: 0 | I179: 1421
A180: 6915006 | B180: 175호표 | C180: 일반행거(달대볼트) | D180: D50 | E180: 개소 | F180: 1601 | G180: 0 | H180: 0 | I180: 1601
A181: 6915007 | B181: 176호표 | C181: 일반행거(달대볼트) | D181: D65 | E181: 개소 | F181: 1651 | G181: 0 | H181: 0 | I181: 1651
A182: 6915008 | B182: 177호표 | C182: 일반행거(달대볼트) | D182: D80 | E182: 개소 | F182: 1871 | G182: 0 | H182: 0 | I182: 1871
A183: 6915009 | B183: 178호표 | C183: 일반행거(달대볼트) | D183: D100 | E183: 개소 | F183: 2121 | G183: 0 | H183: 0 | I183: 2121
A184: 6915010 | B184: 179호표 | C184: 일반행거(달대볼트) | D184: D125 | E184: 개소 | F184: 3071 | G184: 0 | H184: 0 | I184: 3071
A185: 6915011 | B185: 180호표 | C185: 일반행거(달대볼트) | D185: D150 | E185: 개소 | F185: 4571 | G185: 0 | H185: 0 | I185: 4571
A186: 6915012 | B186: 181호표 | C186: 일반행거(달대볼트) | D186: D200 | E186: 개소 | F186: 5071 | G186: 0 | H186: 0 | I186: 5071
A187: 6915013 | B187: 182호표 | C187: 일반행거(달대볼트) | D187: D250 | E187: 개소 | F187: 6571 | G187: 0 | H187: 0 | I187: 6571
A188: 6915014 | B188: 183호표 | C188: 일반행거(달대볼트) | D188: D300 | E188: 개소 | F188: 9071 | G188: 0 | H188: 0 | I188: 9071
A189: 6916 | B189: 184호표 | C189: 절연행가 (달대볼트)
A190: 6916001 | B190: 185호표 | C190: 절연행가(달대볼트) | D190: D15 | E190: 개소 | F190: 1521 | G190: 0 | H190: 0 | I190: 1521
A191: 6916002 | B191: 186호표 | C191: 절연행가(달대볼트) | D191: D20 | E191: 개소 | F191: 1571 | G191: 0 | H191: 0 | I191: 1571
A192: 6916003 | B192: 187호표 | C192: 절연행가(달대볼트) | D192: D25 | E192: 개소 | F192: 1621 | G192: 0 | H192: 0 | I192: 1621
A193: 6916004 | B193: 188호표 | C193: 절연행가(달대볼트) | D193: D32 | E193: 개소 | F193: 1721 | G193: 0 | H193: 0 | I193: 1721
A194: 6916005 | B194: 189호표 | C194: 절연행가(달대볼트) | D194: D40 | E194: 개소 | F194: 1771 | G194: 0 | H194: 0 | I194: 1771
A195: 6916006 | B195: 190호표 | C195: 절연행가(달대볼트) | D195: D50 | E195: 개소 | F195: 2021 | G195: 0 | H195: 0 | I195: 2021
A196: 6916007 | B196: 191호표 | C196: 절연행가(달대볼트) | D196: D65 | E196: 개소 | F196: 2221 | G196: 0 | H196: 0 | I196: 2221
A197: 6916008 | B197: 192호표 | C197: 절연행가(달대볼트) | D197: D80 | E197: 개소 | F197: 2821 | G197: 0 | H197: 0 | I197: 2821
A198: 6916009 | B198: 193호표 | C198: 절연행가(달대볼트) | D198: D100 | E198: 개소 | F198: 3171 | G198: 0 | H198: 0 | I198: 3171
A199: 6916010 | B199: 194호표 | C199: 절연행가(달대볼트) | D199: D125 | E199: 개소 | F199: 4071 | G199: 0 | H199: 0 | I199: 4071
A200: 6916011 | B200: 195호표 | C200: 절연행가(달대볼트) | D200: D150 | E200: 개소 | F200: 5571 | G200: 0 | H200: 0 | I200: 5571
... 375 more rows

Sheet 일위대가(21년하반기) (hidden)
A1: 일위대가 | B1: 자재코드 | C1: 품 명 | D1: 규 격 | E1: 단위 | F1: 수량 | G1: 재 료 비 | I1: 노 무 비 | K1: 경 비 | M1: 합 계 | O1: 비고 | Q1: 품의 할증 관계 참고
G2: 단가 | H2: 금액 | I2: 단가 | J2: 금액 | K2: 단가 | L2: 금액 | M2: 단가 | N2: 금액
C3: 6901001 강판절단 3.2MM m
A4: 6901001 | B4: 0803005 | C4: 산소 | D4: (기체.공업용99.9%) | E4: ℓ | F4: 20.8 | G4: 1.833333333 | H4: =TRUNC(F4*G4,1) -> 38.1 | I4: 0 | J4: =TRUNC(F4*I4,1) -> 0 | K4: 0 | L4: =TRUNC(F4*K4,1) -> 0 | M4: =TRUNC(G4+I4+K4,1) -> 1.8 | N4: =TRUNC(H4+J4+L4,0) -> 38
A5: 6901001 | B5: 0803003 | C5: 아세틸렌 | D5: 98% 공업용 | E5: ℓ | F5: 10.6 | G5: 12.89566237 | H5: =TRUNC(F5*G5,1) -> 136.6 | I5: 0 | J5: =TRUNC(F5*I5,1) -> 0 | K5: 0 | L5: =TRUNC(F5*K5,1) -> 0 | M5: =TRUNC(G5+I5+K5,1) -> 12.8 | N5: =TRUNC(H5+J5+L5,0) -> 136
A6: 6901001 | B6: 0001112 | C6: 노무비 | D6: 용접공 | E6: 인 | F6: 0.0046 | G6: 0 | H6: =TRUNC(F6*G6,1) -> 0 | I6: 230706 | J6: =TRUNC(F6*I6,1) -> 1061.2 | K6: 0 | L6: =TRUNC(F6*K6,1) -> 0 | M6: =TRUNC(G6+I6+K6,1) -> 230706 | N6: =TRUNC(H6+J6+L6,0) -> 1061
A7: 6901001 | B7: 0001083 | C7: 노무비 | D7: 특별인부 | E7: 인 | F7: 0.0023 | G7: 0 | H7: =TRUNC(F7*G7,1) -> 0 | I7: 181293 | J7: =TRUNC(F7*I7,1) -> 416.9 | K7: 0 | L7: =TRUNC(F7*K7,1) -> 0 | M7: =TRUNC(G7+I7+K7,1) -> 181293 | N7: =TRUNC(H7+J7+L7,0) -> 416
A8: 6901001 | B8: M500000 | C8: 공구손료 | D8: 노무비의 2% | E8: 식 | F8: 1 | H8: =TRUNC(F8*G8,1) -> 0 | I8: 0 | J8: =TRUNC(F8*I8,1) -> 0 | K8: 29.5 | L8: =TRUNC(F8*K8,1) -> 29.5 | M8: =TRUNC(G8+I8+K8,1) -> 29.5 | N8: =TRUNC(H8+J8+L8,0) -> 29
C9: [ 합 계 ] | H9: =TRUNC(SUM(H4:H8),0) -> 174 | J9: =TRUNC(SUM(J4:J8),0) -> 1478 | L9: =TRUNC(SUM(L4:L8),0) -> 29 | N9: =H9+J9+L9 -> 1681
C11: 6901002 강판절단 4.5MM m
A12: 6901002 | B12: 0803005 | C12: 산소 | D12: (기체.공업용99.9%) | E12: ℓ | F12: 46 | G12: 1.833333333 | H12: =TRUNC(F12*G12,1) -> 84.3 | I12: 0 | J12: =TRUNC(F12*I12,1) -> 0 | K12: 0 | L12: =TRUNC(F12*K12,1) -> 0 | M12: =TRUNC(G12+I12+K12,1) -> 1.8 | N12: =TRUNC(H12+J12+L12,0) -> 84
A13: 6901002 | B13: 0803003 | C13: 아세틸렌 | D13: 98% 공업용 | E13: ℓ | F13: 23.2 | G13: 12.89566237 | H13: =TRUNC(F13*G13,1) -> 299.1 | I13: 0 | J13: =TRUNC(F13*I13,1) -> 0 | K13: 0 | L13: =TRUNC(F13*K13,1) -> 0 | M13: =TRUNC(G13+I13+K13,1) -> 12.8 | N13: =TRUNC(H13+J13+L13,0) -> 299
A14: 6901002 | B14: 0001112 | C14: 노무비 | D14: 용접공 | E14: 인 | F14: 0.005 | G14: 0 | H14: =TRUNC(F14*G14,1) -> 0 | I14: 230706 | J14: =TRUNC(F14*I14,1) -> 1153.5 | K14: 0 | L14: =TRUNC(F14*K14,1) -> 0 | M14: =TRUNC(G14+I14+K14,1) -> 230706 | N14: =TRUNC(H14+J14+L14,0) -> 1153
A15: 6901002 | B15: 0001083 | C15: 노무비 | D15: 특별인부 | E15: 인 | F15: 0.0025 | G15: 0 | H15: =TRUNC(F15*G15,1) -> 0 | I15: 181293 | J15: =TRUNC(F15*I15,1) -> 453.2 | K15: 0 | L15: =TRUNC(F15*K15,1) -> 0 | M15: =TRUNC(G15+I15+K15,1) -> 181293 | N15: =TRUNC(H15+J15+L15,0) -> 453
A16: 6901002 | B16: M500000 | C16: 공구손료 | D16: 노무비의 2% | E16: 식 | F16: 1 | H16: =TRUNC(F16*G16,1) -> 0 | I16: 0 | J16: =TRUNC(F16*I16,1) -> 0 | K16: 32.1 | L16: =TRUNC(F16*K16,1) -> 32.1 | M16: =TRUNC(G16+I16+K16,1) -> 32.1 | N16: =TRUNC(H16+J16+L16,0) -> 32
C17: [ 합 계 ] | H17: =TRUNC(SUM(H12:H16),0) -> 383 | J17: =TRUNC(SUM(J12:J16),0) -> 1606 | L17: =TRUNC(SUM(L12:L16),0) -> 32 | N17: =H17+J17+L17 -> 2021
C19: 6901003 강판절단 6MM m
A20: 6901003 | B20: 0803005 | C20: 산소 | D20: (기체.공업용99.9%) | E20: ℓ | F20: 71.3 | G20: 1.833333333 | H20: =TRUNC(F20*G20,1) -> 130.7 | I20: 0 | J20: =TRUNC(F20*I20,1) -> 0 | K20: 0 | L20: =TRUNC(F20*K20,1) -> 0 | M20: =TRUNC(G20+I20+K20,1) -> 1.8 | N20: =TRUNC(H20+J20+L20,0) -> 130
A21: 6901003 | B21: 0803003 | C21: 아세틸렌 | D21: 98% 공업용 | E21: ℓ | F21: 35.9 | G21: 12.89566237 | H21: =TRUNC(F21*G21,1) -> 462.9 | I21: 0 | J21: =TRUNC(F21*I21,1) -> 0 | K21: 0 | L21: =TRUNC(F21*K21,1) -> 0 | M21: =TRUNC(G21+I21+K21,1) -> 12.8 | N21: =TRUNC(H21+J21+L21,0) -> 462
A22: 6901003 | B22: 0001112 | C22: 노무비 | D22: 용접공 | E22: 인 | F22: 0.0054 | G22: 0 | H22: =TRUNC(F22*G22,1) -> 0 | I22: 230706 | J22: =TRUNC(F22*I22,1) -> 1245.8 | K22: 0 | L22: =TRUNC(F22*K22,1) -> 0 | M22: =TRUNC(G22+I22+K22,1) -> 230706 | N22: =TRUNC(H22+J22+L22,0) -> 1245
A23: 6901003 | B23: 0001083 | C23: 노무비 | D23: 특별인부 | E23: 인 | F23: 0.0027 | G23: 0 | H23: =TRUNC(F23*G23,1) -> 0 | I23: 181293 | J23: =TRUNC(F23*I23,1) -> 489.4 | K23: 0 | L23: =TRUNC(F23*K23,1) -> 0 | M23: =TRUNC(G23+I23+K23,1) -> 181293 | N23: =TRUNC(H23+J23+L23,0) -> 489
A24: 6901003 | B24: M500000 | C24: 공구손료 | D24: 노무비의 2% | E24: 식 | F24: 1 | H24: =TRUNC(F24*G24,1) -> 0 | I24: 0 | J24: =TRUNC(F24*I24,1) -> 0 | K24: 34.7 | L24: =TRUNC(F24*K24,1) -> 34.7 | M24: =TRUNC(G24+I24+K24,1) -> 34.7 | N24: =TRUNC(H24+J24+L24,0) -> 34
C25: [ 합 계 ] | H25: =TRUNC(SUM(H20:H24),0) -> 593 | J25: =TRUNC(SUM(J20:J24),0) -> 1735 | L25: =TRUNC(SUM(L20:L24),0) -> 34 | N25: =H25+J25+L25 -> 2362
C27: 6901004 강판절단 9MM m
A28: 6901004 | B28: 0803005 | C28: 산소 | D28: (기체.공업용99.9%) | E28: ℓ | F28: 100.4 | G28: 1.833333333 | H28: =TRUNC(F28*G28,1) -> 184 | I28: 0 | J28: =TRUNC(F28*I28,1) -> 0 | K28: 0 | L28: =TRUNC(F28*K28,1) -> 0 | M28: =TRUNC(G28+I28+K28,1) -> 1.8 | N28: =TRUNC(H28+J28+L28,0) -> 184
A29: 6901004 | B29: 0803003 | C29: 아세틸렌 | D29: 98% 공업용 | E29: ℓ | F29: 50.2 | G29: 12.89566237 | H29: =TRUNC(F29*G29,1) -> 647.3 | I29: 0 | J29: =TRUNC(F29*I29,1) -> 0 | K29: 0 | L29: =TRUNC(F29*K29,1) -> 0 | M29: =TRUNC(G29+I29+K29,1) -> 12.8 | N29: =TRUNC(H29+J29+L29,0) -> 647
A30: 6901004 | B30: 0001112 | C30: 노무비 | D30: 용접공 | E30: 인 | F30: 0.006 | G30: 0 | H30: =TRUNC(F30*G30,1) -> 0 | I30: 230706 | J30: =TRUNC(F30*I30,1) -> 1384.2 | K30: 0 | L30: =TRUNC(F30*K30,1) -> 0 | M30: =TRUNC(G30+I30+K30,1) -> 230706 | N30: =TRUNC(H30+J30+L30,0) -> 1384
A31: 6901004 | B31: 0001083 | C31: 노무비 | D31: 특별인부 | E31: 인 | F31: 0.0029 | G31: 0 | H31: =TRUNC(F31*G31,1) -> 0 | I31: 181293 | J31: =TRUNC(F31*I31,1) -> 525.7 | K31: 0 | L31: =TRUNC(F31*K31,1) -> 0 | M31: =TRUNC(G31+I31+K31,1) -> 181293 | N31: =TRUNC(H31+J31+L31,0) -> 525
A32: 6901004 | B32: M500000 | C32: 공구손료 | D32: 노무비의 2% | E32: 식 | F32: 1 | H32: =TRUNC(F32*G32,1) -> 0 | I32: 0 | J32: =TRUNC(F32*I32,1) -> 0 | K32: 38.1 | L32: =TRUNC(F32*K32,1) -> 38.1 | M32: =TRUNC(G32+I32+K32,1) -> 38.1 | N32: =TRUNC(H32+J32+L32,0) -> 38
C33: [ 합 계 ] | H33: =TRUNC(SUM(H28:H32),0) -> 831 | J33: =TRUNC(SUM(J28:J32),0) -> 1909 | L33: =TRUNC(SUM(L28:L32),0) -> 38 | N33: =H33+J33+L33 -> 2778
C35: 6901005 강판절단 12MM m
A36: 6901005 | B36: 0803005 | C36: 산소 | D36: (기체.공업용99.9%) | E36: ℓ | F36: 150.5 | G36: 1.833333333 | H36: =TRUNC(F36*G36,1) -> 275.9 | I36: 0 | J36: =TRUNC(F36*I36,1) -> 0 | K36: 0 | L36: =TRUNC(F36*K36,1) -> 0 | M36: =TRUNC(G36+I36+K36,1) -> 1.8 | N36: =TRUNC(H36+J36+L36,0) -> 275
A37: 6901005 | B37: 0803003 | C37: 아세틸렌 | D37: 98% 공업용 | E37: ℓ | F37: 75.5 | G37: 12.89566237 | H37: =TRUNC(F37*G37,1) -> 973.6 | I37: 0 | J37: =TRUNC(F37*I37,1) -> 0 | K37: 0 | L37: =TRUNC(F37*K37,1) -> 0 | M37: =TRUNC(G37+I37+K37,1) -> 12.8 | N37: =TRUNC(H37+J37+L37,0) -> 973
A38: 6901005 | B38: 0001112 | C38: 노무비 | D38: 용접공 | E38: 인 | F38: 0.007 | G38: 0 | H38: =TRUNC(F38*G38,1) -> 0 | I38: 230706 | J38: =TRUNC(F38*I38,1) -> 1614.9 | K38: 0 | L38: =TRUNC(F38*K38,1) -> 0 | M38: =TRUNC(G38+I38+K38,1) -> 230706 | N38: =TRUNC(H38+J38+L38,0) -> 1614
A39: 6901005 | B39: 0001083 | C39: 노무비 | D39: 특별인부 | E39: 인 | F39: 0.0035 | G39: 0 | H39: =TRUNC(F39*G39,1) -> 0 | I39: 181293 | J39: =TRUNC(F39*I39,1) -> 634.5 | K39: 0 | L39: =TRUNC(F39*K39,1) -> 0 | M39: =TRUNC(G39+I39+K39,1) -> 181293 | N39: =TRUNC(H39+J39+L39,0) -> 634
A40: 6901005 | B40: M500000 | C40: 공구손료 | D40: 노무비의 2% | E40: 식 | F40: 1 | H40: =TRUNC(F40*G40,1) -> 0 | I40: 0 | J40: =TRUNC(F40*I40,1) -> 0 | K40: 44.9 | L40: =TRUNC(F40*K40,1) -> 44.9 | M40: =TRUNC(G40+I40+K40,1) -> 44.9 | N40: =TRUNC(H40+J40+L40,0) -> 44
C41: [ 합 계 ] | H41: =TRUNC(SUM(H36:H40),0) -> 1249 | J41: =TRUNC(SUM(J36:J40),0) -> 2249 | L41: =TRUNC(SUM(L36:L40),0) -> 44 | N41: =H41+J41+L41 -> 3542
C43: 6902001 강판용접(수평) 3.2MM m
A44: 6902001 | B44: 0206002 | C44: 용접봉(연강용) | D44: ∮3.2 CS-200 KSE-4301 | E44: kg | F44: 0.2 | G44: 2836 | H44: =TRUNC(F44*G44,1) -> 567.2 | I44: 0 | J44: =TRUNC(F44*I44,1) -> 0 | K44: 0 | L44: =TRUNC(F44*K44,1) -> 0 | M44: =TRUNC(G44+I44+K44,1) -> 2836 | N44: =TRUNC(H44+J44+L44,0) -> 567
A45: 6902001 | B45: 0805023 | C45: 전력(4kw이상.1년초과)* | D45: 사용요금(그밖의 철) | E45: kwh | F45: 0.7 | G45: 92.9 | H45: =TRUNC(F45*G45,1) -> 65 | I45: 0 | J45: =TRUNC(F45*I45,1) -> 0 | K45: 0 | L45: =TRUNC(F45*K45,1) -> 0 | M45: =TRUNC(G45+I45+K45,1) -> 92.9 | N45: =TRUNC(H45+J45+L45,0) -> 65
A46: 6902001 | B46: 0001112 | C46: 노무비 | D46: 용접공 | E46: 인 | F46: 0.036 | G46: 0 | H46: =TRUNC(F46*G46,1) -> 0 | I46: 230706 | J46: =TRUNC(F46*I46,1) -> 8305.4 | K46: 0 | L46: =TRUNC(F46*K46,1) -> 0 | M46: =TRUNC(G46+I46+K46,1) -> 230706 | N46: =TRUNC(H46+J46+L46,0) -> 8305
A47: 6902001 | B47: 0001083 | C47: 노무비 | D47: 특별인부 | E47: 인 | F47: 0.011 | G47: 0 | H47: =TRUNC(F47*G47,1) -> 0 | I47: 181293 | J47: =TRUNC(F47*I47,1) -> 1994.2 | K47: 0 | L47: =TRUNC(F47*K47,1) -> 0 | M47: =TRUNC(G47+I47+K47,1) -> 181293 | N47: =TRUNC(H47+J47+L47,0) -> 1994
A48: 6902001 | B48: M500000 | C48: 공구손료 | D48: 노무비의 2% | E48: 식 | F48: 1 | H48: =TRUNC(F48*G48,1) -> 0 | I48: 0 | J48: =TRUNC(F48*I48,1) -> 0 | K48: 205.9 | L48: =TRUNC(F48*K48,1) -> 205.9 | M48: =TRUNC(G48+I48+K48,1) -> 205.9 | N48: =TRUNC(H48+J48+L48,0) -> 205
C49: [ 합 계 ] | H49: =TRUNC(SUM(H44:H48),0) -> 632 | J49: =TRUNC(SUM(J44:J48),0) -> 10299 | L49: =TRUNC(SUM(L44:L48),0) -> 205 | N49: =H49+J49+L49 -> 11136
C51: 6902002 강판용접(수평) 4.5MM m
A52: 6902002 | B52: 0206002 | C52: 용접봉(연강용) | D52: ∮3.2 CS-200 KSE-4301 | E52: kg | F52: 0.35 | G52: 2836 | H52: =TRUNC(F52*G52,1) -> 992.6 | I52: 0 | J52: =TRUNC(F52*I52,1) -> 0 | K52: 0 | L52: =TRUNC(F52*K52,1) -> 0 | M52: =TRUNC(G52+I52+K52,1) -> 2836 | N52: =TRUNC(H52+J52+L52,0) -> 992
A53: 6902002 | B53: 0805023 | C53: 전력(4kw이상.1년초과)* | D53: 사용요금(그밖의 철) | E53: kwh | F53: 1.45 | G53: 92.9 | H53: =TRUNC(F53*G53,1) -> 134.7 | I53: 0 | J53: =TRUNC(F53*I53,1) -> 0 | K53: 0 | L53: =TRUNC(F53*K53,1) -> 0 | M53: =TRUNC(G53+I53+K53,1) -> 92.9 | N53: =TRUNC(H53+J53+L53,0) -> 134
A54: 6902002 | B54: 0001112 | C54: 노무비 | D54: 용접공 | E54: 인 | F54: 0.043 | G54: 0 | H54: =TRUNC(F54*G54,1) -> 0 | I54: 230706 | J54: =TRUNC(F54*I54,1) -> 9920.3 | K54: 0 | L54: =TRUNC(F54*K54,1) -> 0 | M54: =TRUNC(G54+I54+K54,1) -> 230706 | N54: =TRUNC(H54+J54+L54,0) -> 9920
A55: 6902002 | B55: 0001083 | C55: 노무비 | D55: 특별인부 | E55: 인 | F55: 0.013 | G55: 0 | H55: =TRUNC(F55*G55,1) -> 0 | I55: 181293 | J55: =TRUNC(F55*I55,1) -> 2356.8 | K55: 0 | L55: =TRUNC(F55*K55,1) -> 0 | M55: =TRUNC(G55+I55+K55,1) -> 181293 | N55: =TRUNC(H55+J55+L55,0) -> 2356
A56: 6902002 | B56: M500000 | C56: 공구손료 | D56: 노무비의 2% | E56: 식 | F56: 1 | H56: =TRUNC(F56*G56,1) -> 0 | I56: 0 | J56: =TRUNC(F56*I56,1) -> 0 | K56: 245.5 | L56: =TRUNC(F56*K56,1) -> 245.5 | M56: =TRUNC(G56+I56+K56,1) -> 245.5 | N56: =TRUNC(H56+J56+L56,0) -> 245
C57: [ 합 계 ] | H57: =TRUNC(SUM(H52:H56),0) -> 1127 | J57: =TRUNC(SUM(J52:J56),0) -> 12277 | L57: =TRUNC(SUM(L52:L56),0) -> 245 | N57: =H57+J57+L57 -> 13649
C59: 6902003 강판용접(수평) 6MM m
A60: 6902003 | B60: 0206002 | C60: 용접봉(연강용) | D60: ∮3.2 CS-200 KSE-4301 | E60: kg | F60: 0.6 | G60: 2836 | H60: =TRUNC(F60*G60,1) -> 1701.6 | I60: 0 | J60: =TRUNC(F60*I60,1) -> 0 | K60: 0 | L60: =TRUNC(F60*K60,1) -> 0 | M60: =TRUNC(G60+I60+K60,1) -> 2836 | N60: =TRUNC(H60+J60+L60,0) -> 1701
A61: 6902003 | B61: 0805023 | C61: 전력(4kw이상.1년초과)* | D61: 사용요금(그밖의 철) | E61: kwh | F61: 2.5 | G61: 92.9 | H61: =TRUNC(F61*G61,1) -> 232.2 | I61: 0 | J61: =TRUNC(F61*I61,1) -> 0 | K61: 0 | L61: =TRUNC(F61*K61,1) -> 0 | M61: =TRUNC(G61+I61+K61,1) -> 92.9 | N61: =TRUNC(H61+J61+L61,0) -> 232
A62: 6902003 | B62: 0001112 | C62: 노무비 | D62: 용접공 | E62: 인 | F62: 0.052 | G62: 0 | H62: =TRUNC(F62*G62,1) -> 0 | I62: 230706 | J62: =TRUNC(F62*I62,1) -> 11996.7 | K62: 0 | L62: =TRUNC(F62*K62,1) -> 0 | M62: =TRUNC(G62+I62+K62,1) -> 230706 | N62: =TRUNC(H62+J62+L62,0) -> 11996
A63: 6902003 | B63: 0001083 | C63: 노무비 | D63: 특별인부 | E63: 인 | F63: 0.016 | G63: 0 | H63: =TRUNC(F63*G63,1) -> 0 | I63: 181293 | J63: =TRUNC(F63*I63,1) -> 2900.6 | K63: 0 | L63: =TRUNC(F63*K63,1) -> 0 | M63: =TRUNC(G63+I63+K63,1) -> 181293 | N63: =TRUNC(H63+J63+L63,0) -> 2900
A64: 6902003 | B64: M500000 | C64: 공구손료 | D64: 노무비의 2% | E64: 식 | F64: 1 | H64: =TRUNC(F64*G64,1) -> 0 | I64: 0 | J64: =TRUNC(F64*I64,1) -> 0 | K64: 297.9 | L64: =TRUNC(F64*K64,1) -> 297.9 | M64: =TRUNC(G64+I64+K64,1) -> 297.9 | N64: =TRUNC(H64+J64+L64,0) -> 297
C65: [ 합 계 ] | H65: =TRUNC(SUM(H60:H64),0) -> 1933 | J65: =TRUNC(SUM(J60:J64),0) -> 14897 | L65: =TRUNC(SUM(L60:L64),0) -> 297 | N65: =H65+J65+L65 -> 17127
C67: 6902004 강판용접(수평) 9MM m
A68: 6902004 | B68: 0206002 | C68: 용접봉(연강용) | D68: ∮3.2 CS-200 KSE-4301 | E68: kg | F68: 1.2 | G68: 2836 | H68: =TRUNC(F68*G68,1) -> 3403.2 | I68: 0 | J68: =TRUNC(F68*I68,1) -> 0 | K68: 0 | L68: =TRUNC(F68*K68,1) -> 0 | M68: =TRUNC(G68+I68+K68,1) -> 2836 | N68: =TRUNC(H68+J68+L68,0) -> 3403
A69: 6902004 | B69: 0805023 | C69: 전력(4kw이상.1년초과)* | D69: 사용요금(그밖의 철) | E69: kwh | F69: 6 | G69: 92.9 | H69: =TRUNC(F69*G69,1) -> 557.4 | I69: 0 | J69: =TRUNC(F69*I69,1) -> 0 | K69: 0 | L69: =TRUNC(F69*K69,1) -> 0 | M69: =TRUNC(G69+I69+K69,1) -> 92.9 | N69: =TRUNC(H69+J69+L69,0) -> 557
A70: 6902004 | B70: 0001112 | C70: 노무비 | D70: 용접공 | E70: 인 | F70: 0.094 | G70: 0 | H70: =TRUNC(F70*G70,1) -> 0 | I70: 230706 | J70: =TRUNC(F70*I70,1) -> 21686.3 | K70: 0 | L70: =TRUNC(F70*K70,1) -> 0 | M70: =TRUNC(G70+I70+K70,1) -> 230706 | N70: =TRUNC(H70+J70+L70,0) -> 21686
A71: 6902004 | B71: 0001083 | C71: 노무비 | D71: 특별인부 | E71: 인 | F71: 0.023 | G71: 0 | H71: =TRUNC(F71*G71,1) -> 0 | I71: 181293 | J71: =TRUNC(F71*I71,1) -> 4169.7 | K71: 0 | L71: =TRUNC(F71*K71,1) -> 0 | M71: =TRUNC(G71+I71+K71,1) -> 181293 | N71: =TRUNC(H71+J71+L71,0) -> 4169
A72: 6902004 | B72: M500000 | C72: 공구손료 | D72: 노무비의 2% | E72: 식 | F72: 1 | H72: =TRUNC(F72*G72,1) -> 0 | I72: 0 | J72: =TRUNC(F72*I72,1) -> 0 | K72: 517.1 | L72: =TRUNC(F72*K72,1) -> 517.1 | M72: =TRUNC(G72+I72+K72,1) -> 517.1 | N72: =TRUNC(H72+J72+L72,0) -> 517
C73: [ 합 계 ] | H73: =TRUNC(SUM(H68:H72),0) -> 3960 | J73: =TRUNC(SUM(J68:J72),0) -> 25856 | L73: =TRUNC(SUM(L68:L72),0) -> 517 | N73: =H73+J73+L73 -> 30333
C75: 6902005 강판용접(수평) 12MM m
A76: 6902005 | B76: 0206002 | C76: 용접봉(연강용) | D76: ∮3.2 CS-200 KSE-4301 | E76: kg | F76: 1.8 | G76: 2836 | H76: =TRUNC(F76*G76,1) -> 5104.8 | I76: 0 | J76: =TRUNC(F76*I76,1) -> 0 | K76: 0 | L76: =TRUNC(F76*K76,1) -> 0 | M76: =TRUNC(G76+I76+K76,1) -> 2836 | N76: =TRUNC(H76+J76+L76,0) -> 5104
A77: 6902005 | B77: 0805023 | C77: 전력(4kw이상.1년초과)* | D77: 사용요금(그밖의 철) | E77: kwh | F77: 10 | G77: 92.9 | H77: =TRUNC(F77*G77,1) -> 929 | I77: 0 | J77: =TRUNC(F77*I77,1) -> 0 | K77: 0 | L77: =TRUNC(F77*K77,1) -> 0 | M77: =TRUNC(G77+I77+K77,1) -> 92.9 | N77: =TRUNC(H77+J77+L77,0) -> 929
A78: 6902005 | B78: 0001112 | C78: 노무비 | D78: 용접공 | E78: 인 | F78: 0.134 | G78: 0 | H78: =TRUNC(F78*G78,1) -> 0 | I78: 230706 | J78: =TRUNC(F78*I78,1) -> 30914.6 | K78: 0 | L78: =TRUNC(F78*K78,1) -> 0 | M78: =TRUNC(G78+I78+K78,1) -> 230706 | N78: =TRUNC(H78+J78+L78,0) -> 30914
A79: 6902005 | B79: 0001083 | C79: 노무비 | D79: 특별인부 | E79: 인 | F79: 0.032 | G79: 0 | H79: =TRUNC(F79*G79,1) -> 0 | I79: 181293 | J79: =TRUNC(F79*I79,1) -> 5801.3 | K79: 0 | L79: =TRUNC(F79*K79,1) -> 0 | M79: =TRUNC(G79+I79+K79,1) -> 181293 | N79: =TRUNC(H79+J79+L79,0) -> 5801
A80: 6902005 | B80: M500000 | C80: 공구손료 | D80: 노무비의 2% | E80: 식 | F80: 1 | H80: =TRUNC(F80*G80,1) -> 0 | I80: 0 | J80: =TRUNC(F80*I80,1) -> 0 | K80: 734.3 | L80: =TRUNC(F80*K80,1) -> 734.3 | M80: =TRUNC(G80+I80+K80,1) -> 734.3 | N80: =TRUNC(H80+J80+L80,0) -> 734
C81: [ 합 계 ] | H81: =TRUNC(SUM(H76:H80),0) -> 6033 | J81: =TRUNC(SUM(J76:J80),0) -> 36715 | L81: =TRUNC(SUM(L76:L80),0) -> 734 | N81: =H81+J81+L81 -> 43482
C83: 6903001 강관절단 D15~D25 개소
A84: 6903001 | B84: 0803005 | C84: 산소 | D84: (기체.99%) | E84: ℓ | F84: 2.4 | G84: 1.833333333 | H84: =TRUNC(F84*G84,1) -> 4.4 | I84: 0 | J84: =TRUNC(F84*I84,1) -> 0 | K84: 0 | L84: =TRUNC(F84*K84,1) -> 0 | M84: =TRUNC(G84+I84+K84,1) -> 1.8 | N84: =TRUNC(H84+J84+L84,0) -> 4
A85: 6903001 | B85: 0803003 | C85: 아세틸렌 | D85: 98% 용접용 | E85: ℓ | F85: 1.2 | G85: 12.89566237 | H85: =TRUNC(F85*G85,1) -> 15.4 | I85: 0 | J85: =TRUNC(F85*I85,1) -> 0 | K85: 0 | L85: =TRUNC(F85*K85,1) -> 0 | M85: =TRUNC(G85+I85+K85,1) -> 12.8 | N85: =TRUNC(H85+J85+L85,0) -> 15
A86: 6901005 | B86: 0001112 | C86: 노무비 | D86: 용접공 | E86: 인 | F86: 0.002 | G86: 0 | H86: =TRUNC(F86*G86,1) -> 0 | I86: 230706 | J86: =TRUNC(F86*I86,1) -> 461.4 | K86: 0 | L86: =TRUNC(F86*K86,1) -> 0 | M86: =TRUNC(G86+I86+K86,1) -> 230706 | N86: =TRUNC(H86+J86+L86,0) -> 461
A87: 6901005 | B87: 0001083 | C87: 노무비 | D87: 특별인부 | E87: 인 | F87: 0.001 | G87: 0 | H87: =TRUNC(F87*G87,1) -> 0 | I87: 181293 | J87: =TRUNC(F87*I87,1) -> 181.2 | K87: 0 | L87: =TRUNC(F87*K87,1) -> 0 | M87: =TRUNC(G87+I87+K87,1) -> 181293 | N87: =TRUNC(H87+J87+L87,0) -> 181
A88: 6901005 | B88: M500000 | C88: 공구손료 | D88: 노무비의 2% | E88: 식 | F88: 1 | H88: =TRUNC(F88*G88,1) -> 0 | I88: 0 | J88: =TRUNC(F88*I88,1) -> 0 | K88: 12.8 | L88: =TRUNC(F88*K88,1) -> 12.8 | M88: =TRUNC(G88+I88+K88,1) -> 12.8 | N88: =TRUNC(H88+J88+L88,0) -> 12
C89: [ 합 계 ] | H89: =TRUNC(SUM(H84:H88),0) -> 19 | J89: =TRUNC(SUM(J84:J88),0) -> 642 | L89: =TRUNC(SUM(L84:L88),0) -> 12 | N89: =H89+J89+L89 -> 673
C91: 6903002 강관절단 D32 개소
A92: 6903002 | B92: 0803005 | C92: 산소 | D92: (기체.99%) | E92: ℓ | F92: 2.7 | G92: 1.833333333 | H92: =TRUNC(F92*G92,1) -> 4.9 | I92: 0 | J92: =TRUNC(F92*I92,1) -> 0 | K92: 0 | L92: =TRUNC(F92*K92,1) -> 0 | M92: =TRUNC(G92+I92+K92,1) -> 1.8 | N92: =TRUNC(H92+J92+L92,0) -> 4
A93: 6903002 | B93: 0803003 | C93: 아세틸렌 | D93: 98% 용접용 | E93: ℓ | F93: 1.4 | G93: 12.89566237 | H93: =TRUNC(F93*G93,1) -> 18 | I93: 0 | J93: =TRUNC(F93*I93,1) -> 0 | K93: 0 | L93: =TRUNC(F93*K93,1) -> 0 | M93: =TRUNC(G93+I93+K93,1) -> 12.8 | N93: =TRUNC(H93+J93+L93,0) -> 18
A94: 6901005 | B94: 0001112 | C94: 노무비 | D94: 용접공 | E94: 인 | F94: 0.002 | G94: 0 | H94: =TRUNC(F94*G94,1) -> 0 | I94: 230706 | J94: =TRUNC(F94*I94,1) -> 461.4 | K94: 0 | L94: =TRUNC(F94*K94,1) -> 0 | M94: =TRUNC(G94+I94+K94,1) -> 230706 | N94: =TRUNC(H94+J94+L94,0) -> 461
A95: 6901005 | B95: 0001083 | C95: 노무비 | D95: 특별인부 | E95: 인 | F95: 0.001 | G95: 0 | H95: =TRUNC(F95*G95,1) -> 0 | I95: 181293 | J95: =TRUNC(F95*I95,1) -> 181.2 | K95: 0 | L95: =TRUNC(F95*K95,1) -> 0 | M95: =TRUNC(G95+I95+K95,1) -> 181293 | N95: =TRUNC(H95+J95+L95,0) -> 181
A96: 6901005 | B96: M500000 | C96: 공구손료 | D96: 노무비의 2% | E96: 식 | F96: 1 | H96: =TRUNC(F96*G96,1) -> 0 | I96: 0 | J96: =TRUNC(F96*I96,1) -> 0 | K96: 12.8 | L96: =TRUNC(F96*K96,1) -> 12.8 | M96: =TRUNC(G96+I96+K96,1) -> 12.8 | N96: =TRUNC(H96+J96+L96,0) -> 12
C97: [ 합 계 ] | H97: =TRUNC(SUM(H92:H96),0) -> 22 | J97: =TRUNC(SUM(J92:J96),0) -> 642 | L97: =TRUNC(SUM(L92:L96),0) -> 12 | N97: =H97+J97+L97 -> 676
C99: 6903003 강관절단 D40 개소
A100: 6903003 | B100: 0803005 | C100: 산소 | D100: (기체.99%) | E100: ℓ | F100: 3.2 | G100: 1.833333333 | H100: =TRUNC(F100*G100,1) -> 5.8 | I100: 0 | J100: =TRUNC(F100*I100,1) -> 0 | K100: 0 | L100: =TRUNC(F100*K100,1) -> 0 | M100: =TRUNC(G100+I100+K100,1) -> 1.8 | N100: =TRUNC(H100+J100+L100,0) -> 5
A101: 6903003 | B101: 0803003 | C101: 아세틸렌 | D101: 98% 용접용 | E101: ℓ | F101: 1.6 | G101: 12.89566237 | H101: =TRUNC(F101*G101,1) -> 20.6 | I101: 0 | J101: =TRUNC(F101*I101,1) -> 0 | K101: 0 | L101: =TRUNC(F101*K101,1) -> 0 | M101: =TRUNC(G101+I101+K101,1) -> 12.8 | N101: =TRUNC(H101+J101+L101,0) -> 20
A102: 6901005 | B102: 0001112 | C102: 노무비 | D102: 용접공 | E102: 인 | F102: 0.003 | G102: 0 | H102: =TRUNC(F102*G102,1) -> 0 | I102: 230706 | J102: =TRUNC(F102*I102,1) -> 692.1 | K102: 0 | L102: =TRUNC(F102*K102,1) -> 0 | M102: =TRUNC(G102+I102+K102,1) -> 230706 | N102: =TRUNC(H102+J102+L102,0) -> 692
A103: 6901005 | B103: 0001083 | C103: 노무비 | D103: 특별인부 | E103: 인 | F103: 0.001 | G103: 0 | H103: =TRUNC(F103*G103,1) -> 0 | I103: 181293 | J103: =TRUNC(F103*I103,1) -> 181.2 | K103: 0 | L103: =TRUNC(F103*K103,1) -> 0 | M103: =TRUNC(G103+I103+K103,1) -> 181293 | N103: =TRUNC(H103+J103+L103,0) -> 181
A104: 6901005 | B104: M500000 | C104: 공구손료 | D104: 노무비의 2% | E104: 식 | F104: 1 | H104: =TRUNC(F104*G104,1) -> 0 | I104: 0 | J104: =TRUNC(F104*I104,1) -> 0 | K104: 17.4 | L104: =TRUNC(F104*K104,1) -> 17.4 | M104: =TRUNC(G104+I104+K104,1) -> 17.4 | N104: =TRUNC(H104+J104+L104,0) -> 17
C105: [ 합 계 ] | H105: =TRUNC(SUM(H100:H104),0) -> 26 | J105: =TRUNC(SUM(J100:J104),0) -> 873 | L105: =TRUNC(SUM(L100:L104),0) -> 17 | N105: =H105+J105+L105 -> 916
C107: 6903004 강관절단 D50 개소
A108: 6903003 | B108: 0803005 | C108: 산소 | D108: (기체.99%) | E108: ℓ | F108: 3.8 | G108: 1.833333333 | H108: =TRUNC(F108*G108,1) -> 6.9 | I108: 0 | J108: =TRUNC(F108*I108,1) -> 0 | K108: 0 | L108: =TRUNC(F108*K108,1) -> 0 | M108: =TRUNC(G108+I108+K108,1) -> 1.8 | N108: =TRUNC(H108+J108+L108,0) -> 6
A109: 6903003 | B109: 0803003 | C109: 아세틸렌 | D109: 98% 용접용 | E109: ℓ | F109: 1.9 | G109: 12.89566237 | H109: =TRUNC(F109*G109,1) -> 24.5 | I109: 0 | J109: =TRUNC(F109*I109,1) -> 0 | K109: 0 | L109: =TRUNC(F109*K109,1) -> 0 | M109: =TRUNC(G109+I109+K109,1) -> 12.8 | N109: =TRUNC(H109+J109+L109,0) -> 24
A110: 6901005 | B110: 0001112 | C110: 노무비 | D110: 용접공 | E110: 인 | F110: 0.003 | G110: 0 | H110: =TRUNC(F110*G110,1) -> 0 | I110: 230706 | J110: =TRUNC(F110*I110,1) -> 692.1 | K110: 0 | L110: =TRUNC(F110*K110,1) -> 0 | M110: =TRUNC(G110+I110+K110,1) -> 230706 | N110: =TRUNC(H110+J110+L110,0) -> 692
A111: 6901005 | B111: 0001083 | C111: 노무비 | D111: 특별인부 | E111: 인 | F111: 0.001 | G111: 0 | H111: =TRUNC(F111*G111,1) -> 0 | I111: 181293 | J111: =TRUNC(F111*I111,1) -> 181.2 | K111: 0 | L111: =TRUNC(F111*K111,1) -> 0 | M111: =TRUNC(G111+I111+K111,1) -> 181293 | N111: =TRUNC(H111+J111+L111,0) -> 181
A112: 6901005 | B112: M500000 | C112: 공구손료 | D112: 노무비의 2% | E112: 식 | F112: 1 | H112: =TRUNC(F112*G112,1) -> 0 | I112: 0 | J112: =TRUNC(F112*I112,1) -> 0 | K112: 17.4 | L112: =TRUNC(F112*K112,1) -> 17.4 | M112: =TRUNC(G112+I112+K112,1) -> 17.4 | N112: =TRUNC(H112+J112+L112,0) -> 17
C113: [ 합 계 ] | H113: =TRUNC(SUM(H108:H112),0) -> 31 | J113: =TRUNC(SUM(J108:J112),0) -> 873 | L113: =TRUNC(SUM(L108:L112),0) -> 17 | N113: =H113+J113+L113 -> 921
C115: 6903005 강관절단 D65 개소
A116: 6903003 | B116: 0803005 | C116: 산소 | D116: (기체.99%) | E116: ℓ | F116: 4.8 | G116: 1.833333333 | H116: =TRUNC(F116*G116,1) -> 8.8 | I116: 0 | J116: =TRUNC(F116*I116,1) -> 0 | K116: 0 | L116: =TRUNC(F116*K116,1) -> 0 | M116: =TRUNC(G116+I116+K116,1) -> 1.8 | N116: =TRUNC(H116+J116+L116,0) -> 8
A117: 6903003 | B117: 0803003 | C117: 아세틸렌 | D117: 98% 용접용 | E117: ℓ | F117: 2.4 | G117: 12.89566237 | H117: =TRUNC(F117*G117,1) -> 30.9 | I117: 0 | J117: =TRUNC(F117*I117,1) -> 0 | K117: 0 | L117: =TRUNC(F117*K117,1) -> 0 | M117: =TRUNC(G117+I117+K117,1) -> 12.8 | N117: =TRUNC(H117+J117+L117,0) -> 30
A118: 6901005 | B118: 0001112 | C118: 노무비 | D118: 용접공 | E118: 인 | F118: 0.004 | G118: 0 | H118: =TRUNC(F118*G118,1) -> 0 | I118: 230706 | J118: =TRUNC(F118*I118,1) -> 922.8 | K118: 0 | L118: =TRUNC(F118*K118,1) -> 0 | M118: =TRUNC(G118+I118+K118,1) -> 230706 | N118: =TRUNC(H118+J118+L118,0) -> 922
A119: 6901005 | B119: 0001083 | C119: 노무비 | D119: 특별인부 | E119: 인 | F119: 0.002 | G119: 0 | H119: =TRUNC(F119*G119,1) -> 0 | I119: 181293 | J119: =TRUNC(F119*I119,1) -> 362.5 | K119: 0 | L119: =TRUNC(F119*K119,1) -> 0 | M119: =TRUNC(G119+I119+K119,1) -> 181293 | N119: =TRUNC(H119+J119+L119,0) -> 362
A120: 6901005 | B120: M500000 | C120: 공구손료 | D120: 노무비의 2% | E120: 식 | F120: 1 | H120: =TRUNC(F120*G120,1) -> 0 | I120: 0 | J120: =TRUNC(F120*I120,1) -> 0 | K120: 25.7 | L120: =TRUNC(F120*K120,1) -> 25.7 | M120: =TRUNC(G120+I120+K120,1) -> 25.7 | N120: =TRUNC(H120+J120+L120,0) -> 25
C121: [ 합 계 ] | H121: =TRUNC(SUM(H116:H120),0) -> 39 | J121: =TRUNC(SUM(J116:J120),0) -> 1285 | L121: =TRUNC(SUM(L116:L120),0) -> 25 | N121: =H121+J121+L121 -> 1349
C123: 6903006 강관절단 D80 개소
A124: 6903003 | B124: 0803005 | C124: 산소 | D124: (기체.99%) | E124: ℓ | F124: 6.2 | G124: 1.833333333 | H124: =TRUNC(F124*G124,1) -> 11.3 | I124: 0 | J124: =TRUNC(F124*I124,1) -> 0 | K124: 0 | L124: =TRUNC(F124*K124,1) -> 0 | M124: =TRUNC(G124+I124+K124,1) -> 1.8 | N124: =TRUNC(H124+J124+L124,0) -> 11
A125: 6903003 | B125: 0803003 | C125: 아세틸렌 | D125: 98% 용접용 | E125: ℓ | F125: 3.1 | G125: 12.89566237 | H125: =TRUNC(F125*G125,1) -> 39.9 | I125: 0 | J125: =TRUNC(F125*I125,1) -> 0 | K125: 0 | L125: =TRUNC(F125*K125,1) -> 0 | M125: =TRUNC(G125+I125+K125,1) -> 12.8 | N125: =TRUNC(H125+J125+L125,0) -> 39
A126: 6901005 | B126: 0001112 | C126: 노무비 | D126: 용접공 | E126: 인 | F126: 0.005 | G126: 0 | H126: =TRUNC(F126*G126,1) -> 0 | I126: 230706 | J126: =TRUNC(F126*I126,1) -> 1153.5 | K126: 0 | L126: =TRUNC(F126*K126,1) -> 0 | M126: =TRUNC(G126+I126+K126,1) -> 230706 | N126: =TRUNC(H126+J126+L126,0) -> 1153
A127: 6901005 | B127: 0001083 | C127: 노무비 | D127: 특별인부 | E127: 인 | F127: 0.002 | G127: 0 | H127: =TRUNC(F127*G127,1) -> 0 | I127: 181293 | J127: =TRUNC(F127*I127,1) -> 362.5 | K127: 0 | L127: =TRUNC(F127*K127,1) -> 0 | M127: =TRUNC(G127+I127+K127,1) -> 181293 | N127: =TRUNC(H127+J127+L127,0) -> 362
A128: 6901005 | B128: M500000 | C128: 공구손료 | D128: 노무비의 2% | E128: 식 | F128: 1 | H128: =TRUNC(F128*G128,1) -> 0 | I128: 0 | J128: =TRUNC(F128*I128,1) -> 0 | K128: 30.3 | L128: =TRUNC(F128*K128,1) -> 30.3 | M128: =TRUNC(G128+I128+K128,1) -> 30.3 | N128: =TRUNC(H128+J128+L128,0) -> 30
C129: [ 합 계 ] | H129: =TRUNC(SUM(H124:H128),0) -> 51 | J129: =TRUNC(SUM(J124:J128),0) -> 1516 | L129: =TRUNC(SUM(L124:L128),0) -> 30 | N129: =H129+J129+L129 -> 1597
C131: 6903007 강관절단 D100 개소
A132: 6903003 | B132: 0803005 | C132: 산소 | D132: (기체.99%) | E132: ℓ | F132: 12 | G132: 1.833333333 | H132: =TRUNC(F132*G132,1) -> 22 | I132: 0 | J132: =TRUNC(F132*I132,1) -> 0 | K132: 0 | L132: =TRUNC(F132*K132,1) -> 0 | M132: =TRUNC(G132+I132+K132,1) -> 1.8 | N132: =TRUNC(H132+J132+L132,0) -> 22
A133: 6903003 | B133: 0803003 | C133: 아세틸렌 | D133: 98% 용접용 | E133: ℓ | F133: 6 | G133: 12.89566237 | H133: =TRUNC(F133*G133,1) -> 77.3 | I133: 0 | J133: =TRUNC(F133*I133,1) -> 0 | K133: 0 | L133: =TRUNC(F133*K133,1) -> 0 | M133: =TRUNC(G133+I133+K133,1) -> 12.8 | N133: =TRUNC(H133+J133+L133,0) -> 77
A134: 6901005 | B134: 0001112 | C134: 노무비 | D134: 용접공 | E134: 인 | F134: 0.009 | G134: 0 | H134: =TRUNC(F134*G134,1) -> 0 | I134: 230706 | J134: =TRUNC(F134*I134,1) -> 2076.3 | K134: 0 | L134: =TRUNC(F134*K134,1) -> 0 | M134: =TRUNC(G134+I134+K134,1) -> 230706 | N134: =TRUNC(H134+J134+L134,0) -> 2076
A135: 6901005 | B135: 0001083 | C135: 노무비 | D135: 특별인부 | E135: 인 | F135: 0.004 | G135: 0 | H135: =TRUNC(F135*G135,1) -> 0 | I135: 181293 | J135: =TRUNC(F135*I135,1) -> 725.1 | K135: 0 | L135: =TRUNC(F135*K135,1) -> 0 | M135: =TRUNC(G135+I135+K135,1) -> 181293 | N135: =TRUNC(H135+J135+L135,0) -> 725
A136: 6901005 | B136: M500000 | C136: 공구손료 | D136: 노무비의 2% | E136: 식 | F136: 1 | H136: =TRUNC(F136*G136,1) -> 0 | I136: 0 | J136: =TRUNC(F136*I136,1) -> 0 | K136: 56 | L136: =TRUNC(F136*K136,1) -> 56 | M136: =TRUNC(G136+I136+K136,1) -> 56 | N136: =TRUNC(H136+J136+L136,0) -> 56
C137: [ 합 계 ] | H137: =TRUNC(SUM(H132:H136),0) -> 99 | J137: =TRUNC(SUM(J132:J136),0) -> 2801 | L137: =TRUNC(SUM(L132:L136),0) -> 56 | N137: =H137+J137+L137 -> 2956
C139: 6903008 강관절단 D125 개소
A140: 6903003 | B140: 0803005 | C140: 산소 | D140: (기체.99%) | E140: ℓ | F140: 22 | G140: 1.833333333 | H140: =TRUNC(F140*G140,1) -> 40.3 | I140: 0 | J140: =TRUNC(F140*I140,1) -> 0 | K140: 0 | L140: =TRUNC(F140*K140,1) -> 0 | M140: =TRUNC(G140+I140+K140,1) -> 1.8 | N140: =TRUNC(H140+J140+L140,0) -> 40
A141: 6903003 | B141: 0803003 | C141: 아세틸렌 | D141: 98% 용접용 | E141: ℓ | F141: 11 | G141: 12.89566237 | H141: =TRUNC(F141*G141,1) -> 141.8 | I141: 0 | J141: =TRUNC(F141*I141,1) -> 0 | K141: 0 | L141: =TRUNC(F141*K141,1) -> 0 | M141: =TRUNC(G141+I141+K141,1) -> 12.8 | N141: =TRUNC(H141+J141+L141,0) -> 141
A142: 6901005 | B142: 0001112 | C142: 노무비 | D142: 용접공 | E142: 인 | F142: 0.01 | G142: 0 | H142: =TRUNC(F142*G142,1) -> 0 | I142: 230706 | J142: =TRUNC(F142*I142,1) -> 2307 | K142: 0 | L142: =TRUNC(F142*K142,1) -> 0 | M142: =TRUNC(G142+I142+K142,1) -> 230706 | N142: =TRUNC(H142+J142+L142,0) -> 2307
A143: 6901005 | B143: 0001083 | C143: 노무비 | D143: 특별인부 | E143: 인 | F143: 0.005 | G143: 0 | H143: =TRUNC(F143*G143,1) -> 0 | I143: 181293 | J143: =TRUNC(F143*I143,1) -> 906.4 | K143: 0 | L143: =TRUNC(F143*K143,1) -> 0 | M143: =TRUNC(G143+I143+K143,1) -> 181293 | N143: =TRUNC(H143+J143+L143,0) -> 906
A144: 6901005 | B144: M500000 | C144: 공구손료 | D144: 노무비의 2% | E144: 식 | F144: 1 | H144: =TRUNC(F144*G144,1) -> 0 | I144: 0 | J144: =TRUNC(F144*I144,1) -> 0 | K144: 64.2 | L144: =TRUNC(F144*K144,1) -> 64.2 | M144: =TRUNC(G144+I144+K144,1) -> 64.2 | N144: =TRUNC(H144+J144+L144,0) -> 64
C145: [ 합 계 ] | H145: =TRUNC(SUM(H140:H144),0) -> 182 | J145: =TRUNC(SUM(J140:J144),0) -> 3213 | L145: =TRUNC(SUM(L140:L144),0) -> 64 | N145: =H145+J145+L145 -> 3459
C147: 6903009 강관절단 D150 개소
A148: 6903009 | B148: 0803005 | C148: 산소 | D148: (기체.99%) | E148: ℓ | F148: 34 | G148: 1.833333333 | H148: =TRUNC(F148*G148,1) -> 62.3 | I148: 0 | J148: =TRUNC(F148*I148,1) -> 0 | K148: 0 | L148: =TRUNC(F148*K148,1) -> 0 | M148: =TRUNC(G148+I148+K148,1) -> 1.8 | N148: =TRUNC(H148+J148+L148,0) -> 62
A149: 6903009 | B149: 0803003 | C149: 아세틸렌 | D149: 98% 용접용 | E149: ℓ | F149: 17 | G149: 12.89566237 | H149: =TRUNC(F149*G149,1) -> 219.2 | I149: 0 | J149: =TRUNC(F149*I149,1) -> 0 | K149: 0 | L149: =TRUNC(F149*K149,1) -> 0 | M149: =TRUNC(G149+I149+K149,1) -> 12.8 | N149: =TRUNC(H149+J149+L149,0) -> 219
A150: 6901005 | B150: 0001112 | C150: 노무비 | D150: 용접공 | E150: 인 | F150: 0.014 | G150: 0 | H150: =TRUNC(F150*G150,1) -> 0 | I150: 230706 | J150: =TRUNC(F150*I150,1) -> 3229.8 | K150: 0 | L150: =TRUNC(F150*K150,1) -> 0 | M150: =TRUNC(G150+I150+K150,1) -> 230706 | N150: =TRUNC(H150+J150+L150,0) -> 3229
A151: 6901005 | B151: 0001083 | C151: 노무비 | D151: 특별인부 | E151: 인 | F151: 0.006 | G151: 0 | H151: =TRUNC(F151*G151,1) -> 0 | I151: 181293 | J151: =TRUNC(F151*I151,1) -> 1087.7 | K151: 0 | L151: =TRUNC(F151*K151,1) -> 0 | M151: =TRUNC(G151+I151+K151,1) -> 181293 | N151: =TRUNC(H151+J151+L151,0) -> 1087
A152: 6901005 | B152: M500000 | C152: 공구손료 | D152: 노무비의 2% | E152: 식 | F152: 1 | H152: =TRUNC(F152*G152,1) -> 0 | I152: 0 | J152: =TRUNC(F152*I152,1) -> 0 | K152: 86.3 | L152: =TRUNC(F152*K152,1) -> 86.3 | M152: =TRUNC(G152+I152+K152,1) -> 86.3 | N152: =TRUNC(H152+J152+L152,0) -> 86
C153: [ 합 계 ] | H153: =TRUNC(SUM(H148:H152),0) -> 281 | J153: =TRUNC(SUM(J148:J152),0) -> 4317 | L153: =TRUNC(SUM(L148:L152),0) -> 86 | N153: =H153+J153+L153 -> 4684
C155: 6903010 강관절단 D200 개소
A156: 6903009 | B156: 0803005 | C156: 산소 | D156: (기체.99%) | E156: ℓ | F156: 56 | G156: 1.833333333 | H156: =TRUNC(F156*G156,1) -> 102.6 | I156: 0 | J156: =TRUNC(F156*I156,1) -> 0 | K156: 0 | L156: =TRUNC(F156*K156,1) -> 0 | M156: =TRUNC(G156+I156+K156,1) -> 1.8 | N156: =TRUNC(H156+J156+L156,0) -> 102
A157: 6903009 | B157: 0803003 | C157: 아세틸렌 | D157: 98% 용접용 | E157: ℓ | F157: 28 | G157: 12.89566237 | H157: =TRUNC(F157*G157,1) -> 361 | I157: 0 | J157: =TRUNC(F157*I157,1) -> 0 | K157: 0 | L157: =TRUNC(F157*K157,1) -> 0 | M157: =TRUNC(G157+I157+K157,1) -> 12.8 | N157: =TRUNC(H157+J157+L157,0) -> 361
A158: 6901005 | B158: 0001112 | C158: 노무비 | D158: 용접공 | E158: 인 | F158: 0.017 | G158: 0 | H158: =TRUNC(F158*G158,1) -> 0 | I158: 230706 | J158: =TRUNC(F158*I158,1) -> 3922 | K158: 0 | L158: =TRUNC(F158*K158,1) -> 0 | M158: =TRUNC(G158+I158+K158,1) -> 230706 | N158: =TRUNC(H158+J158+L158,0) -> 3922
A159: 6901005 | B159: 0001083 | C159: 노무비 | D159: 특별인부 | E159: 인 | F159: 0.007 | G159: 0 | H159: =TRUNC(F159*G159,1) -> 0 | I159: 181293 | J159: =TRUNC(F159*I159,1) -> 1269 | K159: 0 | L159: =TRUNC(F159*K159,1) -> 0 | M159: =TRUNC(G159+I159+K159,1) -> 181293 | N159: =TRUNC(H159+J159+L159,0) -> 1269
A160: 6901005 | B160: M500000 | C160: 공구손료 | D160: 노무비의 2% | E160: 식 | F160: 1 | H160: =TRUNC(F160*G160,1) -> 0 | I160: 0 | J160: =TRUNC(F160*I160,1) -> 0 | K160: 103.8 | L160: =TRUNC(F160*K160,1) -> 103.8 | M160: =TRUNC(G160+I160+K160,1) -> 103.8 | N160: =TRUNC(H160+J160+L160,0) -> 103
C161: [ 합 계 ] | H161: =TRUNC(SUM(H156:H160),0) -> 463 | J161: =TRUNC(SUM(J156:J160),0) -> 5191 | L161: =TRUNC(SUM(L156:L160),0) -> 103 | N161: =H161+J161+L161 -> 5757
C163: 6903011 강관절단 D250 개소
A164: 6903009 | B164: 0803005 | C164: 산소 | D164: (기체.99%) | E164: ℓ | F164: 99 | G164: 1.833333333 | H164: =TRUNC(F164*G164,1) -> 181.5 | I164: 0 | J164: =TRUNC(F164*I164,1) -> 0 | K164: 0 | L164: =TRUNC(F164*K164,1) -> 0 | M164: =TRUNC(G164+I164+K164,1) -> 1.8 | N164: =TRUNC(H164+J164+L164,0) -> 181
A165: 6903009 | B165: 0803003 | C165: 아세틸렌 | D165: 98% 용접용 | E165: ℓ | F165: 49 | G165: 12.89566237 | H165: =TRUNC(F165*G165,1) -> 631.8 | I165: 0 | J165: =TRUNC(F165*I165,1) -> 0 | K165: 0 | L165: =TRUNC(F165*K165,1) -> 0 | M165: =TRUNC(G165+I165+K165,1) -> 12.8 | N165: =TRUNC(H165+J165+L165,0) -> 631
A166: 6901005 | B166: 0001112 | C166: 노무비 | D166: 용접공 | E166: 인 | F166: 0.021 | G166: 0 | H166: =TRUNC(F166*G166,1) -> 0 | I166: 230706 | J166: =TRUNC(F166*I166,1) -> 4844.8 | K166: 0 | L166: =TRUNC(F166*K166,1) -> 0 | M166: =TRUNC(G166+I166+K166,1) -> 230706 | N166: =TRUNC(H166+J166+L166,0) -> 4844
A167: 6901005 | B167: 0001083 | C167: 노무비 | D167: 특별인부 | E167: 인 | F167: 0.009 | G167: 0 | H167: =TRUNC(F167*G167,1) -> 0 | I167: 181293 | J167: =TRUNC(F167*I167,1) -> 1631.6 | K167: 0 | L167: =TRUNC(F167*K167,1) -> 0 | M167: =TRUNC(G167+I167+K167,1) -> 181293 | N167: =TRUNC(H167+J167+L167,0) -> 1631
A168: 6901005 | B168: M500000 | C168: 공구손료 | D168: 노무비의 2% | E168: 식 | F168: 1 | H168: =TRUNC(F168*G168,1) -> 0 | I168: 0 | J168: =TRUNC(F168*I168,1) -> 0 | K168: 129.5 | L168: =TRUNC(F168*K168,1) -> 129.5 | M168: =TRUNC(G168+I168+K168,1) -> 129.5 | N168: =TRUNC(H168+J168+L168,0) -> 129
C169: [ 합 계 ] | H169: =TRUNC(SUM(H164:H168),0) -> 813 | J169: =TRUNC(SUM(J164:J168),0) -> 6476 | L169: =TRUNC(SUM(L164:L168),0) -> 129 | N169: =H169+J169+L169 -> 7418
C171: 6903012 강관절단 D300 개소
A172: 6903009 | B172: 0803005 | C172: 산소 | D172: (기체.99%) | E172: ℓ | F172: 129 | G172: 1.833333333 | H172: =TRUNC(F172*G172,1) -> 236.5 | I172: 0 | J172: =TRUNC(F172*I172,1) -> 0 | K172: 0 | L172: =TRUNC(F172*K172,1) -> 0 | M172: =TRUNC(G172+I172+K172,1) -> 1.8 | N172: =TRUNC(H172+J172+L172,0) -> 236
A173: 6903009 | B173: 0803003 | C173: 아세틸렌 | D173: 98% 용접용 | E173: ℓ | F173: 64.5 | G173: 12.89566237 | H173: =TRUNC(F173*G173,1) -> 831.7 | I173: 0 | J173: =TRUNC(F173*I173,1) -> 0 | K173: 0 | L173: =TRUNC(F173*K173,1) -> 0 | M173: =TRUNC(G173+I173+K173,1) -> 12.8 | N173: =TRUNC(H173+J173+L173,0) -> 831
A174: 6901005 | B174: 0001112 | C174: 노무비 | D174: 용접공 | E174: 인 | F174: 0.028 | G174: 0 | H174: =TRUNC(F174*G174,1) -> 0 | I174: 230706 | J174: =TRUNC(F174*I174,1) -> 6459.7 | K174: 0 | L174: =TRUNC(F174*K174,1) -> 0 | M174: =TRUNC(G174+I174+K174,1) -> 230706 | N174: =TRUNC(H174+J174+L174,0) -> 6459
A175: 6901005 | B175: 0001083 | C175: 노무비 | D175: 특별인부 | E175: 인 | F175: 0.012 | G175: 0 | H175: =TRUNC(F175*G175,1) -> 0 | I175: 181293 | J175: =TRUNC(F175*I175,1) -> 2175.5 | K175: 0 | L175: =TRUNC(F175*K175,1) -> 0 | M175: =TRUNC(G175+I175+K175,1) -> 181293 | N175: =TRUNC(H175+J175+L175,0) -> 2175
A176: 6901005 | B176: M500000 | C176: 공구손료 | D176: 노무비의 2% | E176: 식 | F176: 1 | H176: =TRUNC(F176*G176,1) -> 0 | I176: 0 | J176: =TRUNC(F176*I176,1) -> 0 | K176: 172.7 | L176: =TRUNC(F176*K176,1) -> 172.7 | M176: =TRUNC(G176+I176+K176,1) -> 172.7 | N176: =TRUNC(H176+J176+L176,0) -> 172
C177: [ 합 계 ] | H177: =TRUNC(SUM(H172:H176),0) -> 1068 | J177: =TRUNC(SUM(J172:J176),0) -> 8635 | L177: =TRUNC(SUM(L172:L176),0) -> 172 | N177: =H177+J177+L177 -> 9875
C179: 6903013 강관절단 D350 개소
A180: 6903009 | B180: 0803005 | C180: 산소 | D180: (기체.99%) | E180: ℓ | F180: 152 | G180: 1.833333333 | H180: =TRUNC(F180*G180,1) -> 278.6 | I180: 0 | J180: =TRUNC(F180*I180,1) -> 0 | K180: 0 | L180: =TRUNC(F180*K180,1) -> 0 | M180: =TRUNC(G180+I180+K180,1) -> 1.8 | N180: =TRUNC(H180+J180+L180,0) -> 278
A181: 6903009 | B181: 0803003 | C181: 아세틸렌 | D181: 98% 용접용 | E181: ℓ | F181: 76 | G181: 12.89566237 | H181: =TRUNC(F181*G181,1) -> 980 | I181: 0 | J181: =TRUNC(F181*I181,1) -> 0 | K181: 0 | L181: =TRUNC(F181*K181,1) -> 0 | M181: =TRUNC(G181+I181+K181,1) -> 12.8 | N181: =TRUNC(H181+J181+L181,0) -> 980
A182: 6901005 | B182: 0001112 | C182: 노무비 | D182: 용접공 | E182: 인 | F182: 0.038 | G182: 0 | H182: =TRUNC(F182*G182,1) -> 0 | I182: 230706 | J182: =TRUNC(F182*I182,1) -> 8766.8 | K182: 0 | L182: =TRUNC(F182*K182,1) -> 0 | M182: =TRUNC(G182+I182+K182,1) -> 230706 | N182: =TRUNC(H182+J182+L182,0) -> 8766
A183: 6901005 | B183: 0001083 | C183: 노무비 | D183: 특별인부 | E183: 인 | F183: 0.016 | G183: 0 | H183: =TRUNC(F183*G183,1) -> 0 | I183: 181293 | J183: =TRUNC(F183*I183,1) -> 2900.6 | K183: 0 | L183: =TRUNC(F183*K183,1) -> 0 | M183: =TRUNC(G183+I183+K183,1) -> 181293 | N183: =TRUNC(H183+J183+L183,0) -> 2900
A184: 6901005 | B184: M500000 | C184: 공구손료 | D184: 노무비의 2% | E184: 식 | F184: 1 | H184: =TRUNC(F184*G184,1) -> 0 | I184: 0 | J184: =TRUNC(F184*I184,1) -> 0 | K184: 233.3 | L184: =TRUNC(F184*K184,1) -> 233.3 | M184: =TRUNC(G184+I184+K184,1) -> 233.3 | N184: =TRUNC(H184+J184+L184,0) -> 233
C185: [ 합 계 ] | H185: =TRUNC(SUM(H180:H184),0) -> 1258 | J185: =TRUNC(SUM(J180:J184),0) -> 11667 | L185: =TRUNC(SUM(L180:L184),0) -> 233 | N185: =H185+J185+L185 -> 13158
C187: 6904001 강관용접 D15 개소
A188: 6904001 | B188: 0206002 | C188: 용접봉(연강용) | D188: ∮3.2 CS-200 KSE-4301 | E188: kg | F188: 0.006 | G188: 2836 | H188: =TRUNC(F188*G188,1) -> 17 | I188: 0 | J188: =TRUNC(F188*I188,1) -> 0 | K188: 0 | L188: =TRUNC(F188*K188,1) -> 0 | M188: =TRUNC(G188+I188+K188,1) -> 2836 | N188: =TRUNC(H188+J188+L188,0) -> 17
A189: 6904001 | B189: 0805023 | C189: 전력(4kw이상.1년초과)* | D189: 사용요금(그밖의 철) | E189: kwh | F189: 0.047 | G189: 92.9 | H189: =TRUNC(F189*G189,1) -> 4.3 | I189: 0 | J189: =TRUNC(F189*I189,1) -> 0 | K189: 0 | L189: =TRUNC(F189*K189,1) -> 0 | M189: =TRUNC(G189+I189+K189,1) -> 92.9 | N189: =TRUNC(H189+J189+L189,0) -> 4
A190: 6905001 | B190: 0001112 | C190: 노무비 | D190: 용접공(일반) | E190: 인 | F190: 0.036 | G190: 0 | H190: =TRUNC(F190*G190,1) -> 0 | I190: 230706 | J190: =TRUNC(F190*I190,1) -> 8305.4 | K190: 0 | L190: =TRUNC(F190*K190,1) -> 0 | M190: =TRUNC(G190+I190+K190,1) -> 230706 | N190: =TRUNC(H190+J190+L190,0) -> 8305
A191: 6905001 | B191: M500000 | C191: 공구손료 | D191: 노무비의 2% | E191: 식 | F191: 1 | H191: =TRUNC(F191*G191,1) -> 0 | I191: 0 | J191: =TRUNC(F191*I191,1) -> 0 | K191: 166.1 | L191: =TRUNC(F191*K191,1) -> 166.1 | M191: =TRUNC(G191+I191+K191,1) -> 166.1 | N191: =TRUNC(H191+J191+L191,0) -> 166
C192: [ 합 계 ] | H192: =TRUNC(SUM(H188:H191),0) -> 21 | J192: =TRUNC(SUM(J188:J191),0) -> 8305 | L192: =TRUNC(SUM(L188:L191),0) -> 166 | N192: =H192+J192+L192 -> 8492
C194: 6904002 강관용접 D20 개소
A195: 6904002 | B195: 0206002 | C195: 용접봉(연강용) | D195: ∮3.2 CS-200 KSE-4301 | E195: kg | F195: 0.012 | G195: 2836 | H195: =TRUNC(F195*G195,1) -> 34 | I195: 0 | J195: =TRUNC(F195*I195,1) -> 0 | K195: 0 | L195: =TRUNC(F195*K195,1) -> 0 | M195: =TRUNC(G195+I195+K195,1) -> 2836 | N195: =TRUNC(H195+J195+L195,0) -> 34
A196: 6904002 | B196: 0805023 | C196: 전력(4kw이상.1년초과)* | D196: 사용요금(그밖의 철) | E196: kwh | F196: 0.059 | G196: 92.9 | H196: =TRUNC(F196*G196,1) -> 5.4 | I196: 0 | J196: =TRUNC(F196*I196,1) -> 0 | K196: 0 | L196: =TRUNC(F196*K196,1) -> 0 | M196: =TRUNC(G196+I196+K196,1) -> 92.9 | N196: =TRUNC(H196+J196+L196,0) -> 5
A197: 6905001 | B197: 0001112 | C197: 노무비 | D197: 용접공(일반) | E197: 인 | F197: 0.043 | G197: 0 | H197: =TRUNC(F197*G197,1) -> 0 | I197: 230706 | J197: =TRUNC(F197*I197,1) -> 9920.3 | K197: 0 | L197: =TRUNC(F197*K197,1) -> 0 | M197: =TRUNC(G197+I197+K197,1) -> 230706 | N197: =TRUNC(H197+J197+L197,0) -> 9920
A198: 6905001 | B198: M500000 | C198: 공구손료 | D198: 노무비의 2% | E198: 식 | F198: 1 | H198: =TRUNC(F198*G198,1) -> 0 | I198: 0 | J198: =TRUNC(F198*I198,1) -> 0 | K198: 198.4 | L198: =TRUNC(F198*K198,1) -> 198.4 | M198: =TRUNC(G198+I198+K198,1) -> 198.4 | N198: =TRUNC(H198+J198+L198,0) -> 198
C199: [ 합 계 ] | H199: =TRUNC(SUM(H195:H198),0) -> 39 | J199: =TRUNC(SUM(J195:J198),0) -> 9920 | L199: =TRUNC(SUM(L195:L198),0) -> 198 | N199: =H199+J199+L199 -> 10157
C201: 6904003 강관용접 D25 개소
A202: 6904003 | B202: 0206002 | C202: 용접봉(연강용) | D202: ∮3.2 CS-200 KSE-4301 | E202: kg | F202: 0.018 | G202: 2836 | H202: =TRUNC(F202*G202,1) -> 51 | I202: 0 | J202: =TRUNC(F202*I202,1) -> 0 | K202: 0 | L202: =TRUNC(F202*K202,1) -> 0 | M202: =TRUNC(G202+I202+K202,1) -> 2836 | N202: =TRUNC(H202+J202+L202,0) -> 51
A203: 6904003 | B203: 0805023 | C203: 전력(4kw이상.1년초과)* | D203: 사용요금(그밖의 철) | E203: kwh | F203: 0.074 | G203: 92.9 | H203: =TRUNC(F203*G203,1) -> 6.8 | I203: 0 | J203: =TRUNC(F203*I203,1) -> 0 | K203: 0 | L203: =TRUNC(F203*K203,1) -> 0 | M203: =TRUNC(G203+I203+K203,1) -> 92.9 | N203: =TRUNC(H203+J203+L203,0) -> 6
A204: 6905001 | B204: 0001112 | C204: 노무비 | D204: 용접공(일반) | E204: 인 | F204: 0.052 | G204: 0 | H204: =TRUNC(F204*G204,1) -> 0 | I204: 230706 | J204: =TRUNC(F204*I204,1) -> 11996.7 | K204: 0 | L204: =TRUNC(F204*K204,1) -> 0 | M204: =TRUNC(G204+I204+K204,1) -> 230706 | N204: =TRUNC(H204+J204+L204,0) -> 11996
A205: 6905001 | B205: M500000 | C205: 공구손료 | D205: 노무비의 2% | E205: 식 | F205: 1 | H205: =TRUNC(F205*G205,1) -> 0 | I205: 0 | J205: =TRUNC(F205*I205,1) -> 0 | K205: 239.9 | L205: =TRUNC(F205*K205,1) -> 239.9 | M205: =TRUNC(G205+I205+K205,1) -> 239.9 | N205: =TRUNC(H205+J205+L205,0) -> 239
C206: [ 합 계 ] | H206: =TRUNC(SUM(H202:H205),0) -> 57 | J206: =TRUNC(SUM(J202:J205),0) -> 11996 | L206: =TRUNC(SUM(L202:L205),0) -> 239 | N206: =H206+J206+L206 -> 12292
C208: 6904004 강관용접 D32 개소
A209: 6904004 | B209: 0206002 | C209: 용접봉(연강용) | D209: ∮3.2 CS-200 KSE-4301 | E209: kg | F209: 0.027 | G209: 2836 | H209: =TRUNC(F209*G209,1) -> 76.5 | I209: 0 | J209: =TRUNC(F209*I209,1) -> 0 | K209: 0 | L209: =TRUNC(F209*K209,1) -> 0 | M209: =TRUNC(G209+I209+K209,1) -> 2836 | N209: =TRUNC(H209+J209+L209,0) -> 76
A210: 6904004 | B210: 0805023 | C210: 전력(4kw이상.1년초과)* | D210: 사용요금(그밖의 철) | E210: kwh | F210: 0.093 | G210: 92.9 | H210: =TRUNC(F210*G210,1) -> 8.6 | I210: 0 | J210: =TRUNC(F210*I210,1) -> 0 | K210: 0 | L210: =TRUNC(F210*K210,1) -> 0 | M210: =TRUNC(G210+I210+K210,1) -> 92.9 | N210: =TRUNC(H210+J210+L210,0) -> 8
A211: 6905001 | B211: 0001112 | C211: 노무비 | D211: 용접공(일반) | E211: 인 | F211: 0.062 | G211: 0 | H211: =TRUNC(F211*G211,1) -> 0 | I211: 230706 | J211: =TRUNC(F211*I211,1) -> 14303.7 | K211: 0 | L211: =TRUNC(F211*K211,1) -> 0 | M211: =TRUNC(G211+I211+K211,1) -> 230706 | N211: =TRUNC(H211+J211+L211,0) -> 14303
A212: 6905001 | B212: M500000 | C212: 공구손료 | D212: 노무비의 2% | E212: 식 | F212: 1 | H212: =TRUNC(F212*G212,1) -> 0 | I212: 0 | J212: =TRUNC(F212*I212,1) -> 0 | K212: 286 | L212: =TRUNC(F212*K212,1) -> 286 | M212: =TRUNC(G212+I212+K212,1) -> 286 | N212: =TRUNC(H212+J212+L212,0) -> 286
C213: [ 합 계 ] | H213: =TRUNC(SUM(H209:H212),0) -> 85 | J213: =TRUNC(SUM(J209:J212),0) -> 14303 | L213: =TRUNC(SUM(L209:L212),0) -> 286 | N213: =H213+J213+L213 -> 14674
C215: 6904005 강관용접 D40 개소
A216: 6904005 | B216: 0206002 | C216: 용접봉(연강용) | D216: ∮3.2 CS-200 KSE-4301 | E216: kg | F216: 0.036 | G216: 2836 | H216: =TRUNC(F216*G216,1) -> 102 | I216: 0 | J216: =TRUNC(F216*I216,1) -> 0 | K216: 0 | L216: =TRUNC(F216*K216,1) -> 0 | M216: =TRUNC(G216+I216+K216,1) -> 2836 | N216: =TRUNC(H216+J216+L216,0) -> 102
A217: 6904005 | B217: 0805023 | C217: 전력(4kw이상.1년초과)* | D217: 사용요금(그밖의 철) | E217: kwh | F217: 0.106 | G217: 92.9 | H217: =TRUNC(F217*G217,1) -> 9.8 | I217: 0 | J217: =TRUNC(F217*I217,1) -> 0 | K217: 0 | L217: =TRUNC(F217*K217,1) -> 0 | M217: =TRUNC(G217+I217+K217,1) -> 92.9 | N217: =TRUNC(H217+J217+L217,0) -> 9
A218: 6905001 | B218: 0001112 | C218: 노무비 | D218: 용접공(일반) | E218: 인 | F218: 0.07 | G218: 0 | H218: =TRUNC(F218*G218,1) -> 0 | I218: 230706 | J218: =TRUNC(F218*I218,1) -> 16149.4 | K218: 0 | L218: =TRUNC(F218*K218,1) -> 0 | M218: =TRUNC(G218+I218+K218,1) -> 230706 | N218: =TRUNC(H218+J218+L218,0) -> 16149
A219: 6905001 | B219: M500000 | C219: 공구손료 | D219: 노무비의 2% | E219: 식 | F219: 1 | H219: =TRUNC(F219*G219,1) -> 0 | I219: 0 | J219: =TRUNC(F219*I219,1) -> 0 | K219: 322.9 | L219: =TRUNC(F219*K219,1) -> 322.9 | M219: =TRUNC(G219+I219+K219,1) -> 322.9 | N219: =TRUNC(H219+J219+L219,0) -> 322
C220: [ 합 계 ] | H220: =TRUNC(SUM(H216:H219),0) -> 111 | J220: =TRUNC(SUM(J216:J219),0) -> 16149 | L220: =TRUNC(SUM(L216:L219),0) -> 322 | N220: =H220+J220+L220 -> 16582
C222: 6904006 강관용접 D50 개소
A223: 6904006 | B223: 0206002 | C223: 용접봉(연강용) | D223: ∮3.2 CS-200 KSE-4301 | E223: kg | F223: 0.049 | G223: 2836 | H223: =TRUNC(F223*G223,1) -> 138.9 | I223: 0 | J223: =TRUNC(F223*I223,1) -> 0 | K223: 0 | L223: =TRUNC(F223*K223,1) -> 0 | M223: =TRUNC(G223+I223+K223,1) -> 2836 | N223: =TRUNC(H223+J223+L223,0) -> 138
A224: 6904006 | B224: 0805023 | C224: 전력(4kw이상.1년초과)* | D224: 사용요금(그밖의 철) | E224: kwh | F224: 0.132 | G224: 92.9 | H224: =TRUNC(F224*G224,1) -> 12.2 | I224: 0 | J224: =TRUNC(F224*I224,1) -> 0 | K224: 0 | L224: =TRUNC(F224*K224,1) -> 0 | M224: =TRUNC(G224+I224+K224,1) -> 92.9 | N224: =TRUNC(H224+J224+L224,0) -> 12
A225: 6905001 | B225: 0001112 | C225: 노무비 | D225: 용접공(일반) | E225: 인 | F225: 0.085 | G225: 0 | H225: =TRUNC(F225*G225,1) -> 0 | I225: 230706 | J225: =TRUNC(F225*I225,1) -> 19610 | K225: 0 | L225: =TRUNC(F225*K225,1) -> 0 | M225: =TRUNC(G225+I225+K225,1) -> 230706 | N225: =TRUNC(H225+J225+L225,0) -> 19610
A226: 6905001 | B226: M500000 | C226: 공구손료 | D226: 노무비의 2% | E226: 식 | F226: 1 | H226: =TRUNC(F226*G226,1) -> 0 | I226: 0 | J226: =TRUNC(F226*I226,1) -> 0 | K226: 392.2 | L226: =TRUNC(F226*K226,1) -> 392.2 | M226: =TRUNC(G226+I226+K226,1) -> 392.2 | N226: =TRUNC(H226+J226+L226,0) -> 392
C227: [ 합 계 ] | H227: =TRUNC(SUM(H223:H226),0) -> 151 | J227: =TRUNC(SUM(J223:J226),0) -> 19610 | L227: =TRUNC(SUM(L223:L226),0) -> 392 | N227: =H227+J227+L227 -> 20153
C229: 6904007 강관용접 D65 개소
... 3833 more rows
